Workbook

Sheet Main
B10: 2019-09-12
B12: Sheet No. | C12: Template Name | D12: Summary
B13: 1 | C13: Future Intra | D13: For Intraday trading in F&O segment
B14: 2 | C14: Cash Intra | D14: For Intraday trading in cash market segment
B15: 3 | C15: Mid-cap Intra | D15: For Intraday trading in Mid-cap stocks
B16: 4 | C16: Bulk Deals | D16: Reveals Bulk Deals carried on NSE & BSE
B17: 5 | C17: Call Tracker
K27: `

Sheet Future Intra
M5: Back to Main Page
A6: FOR INTRA DAY TRADING | L6: =Main!B10 -> 2019-09-12
A9: Sr.no | B9: Sector | C9: Scrip | D9: CLOSE RATE | E9: Pivot Point | F9: Supports | I9: Resistances
B10: Sector | D10: Point | E10: Point | F10: S1 | G10: S2 | H10: S3 | I10: R1 | J10: R2 | K10: R3 | L10: HIGH | M10: LOW | N10: OI | O10: % Change in OI
A11: 1 | B11: Index | C11: BANKNIFTY | D11: 27830.20 | E11: 27773.87 | F11: 27650.73 | G11: 27471.27 | H11: 27348.13 | I11: 27953.33 | J11: 28076.47 | K11: 28255.93 | L11: 27897 | M11: 27594.4 | N11: 1784880 | O11: 3.37%
A12: 2 | B12: Index | C12: NIFTY | D12: 11060.80 | E12: 11058.70 | F12: 11028.95 | G12: 10997.10 | H12: 10967.35 | I12: 11090.55 | J12: 11120.30 | K12: 11152.15 | L12: 11088.45 | M12: 11026.85 | N12: 18340350 | O12: 2.48%
A13: 3 | B13: Index | C13: NIFTYIT | D13: 15779.00 | E13: 15818.67 | F13: 15712.33 | G13: 15645.67 | H13: 15539.33 | I13: 15885.33 | J13: 15991.67 | K13: 16058.33 | L13: 15925 | M13: 15752 | N13: 11650 | O13: 28.02%
A14: 4 | B14: Cement | C14: ACC | D14: 1491.80 | E14: 1489.22 | F14: 1480.68 | G14: 1469.57 | H14: 1461.03 | I14: 1500.33 | J14: 1508.87 | K14: 1519.98 | L14: 1497.75 | M14: 1478.1 | N14: 2298800 | O14: 2.31%
A15: 5 | B15: Others | C15: ADANIENT | D15: 144.05 | E15: 143.07 | F15: 141.28 | G15: 138.52 | H15: 136.73 | I15: 145.83 | J15: 147.62 | K15: 150.38 | L15: 144.85 | M15: 140.3 | N15: 26364000 | O15: -0.86%
A16: 6 | B16: Others | C16: ADANIPORTS | D16: 373.15 | E16: 371.77 | F16: 368.68 | G16: 364.22 | H16: 361.13 | I16: 376.23 | J16: 379.32 | K16: 383.78 | L16: 374.85 | M16: 367.3 | N16: 16075000 | O16: -0.59%
A17: 7 | B17: Power | C17: ADANIPOWER | D17: 63.80 | E17: 63.08 | F17: 61.47 | G17: 59.13 | H17: 57.52 | I17: 65.42 | J17: 67.03 | K17: 69.37 | L17: 64.7 | M17: 60.75 | N17: 97340000 | O17: 0.58%
A18: 8 | B18: Automobile | C18: AMARAJABAT | D18: 651.75 | E18: 648.95 | F18: 643.80 | G18: 635.85 | H18: 630.70 | I18: 656.90 | J18: 662.05 | K18: 670.00 | L18: 654.1 | M18: 641 | N18: 1498700 | O18: 2.54%
A19: 9 | B19: Cement | C19: AMBUJACEM | D19: 198.20 | E19: 197.83 | F19: 196.67 | G19: 195.13 | H19: 193.97 | I19: 199.37 | J19: 200.53 | K19: 202.07 | L19: 199 | M19: 196.3 | N19: 22832500 | O19: 0.03%
A20: 10 | B20: Others | C20: APOLLOHOSP | D20: 1477.70 | E20: 1478.35 | F20: 1461.85 | G20: 1446.00 | H20: 1429.50 | I20: 1494.20 | J20: 1510.70 | K20: 1526.55 | L20: 1494.85 | M20: 1462.5 | N20: 1743500 | O20: 11.12%
A21: 11 | B21: Automobile | C21: APOLLOTYRE | D21: 178.80 | E21: 178.05 | F21: 176.65 | G21: 174.50 | H21: 173.10 | I21: 180.20 | J21: 181.60 | K21: 183.75 | L21: 179.45 | M21: 175.9 | N21: 10161000 | O21: -1.25%
A22: 12 | B22: Textile | C22: ARVIND | D22: 52.10 | E22: 52.22 | F22: 50.78 | G22: 49.47 | H22: 48.03 | I22: 53.53 | J22: 54.97 | K22: 56.28 | L22: 53.65 | M22: 50.9 | N22: 4914000 | O22: -4.32%
A23: 13 | B23: Automobile | C23: ASHOKLEY | D23: 63.95 | E23: 63.08 | F23: 61.22 | G23: 58.48 | H23: 56.62 | I23: 65.82 | J23: 67.68 | K23: 70.42 | L23: 64.95 | M23: 60.35 | N23: 92316000 | O23: 4.34%
A24: 14 | B24: FMCG | C24: ASIANPAINT | D24: 1562.50 | E24: 1557.98 | F24: 1549.57 | G24: 1536.63 | H24: 1528.22 | I24: 1570.92 | J24: 1579.33 | K24: 1592.27 | L24: 1566.4 | M24: 1545.05 | N24: 8734200 | O24: -2.12%
A25: 15 | B25: Pharma | C25: AUROPHARMA | D25: 629.20 | E25: 627.75 | F25: 624.00 | G25: 618.80 | H25: 615.05 | I25: 632.95 | J25: 636.70 | K25: 641.90 | L25: 631.5 | M25: 622.55 | N25: 16156000 | O25: -0.49%
A26: 16 | B26: Banking | C26: AXISBANK | D26: 682.85 | E26: 679.58 | F26: 675.22 | G26: 667.58 | H26: 663.22 | I26: 687.22 | J26: 691.58 | K26: 699.22 | L26: 683.95 | M26: 671.95 | N26: 48153600 | O26: 0.71%
A27: 17 | B27: Automobile | C27: BAJAJ-AUTO | D27: 2906.80 | E27: 2882.73 | F27: 2848.02 | G27: 2789.23 | H27: 2754.52 | I27: 2941.52 | J27: 2976.23 | K27: 3035.02 | L27: 2917.45 | M27: 2823.95 | N27: 2265500 | O27: -1.56%
A28: 18 | B28: Finance | C28: BAJAJFINSV | D28: 7357.75 | E28: 7366.88 | F28: 7313.97 | G28: 7270.18 | H28: 7217.27 | I28: 7410.67 | J28: 7463.58 | K28: 7507.37 | L28: 7419.8 | M28: 7323.1 | N28: 990000 | O28: -5.15%
A29: 19 | B29: Finance | C29: BAJFINANCE | D29: 3419.60 | E29: 3425.30 | F29: 3392.65 | G29: 3365.70 | H29: 3333.05 | I29: 3452.25 | J29: 3484.90 | K29: 3511.85 | L29: 3457.95 | M29: 3398.35 | N29: 7086500 | O29: -0.96%
A30: 20 | B30: Automobile | C30: BALKRISIND | D30: 748.40 | E30: 745.38 | F30: 740.42 | G30: 732.43 | H30: 727.47 | I30: 753.37 | J30: 758.33 | K30: 766.32 | L30: 750.35 | M30: 737.4 | N30: 1844000 | O30: -2.00%
A31: 21 | B31: Banking | C31: BANKBARODA | D31: 99.30 | E31: 98.45 | F31: 96.90 | G31: 94.50 | H31: 92.95 | I31: 100.85 | J31: 102.40 | K31: 104.80 | L31: 100 | M31: 96.05 | N31: 65448000 | O31: -4.57%
A32: 22 | B32: Banking | C32: BANKINDIA | D32: 68.50 | E32: 67.75 | F32: 66.80 | G32: 65.10 | H32: 64.15 | I32: 69.45 | J32: 70.40 | K32: 72.10 | L32: 68.7 | M32: 66.05 | N32: 26550000 | O32: -2.92%
A33: 23 | B33: FMCG | C33: BATAINDIA | D33: 1562.35 | E33: 1560.67 | F33: 1556.43 | G33: 1550.52 | H33: 1546.28 | I33: 1566.58 | J33: 1570.82 | K33: 1576.73 | L33: 1564.9 | M33: 1554.75 | N33: 2814350 | O33: 0.89%
A34: 24 | B34: Capital_Goods | C34: BEL | D34: 108.35 | E34: 109.13 | F34: 106.82 | G34: 105.28 | H34: 102.97 | I34: 110.67 | J34: 112.98 | K34: 114.52 | L34: 111.45 | M34: 107.6 | N34: 21180000 | O34: -6.17%
A35: 25 | B35: FMCG | C35: BERGEPAINT | D35: 370.15 | E35: 368.72 | F35: 366.43 | G35: 362.72 | H35: 360.43 | I35: 372.43 | J35: 374.72 | K35: 378.43 | L35: 371 | M35: 365 | N35: 3647600 | O35: -3.72%
A36: 26 | B36: Automobile | C36: BHARATFORG | D36: 413.15 | E36: 409.50 | F36: 404.10 | G36: 395.05 | H36: 389.65 | I36: 418.55 | J36: 423.95 | K36: 433.00 | L36: 414.9 | M36: 400.45 | N36: 7587600 | O36: -0.25%
A37: 27 | B37: Telecom | C37: BHARTIARTL | D37: 356.50 | E37: 357.13 | F37: 352.17 | G37: 347.83 | H37: 342.87 | I37: 361.47 | J37: 366.43 | K37: 370.77 | L37: 362.1 | M37: 352.8 | N37: 36575760 | O37: -0.39%
A38: 28 | B38: Capital_Goods | C38: BHEL | D38: 52.20 | E38: 51.62 | F38: 50.68 | G38: 49.17 | H38: 48.23 | I38: 53.13 | J38: 54.07 | K38: 55.58 | L38: 52.55 | M38: 50.1 | N38: 49537500 | O38: -2.78%
A39: 29 | B39: Pharma | C39: BIOCON | D39: 235.40 | E39: 235.70 | F39: 231.75 | G39: 228.10 | H39: 224.15 | I39: 239.35 | J39: 243.30 | K39: 246.95 | L39: 239.65 | M39: 232.05 | N39: 12828600 | O39: -0.85%
A40: 30 | B40: Automobile | C40: BOSCHLTD | D40: 14306.20 | E40: 14326.77 | F40: 14079.43 | G40: 13852.67 | H40: 13605.33 | I40: 14553.53 | J40: 14800.87 | K40: 15027.63 | L40: 14574.1 | M40: 14100 | N40: 158250 | O40: 0.08%
A41: 31 | B41: Oil_Gas | C41: BPCL | D41: 386.20 | E41: 384.55 | F41: 380.85 | G41: 375.50 | H41: 371.80 | I41: 389.90 | J41: 393.60 | K41: 398.95 | L41: 388.25 | M41: 379.2 | N41: 14353200 | O41: 1.88%
A42: 32 | B42: FMCG | C42: BRITANNIA | D42: 2671.90 | E42: 2675.95 | F42: 2655.95 | G42: 2640.00 | H42: 2620.00 | I42: 2691.90 | J42: 2711.90 | K42: 2727.85 | L42: 2695.95 | M42: 2660 | N42: 2356800 | O42: -0.80%
A43: 33 | B43: Technology | C43: BSOFT | D43: 72.95 | E43: 72.42 | F43: 71.03 | G43: 69.12 | H43: 67.73 | I43: 74.33 | J43: 75.72 | K43: 77.63 | L43: 73.8 | M43: 70.5 | N43: 3432300 | O43: -0.88%
A44: 34 | B44: Pharma | C44: CADILAHC | D44: 240.10 | E44: 239.95 | F44: 237.00 | G44: 233.90 | H44: 230.95 | I44: 243.05 | J44: 246.00 | K44: 249.10 | L44: 242.9 | M44: 236.85 | N44: 10041600 | O44: -2.92%
A45: 35 | B45: Banking | C45: CANBK | D45: 205.25 | E45: 203.52 | F45: 200.23 | G45: 195.22 | H45: 191.93 | I45: 208.53 | J45: 211.82 | K45: 216.83 | L45: 206.8 | M45: 198.5 | N45: 12574000 | O45: -8.55%
A46: 36 | B46: Oil_Gas | C46: CASTROLIND | D46: 125.00 | E46: 124.57 | F46: 123.58 | G46: 122.17 | H46: 121.18 | I46: 125.98 | J46: 126.97 | K46: 128.38 | L46: 125.55 | M46: 123.15 | N46: 6252600 | O46: -1.29%
A47: 37 | B47: Textile | C47: CENTURYTEX | D47: 879.85 | E47: 876.08 | F47: 867.17 | G47: 854.48 | H47: 845.57 | I47: 888.77 | J47: 897.68 | K47: 910.37 | L47: 885 | M47: 863.4 | N47: 3148200 | O47: 2.26%
A48: 38 | B48: Power | C48: CESC | D48: 817.35 | E48: 813.48 | F48: 804.97 | G48: 792.58 | H48: 784.07 | I48: 825.87 | J48: 834.38 | K48: 846.77 | L48: 822 | M48: 801.1 | N48: 661600 | O48: 14.38%
A49: 39 | B49: Finance | C49: CHOLAFIN | D49: 276.80 | E49: 275.53 | F49: 273.02 | G49: 269.23 | H49: 266.72 | I49: 279.32 | J49: 281.83 | K49: 285.62 | L49: 278.05 | M49: 271.75 | N49: 3295000 | O49: -2.87%
A50: 40 | B50: Pharma | C50: CIPLA | D50: 473.55 | E50: 474.42 | F50: 469.53 | G50: 465.52 | H50: 460.63 | I50: 478.43 | J50: 483.32 | K50: 487.33 | L50: 479.3 | M50: 470.4 | N50: 10950000 | O50: 1.72%
A51: 41 | B51: Others | C51: COALINDIA | D51: 196.90 | E51: 198.75 | F51: 194.30 | G51: 191.70 | H51: 187.25 | I51: 201.35 | J51: 205.80 | K51: 208.40 | L51: 203.2 | M51: 196.15 | N51: 40955200 | O51: -1.87%
A52: 42 | B52: FMCG | C52: COLPAL | D52: 1241.55 | E52: 1251.68 | F52: 1226.52 | G52: 1211.48 | H52: 1186.32 | I52: 1266.72 | J52: 1291.88 | K52: 1306.92 | L52: 1276.85 | M52: 1236.65 | N52: 1481900 | O52: -3.20%
A53: 43 | B53: Others | C53: CONCOR | D53: 519.80 | E53: 517.63 | F53: 512.62 | G53: 505.43 | H53: 500.42 | I53: 524.82 | J53: 529.83 | K53: 537.02 | L53: 522.65 | M53: 510.45 | N53: 3010338 | O53: 1.00%
A54: 44 | B54: Capital_Goods | C54: CUMMINSIND | D54: 583.50 | E54: 580.97 | F54: 573.93 | G54: 564.37 | H54: 557.33 | I54: 590.53 | J54: 597.57 | K54: 607.13 | L54: 588 | M54: 571.4 | N54: 1819300 | O54: 3.88%
A55: 45 | B55: FMCG | C55: DABUR | D55: 449.35 | E55: 447.53 | F55: 444.67 | G55: 439.98 | H55: 437.12 | I55: 452.22 | J55: 455.08 | K55: 459.77 | L55: 450.4 | M55: 442.85 | N55: 10635000 | O55: -5.11%
A56: 46 | B56: Finance | C56: DHFL | D56: 50.35 | E56: 50.20 | F56: 48.00 | G56: 45.65 | H56: 43.45 | I56: 52.55 | J56: 54.75 | K56: 57.10 | L56: 52.4 | M56: 47.85 | N56: 12948000 | O56: -2.38%
A57: 47 | B57: Media | C57: DISHTV | D57: 23.50 | E57: 23.73 | F57: 22.97 | G57: 22.43 | H57: 21.67 | I57: 24.27 | J57: 25.03 | K57: 25.57 | L57: 24.5 | M57: 23.2 | N57: 103516000 | O57: -2.51%
A58: 48 | B58: Pharma | C58: DIVISLAB | D58: 1624.55 | E58: 1626.97 | F58: 1611.28 | G58: 1598.02 | H58: 1582.33 | I58: 1640.23 | J58: 1655.92 | K58: 1669.18 | L58: 1642.65 | M58: 1613.7 | N58: 2706800 | O58: 3.08%
A59: 49 | B59: Realty | C59: DLF | D59: 161.05 | E59: 159.93 | F59: 155.02 | G59: 148.98 | H59: 144.07 | I59: 165.97 | J59: 170.88 | K59: 176.92 | L59: 164.85 | M59: 153.9 | N59: 42207200 | O59: 5.32%
A60: 50 | B60: Pharma | C60: DRREDDY | D60: 2762.90 | E60: 2762.52 | F60: 2744.48 | G60: 2726.07 | H60: 2708.03 | I60: 2780.93 | J60: 2798.97 | K60: 2817.38 | L60: 2780.55 | M60: 2744.1 | N60: 3020000 | O60: -2.33%
A61: 51 | B61: Automobile | C61: EICHERMOT | D61: 17062.20 | E61: 16828.47 | F61: 16495.88 | G61: 15929.57 | H61: 15596.98 | I61: 17394.78 | J61: 17727.37 | K61: 18293.68 | L61: 17161.05 | M61: 16262.15 | N61: 402525 | O61: -1.21%
A62: 52 | B62: Infrastructure | C62: ENGINERSIN | D62: 111.55 | E62: 111.52 | F62: 109.98 | G62: 108.42 | H62: 106.88 | I62: 113.08 | J62: 114.62 | K62: 116.18 | L62: 113.05 | M62: 109.95 | N62: 6670000 | O62: -4.16%
A63: 53 | B63: Finance | C63: EQUITAS | D63: 116.65 | E63: 114.70 | F63: 111.25 | G63: 105.85 | H63: 102.40 | I63: 120.10 | J63: 123.55 | K63: 128.95 | L63: 118.15 | M63: 109.3 | N63: 13488000 | O63: -6.98%
A64: 54 | B64: Automobile | C64: ESCORTS | D64: 532.75 | E64: 522.60 | F64: 510.50 | G64: 488.25 | H64: 476.15 | I64: 544.85 | J64: 556.95 | K64: 579.20 | L64: 534.7 | M64: 500.35 | N64: 4854300 | O64: 7.82%
A65: 55 | B65: Automobile | C65: EXIDEIND | D65: 184.30 | E65: 184.15 | F65: 182.40 | G65: 180.50 | H65: 178.75 | I65: 186.05 | J65: 187.80 | K65: 189.70 | L65: 185.9 | M65: 182.25 | N65: 8536800 | O65: 3.88%
A66: 56 | B66: Banking | C66: FEDERALBNK | D66: 86.15 | E66: 86.15 | F66: 85.25 | G66: 84.35 | H66: 83.45 | I66: 87.05 | J66: 87.95 | K66: 88.85 | L66: 87.05 | M66: 85.25 | N66: 46802000 | O66: 0.57%
A67: 57 | B67: Oil_Gas | C67: GAIL | D67: 129.05 | E67: 130.17 | F67: 127.68 | G67: 126.32 | H67: 123.83 | I67: 131.53 | J67: 134.02 | K67: 135.38 | L67: 132.65 | M67: 128.8 | N67: 41722548 | O67: 8.55%
A68: 58 | B68: Pharma | C68: GLENMARK | D68: 384.65 | E68: 385.35 | F68: 381.80 | G68: 378.95 | H68: 375.40 | I68: 388.20 | J68: 391.75 | K68: 394.60 | L68: 388.9 | M68: 382.5 | N68: 4506000 | O68: 4.52%
A69: 59 | B69: Infrastructure | C69: GMRINFRA | D69: 16.95 | E69: 16.62 | F69: 16.18 | G69: 15.42 | H69: 14.98 | I69: 17.38 | J69: 17.82 | K69: 18.58 | L69: 17.05 | M69: 15.85 | N69: 142020000 | O69: -1.00%
A70: 60 | B70: FMCG | C70: GODREJCP | D70: 613.35 | E70: 610.65 | F70: 600.05 | G70: 586.75 | H70: 576.15 | I70: 623.95 | J70: 634.55 | K70: 647.85 | L70: 621.25 | M70: 597.35 | N70: 6820800 | O70: 4.34%
A71: 61 | B71: Cement | C71: GRASIM | D71: 713.65 | E71: 714.22 | F71: 709.03 | G71: 704.42 | H71: 699.23 | I71: 718.83 | J71: 724.02 | K71: 728.63 | L71: 719.4 | M71: 709.6 | N71: 16689000 | O71: 1.01%
A72: 62 | B72: Others | C72: HAVELLS | D72: 668.05 | E72: 664.67 | F72: 659.58 | G72: 651.12 | H72: 646.03 | I72: 673.13 | J72: 678.22 | K72: 686.68 | L72: 669.75 | M72: 656.2 | N72: 6253000 | O72: -2.14%
A73: 63 | B73: Technology | C73: HCLTECH | D73: 1061.70 | E73: 1071.98 | F73: 1047.72 | G73: 1033.73 | H73: 1009.47 | I73: 1085.97 | J73: 1110.23 | K73: 1124.22 | L73: 1096.25 | M73: 1058 | N73: 11271400 | O73: 5.66%
A74: 64 | B74: Finance | C74: HDFC | D74: 2079.30 | E74: 2080.40 | F74: 2061.00 | G74: 2042.70 | H74: 2023.30 | I74: 2098.70 | J74: 2118.10 | K74: 2136.40 | L74: 2099.8 | M74: 2062.1 | N74: 33053000 | O74: 1.36%
A75: 65 | B75: Banking | C75: HDFCBANK | D75: 2252.35 | E75: 2255.97 | F75: 2244.08 | G75: 2235.82 | H75: 2223.93 | I75: 2264.23 | J75: 2276.12 | K75: 2284.38 | L75: 2267.85 | M75: 2247.7 | N75: 16861000 | O75: -0.35%
A76: 66 | B76: Automobile | C76: HEROMOTOCO | D76: 2770.80 | E76: 2751.10 | F76: 2719.80 | G76: 2668.80 | H76: 2637.50 | I76: 2802.10 | J76: 2833.40 | K76: 2884.40 | L76: 2782.4 | M76: 2700.1 | N76: 2785600 | O76: 4.45%
A77: 67 | B77: Technology | C77: HEXAWARE | D77: 381.45 | E77: 381.72 | F77: 379.08 | G77: 376.72 | H77: 374.08 | I77: 384.08 | J77: 386.72 | K77: 389.08 | L77: 384.35 | M77: 379.35 | N77: 2697000 | O77: 6.01%
A78: 68 | B78: Metals | C78: HINDALCO | D78: 194.40 | E78: 192.97 | F78: 191.08 | G78: 187.77 | H78: 185.88 | I78: 196.28 | J78: 198.17 | K78: 201.48 | L78: 194.85 | M78: 189.65 | N78: 30436000 | O78: -0.18%
A79: 69 | B79: Oil_Gas | C79: HINDPETRO | D79: 266.20 | E79: 264.67 | F79: 261.73 | G79: 257.27 | H79: 254.33 | I79: 269.13 | J79: 272.07 | K79: 276.53 | L79: 267.6 | M79: 260.2 | N79: 18135600 | O79: -3.19%
A80: 70 | B80: FMCG | C80: HINDUNILVR | D80: 1830.45 | E80: 1834.93 | F80: 1820.87 | G80: 1811.28 | H80: 1797.22 | I80: 1844.52 | J80: 1858.58 | K80: 1868.17 | L80: 1849 | M80: 1825.35 | N80: 9673500 | O80: 1.01%
A81: 71 | B81: Metals | C81: HINDZINC | D81: 215.70 | E81: 216.37 | F81: 213.63 | G81: 211.57 | H81: 208.83 | I81: 218.43 | J81: 221.17 | K81: 223.23 | L81: 219.1 | M81: 214.3 | N81: 5004800 | O81: 0.71%
A82: 72 | B82: Finance | C82: IBULHSGFIN | D82: 413.65 | E82: 404.80 | F82: 389.90 | G82: 366.15 | H82: 351.25 | I82: 428.55 | J82: 443.45 | K82: 467.20 | L82: 419.7 | M82: 381.05 | N82: 23127200 | O82: -1.38%
A83: 73 | B83: Banking | C83: ICICIBANK | D83: 396.35 | E83: 397.42 | F83: 394.03 | G83: 391.72 | H83: 388.33 | I83: 399.73 | J83: 403.12 | K83: 405.43 | L83: 400.8 | M83: 395.1 | N83: 89720125 | O83: 3.87%
A84: 74 | B84: Finance | C84: ICICIPRULI | D84: 422.05 | E84: 428.37 | F84: 414.43 | G84: 406.82 | H84: 392.88 | I84: 435.98 | J84: 449.92 | K84: 457.53 | L84: 442.3 | M84: 420.75 | N84: 6591000 | O84: 2.19%
A85: 75 | B85: Banking | C85: IDBI | D85: 28.15 | E85: 28.15 | F85: 27.75 | G85: 27.35 | H85: 26.95 | I85: 28.55 | J85: 28.95 | K85: 29.35 | L85: 28.55 | M85: 27.75 | N85: 22308000 | O85: -0.05%
A86: 76 | B86: Telecom | C86: IDEA | D86: 5.75 | E86: 5.67 | F86: 5.48 | G86: 5.22 | H86: 5.03 | I86: 5.93 | J86: 6.12 | K86: 6.38 | L86: 5.85 | M86: 5.4 | N86: 469532000 | O86: -0.73%
A87: 77 | B87: Banking | C87: IDFCFIRSTB | D87: 43.70 | E87: 43.45 | F87: 42.90 | G87: 42.10 | H87: 41.55 | I87: 44.25 | J87: 44.80 | K87: 45.60 | L87: 44 | M87: 42.65 | N87: 176244000 | O87: 1.54%
A88: 78 | B88: Oil_Gas | C88: IGL | D88: 334.85 | E88: 334.32 | F88: 332.23 | G88: 329.62 | H88: 327.53 | I88: 336.93 | J88: 339.02 | K88: 341.63 | L88: 336.4 | M88: 331.7 | N88: 4020500 | O88: 0.07%
A89: 79 | B89: Others | C89: INDIGO | D89: 1670.60 | E89: 1675.23 | F89: 1655.97 | G89: 1641.33 | H89: 1622.07 | I89: 1689.87 | J89: 1709.13 | K89: 1723.77 | L89: 1694.5 | M89: 1660.6 | N89: 2763600 | O89: -0.11%
A90: 80 | B90: Banking | C90: INDUSINDBK | D90: 1375.25 | E90: 1369.23 | F90: 1352.47 | G90: 1329.68 | H90: 1312.92 | I90: 1392.02 | J90: 1408.78 | K90: 1431.57 | L90: 1386 | M90: 1346.45 | N90: 13532400 | O90: -0.66%
A91: 81 | B91: Telecom | C91: INFRATEL | D91: 254.40 | E91: 253.70 | F91: 251.90 | G91: 249.40 | H91: 247.60 | I91: 256.20 | J91: 258.00 | K91: 260.50 | L91: 255.5 | M91: 251.2 | N91: 7328000 | O91: -2.08%
A92: 82 | B92: Technology | C92: INFY | D92: 823.40 | E92: 823.95 | F92: 816.95 | G92: 810.50 | H92: 803.50 | I92: 830.40 | J92: 837.40 | K92: 843.85 | L92: 830.95 | M92: 817.5 | N92: 57742800 | O92: -1.05%
A93: 83 | B93: Oil_Gas | C93: IOC | D93: 126.50 | E93: 127.38 | F93: 124.82 | G93: 123.13 | H93: 120.57 | I93: 129.07 | J93: 131.63 | K93: 133.32 | L93: 129.95 | M93: 125.7 | N93: 49199500 | O93: 3.82%
A94: 84 | B94: FMCG | C94: ITC | D94: 244.65 | E94: 244.90 | F94: 243.65 | G94: 242.65 | H94: 241.40 | I94: 245.90 | J94: 247.15 | K94: 248.15 | L94: 246.15 | M94: 243.9 | N94: 104277600 | O94: 2.41%
A95: 85 | B95: Metals | C95: JINDALSTEL | D95: 107.95 | E95: 104.55 | F95: 99.80 | G95: 91.65 | H95: 86.90 | I95: 112.70 | J95: 117.45 | K95: 125.60 | L95: 109.3 | M95: 96.4 | N95: 37027200 | O95: -3.63%
A96: 86 | B96: Metals | C96: JSWSTEEL | D96: 228.65 | E96: 226.62 | F96: 223.28 | G96: 217.92 | H96: 214.58 | I96: 231.98 | J96: 235.32 | K96: 240.68 | L96: 229.95 | M96: 221.25 | N96: 61454000 | O96: 4.04%
A97: 87 | B97: Others | C97: JUBLFOOD | D97: 1241.75 | E97: 1228.13 | F97: 1209.02 | G97: 1176.28 | H97: 1157.17 | I97: 1260.87 | J97: 1279.98 | K97: 1312.72 | L97: 1247.25 | M97: 1195.4 | N97: 2969000 | O97: 6.66%
A98: 88 | B98: Others | C98: JUSTDIAL | D98: 717.10 | E98: 717.33 | F98: 710.87 | G98: 704.63 | H98: 698.17 | I98: 723.57 | J98: 730.03 | K98: 736.27 | L98: 723.8 | M98: 711.1 | N98: 2360400 | O98: -0.77%
A99: 89 | B99: Others | C99: KAJARIACER | D99: 494.00 | E99: 498.48 | F99: 487.02 | G99: 480.03 | H99: 468.57 | I99: 505.47 | J99: 516.93 | K99: 523.92 | L99: 509.95 | M99: 491.5 | N99: 855400 | O99: 2.02%
A100: 90 | B100: Banking | C100: KOTAKBANK | D100: 1477.55 | E100: 1474.35 | F100: 1466.20 | G100: 1454.85 | H100: 1446.70 | I100: 1485.70 | J100: 1493.85 | K100: 1505.20 | L100: 1482.5 | M100: 1463 | N100: 9622400 | O100: -0.89%
A101: 91 | B101: Finance | C101: L&TFH | D101: 97.05 | E101: 96.13 | F101: 93.87 | G101: 90.68 | H101: 88.42 | I101: 99.32 | J101: 101.58 | K101: 104.77 | L101: 98.4 | M101: 92.95 | N101: 35118000 | O101: -2.02%
A102: 92 | B102: Finance | C102: LICHSGFIN | D102: 403.75 | E102: 403.53 | F102: 399.47 | G102: 395.18 | H102: 391.12 | I102: 407.82 | J102: 411.88 | K102: 416.17 | L102: 407.6 | M102: 399.25 | N102: 11764500 | O102: -0.15%
A103: 93 | B103: Capital_Goods | C103: LT | D103: 1364.65 | E103: 1369.70 | F103: 1353.45 | G103: 1342.25 | H103: 1326.00 | I103: 1380.90 | J103: 1397.15 | K103: 1408.35 | L103: 1385.95 | M103: 1358.5 | N103: 14247375 | O103: -0.07%
A104: 94 | B104: Pharma | C104: LUPIN | D104: 762.95 | E104: 764.50 | F104: 757.65 | G104: 752.35 | H104: 745.50 | I104: 769.80 | J104: 776.65 | K104: 781.95 | L104: 771.35 | M104: 759.2 | N104: 7204400 | O104: 2.59%
A105: 95 | B105: Automobile | C105: M&M | D105: 547.10 | E105: 544.92 | F105: 539.08 | G105: 531.07 | H105: 525.23 | I105: 552.93 | J105: 558.77 | K105: 566.78 | L105: 550.75 | M105: 536.9 | N105: 22882000 | O105: 2.56%
A106: 96 | B106: Finance | C106: M&MFIN | D106: 337.80 | E106: 334.90 | F106: 330.95 | G106: 324.10 | H106: 320.15 | I106: 341.75 | J106: 345.70 | K106: 352.55 | L106: 338.85 | M106: 328.05 | N106: 13951250 | O106: -2.44%
A107: 97 | B107: Finance | C107: MANAPPURAM | D107: 125.70 | E107: 125.35 | F107: 124.45 | G107: 123.20 | H107: 122.30 | I107: 126.60 | J107: 127.50 | K107: 128.75 | L107: 126.25 | M107: 124.1 | N107: 13908000 | O107: -3.22%
A108: 98 | B108: FMCG | C108: MARICO | D108: 387.25 | E108: 387.83 | F108: 385.17 | G108: 383.08 | H108: 380.42 | I108: 389.92 | J108: 392.58 | K108: 394.67 | L108: 390.5 | M108: 385.75 | N108: 12035400 | O108: -0.79%
A109: 99 | B109: Automobile | C109: MARUTI | D109: 6593.10 | E109: 6502.40 | F109: 6386.80 | G109: 6180.50 | H109: 6064.90 | I109: 6708.70 | J109: 6824.30 | K109: 7030.60 | L109: 6618 | M109: 6296.1 | N109: 2838600 | O109: 1.72%
A110: 100 | B110: FMCG | C110: MCDOWELL-N | D110: 619.20 | E110: 620.27 | F110: 615.08 | G110: 610.97 | H110: 605.78 | I110: 624.38 | J110: 629.57 | K110: 633.68 | L110: 625.45 | M110: 616.15 | N110: 11290000 | O110: 1.80%
A111: 101 | B111: Others | C111: MCX | D111: 969.55 | E111: 968.57 | F111: 943.13 | G111: 916.72 | H111: 891.28 | I111: 994.98 | J111: 1020.42 | K111: 1046.83 | L111: 994 | M111: 942.15 | N111: 1926400 | O111: -5.62%
A112: 102 | B112: Finance | C112: MFSL | D112: 403.15 | E112: 405.22 | F112: 398.83 | G112: 394.52 | H112: 388.13 | I112: 409.53 | J112: 415.92 | K112: 420.23 | L112: 411.6 | M112: 400.9 | N112: 3075600 | O112: 4.27%
A113: 103 | B113: Oil_Gas | C113: MGL | D113: 854.55 | E113: 854.08 | F113: 848.72 | G113: 842.88 | H113: 837.52 | I113: 859.92 | J113: 865.28 | K113: 871.12 | L113: 859.45 | M113: 848.25 | N113: 2205600 | O113: 0.05%
A114: 104 | B114: Technology | C114: MINDTREE | D114: 682.10 | E114: 682.47 | F114: 677.83 | G114: 673.57 | H114: 668.93 | I114: 686.73 | J114: 691.37 | K114: 695.63 | L114: 687.1 | M114: 678.2 | N114: 1671000 | O114: -2.14%
A115: 105 | B115: Automobile | C115: MOTHERSUMI | D115: 103.75 | E115: 103.03 | F115: 100.62 | G115: 97.48 | H115: 95.07 | I115: 106.17 | J115: 108.58 | K115: 111.72 | L115: 105.45 | M115: 99.9 | N115: 35184600 | O115: 5.74%
A116: 106 | B116: Automobile | C116: MRF | D116: 60329.50 | E116: 59988.67 | F116: 59365.83 | G116: 58402.17 | H116: 57779.33 | I116: 60952.33 | J116: 61575.17 | K116: 62538.83 | L116: 60611.5 | M116: 59025 | N116: 18870 | O116: 7.34%
A117: 107 | B117: Finance | C117: MUTHOOTFIN | D117: 606.25 | E117: 606.18 | F117: 599.37 | G117: 592.48 | H117: 585.67 | I117: 613.07 | J117: 619.88 | K117: 626.77 | L117: 613 | M117: 599.3 | N117: 2308500 | O117: 1.25%
A118: 108 | B118: Metals | C118: NATIONALUM | D118: 44.60 | E118: 43.98 | F118: 43.17 | G118: 41.73 | H118: 40.92 | I118: 45.42 | J118: 46.23 | K118: 47.67 | L118: 44.8 | M118: 42.55 | N118: 30310000 | O118: -3.62%
A119: 109 | B119: Infrastructure | C119: NBCC | D119: 37.20 | E119: 37.25 | F119: 36.50 | G119: 35.80 | H119: 35.05 | I119: 37.95 | J119: 38.70 | K119: 39.40 | L119: 38 | M119: 36.55 | N119: 34204000 | O119: -0.64%
A120: 110 | B120: Infrastructure | C120: NCC | D120: 59.20 | E120: 59.63 | F120: 58.27 | G120: 57.33 | H120: 55.97 | I120: 60.57 | J120: 61.93 | K120: 62.87 | L120: 61 | M120: 58.7 | N120: 44048000 | O120: 7.86%
A121: 111 | B121: FMCG | C121: NESTLEIND | D121: 12769.80 | E121: 12774.92 | F121: 12679.88 | G121: 12589.97 | H121: 12494.93 | I121: 12864.83 | J121: 12959.87 | K121: 13049.78 | L121: 12869.95 | M121: 12685 | N121: 436550 | O121: -0.84%
A122: 112 | B122: Technology | C122: NIITTECH | D122: 1417.95 | E122: 1425.28 | F122: 1405.92 | G122: 1393.88 | H122: 1374.52 | I122: 1437.32 | J122: 1456.68 | K122: 1468.72 | L122: 1444.65 | M122: 1413.25 | N122: 864750 | O122: 3.69%
A123: 113 | B123: Metals | C123: NMDC | D123: 84.85 | E123: 84.43 | F123: 83.42 | G123: 81.98 | H123: 80.97 | I123: 85.87 | J123: 86.88 | K123: 88.32 | L123: 85.45 | M123: 83 | N123: 26952000 | O123: -0.40%
A124: 114 | B124: Power | C124: NTPC | D124: 124.85 | E124: 125.63 | F124: 123.42 | G124: 121.98 | H124: 119.77 | I124: 127.07 | J124: 129.28 | K124: 130.72 | L124: 127.85 | M124: 124.2 | N124: 68731200 | O124: -2.22%
A125: 115 | B125: Technology | C125: OFSS | D125: 3016.30 | E125: 3015.63 | F125: 2986.57 | G125: 2956.83 | H125: 2927.77 | I125: 3045.37 | J125: 3074.43 | K125: 3104.17 | L125: 3044.7 | M125: 2985.9 | N125: 157650 | O125: -1.68%
A126: 116 | B126: Oil_Gas | C126: OIL | D126: 150.45 | E126: 151.78 | F126: 147.92 | G126: 145.38 | H126: 141.52 | I126: 154.32 | J126: 158.18 | K126: 160.72 | L126: 155.65 | M126: 149.25 | N126: 7997847 | O126: 4.02%
A127: 117 | B127: Oil_Gas | C127: ONGC | D127: 126.15 | E127: 127.55 | F127: 124.10 | G127: 122.05 | H127: 118.60 | I127: 129.60 | J127: 133.05 | K127: 135.10 | L127: 131 | M127: 125.5 | N127: 65313750 | O127: -1.94%
A128: 118 | B128: Textile | C128: PAGEIND | D128: 18351.75 | E128: 18394.85 | F128: 18160.35 | G128: 17968.95 | H128: 17734.45 | I128: 18586.25 | J128: 18820.75 | K128: 19012.15 | L128: 18629.35 | M128: 18203.45 | N128: 199800 | O128: -1.39%
A129: 119 | B129: Pharma | C129: PEL | D129: 1982.60 | E129: 1962.33 | F129: 1933.67 | G129: 1884.73 | H129: 1856.07 | I129: 2011.27 | J129: 2039.93 | K129: 2088.87 | L129: 1991 | M129: 1913.4 | N129: 3529474 | O129: 3.50%
A130: 120 | B130: Oil_Gas | C130: PETRONET | D130: 266.55 | E130: 267.52 | F130: 264.38 | G130: 262.22 | H130: 259.08 | I130: 269.68 | J130: 272.82 | K130: 274.98 | L130: 270.65 | M130: 265.35 | N130: 14814000 | O130: 0.84%
A131: 121 | B131: Finance | C131: PFC | D131: 110.45 | E131: 110.98 | F131: 108.72 | G131: 106.98 | H131: 104.72 | I131: 112.72 | J131: 114.98 | K131: 116.72 | L131: 113.25 | M131: 109.25 | N131: 38353200 | O131: -0.74%
A132: 122 | B132: FMCG | C132: PIDILITIND | D132: 1379.50 | E132: 1379.42 | F132: 1371.28 | G132: 1363.07 | H132: 1354.93 | I132: 1387.63 | J132: 1395.77 | K132: 1403.98 | L132: 1387.55 | M132: 1371.2 | N132: 2368000 | O132: 3.14%
A133: 123 | B133: Banking | C133: PNB | D133: 65.10 | E133: 64.45 | F133: 63.55 | G133: 62.00 | H133: 61.10 | I133: 66.00 | J133: 66.90 | K133: 68.45 | L133: 65.35 | M133: 62.9 | N133: 101206000 | O133: -3.41%
A134: 124 | B134: Power | C134: POWERGRID | D134: 202.15 | E134: 202.53 | F134: 200.47 | G134: 198.78 | H134: 196.72 | I134: 204.22 | J134: 206.28 | K134: 207.97 | L134: 204.6 | M134: 200.85 | N134: 31264000 | O134: 2.41%
A135: 125 | B135: Media | C135: PVR | D135: 1578.85 | E135: 1573.40 | F135: 1550.90 | G135: 1522.95 | H135: 1500.45 | I135: 1601.35 | J135: 1623.85 | K135: 1651.80 | L135: 1595.9 | M135: 1545.45 | N135: 1080400 | O135: 4.89%
A136: 126 | B136: Cement | C136: RAMCOCEM | D136: 726.95 | E136: 724.80 | F136: 721.15 | G136: 715.35 | H136: 711.70 | I136: 730.60 | J136: 734.25 | K136: 740.05 | L136: 728.45 | M136: 719 | N136: 1412800 | O136: 0.06%
A137: 127 | B137: Textile | C137: RAYMOND | D137: 575.80 | E137: 573.20 | F137: 566.40 | G137: 557.00 | H137: 550.20 | I137: 582.60 | J137: 589.40 | K137: 598.80 | L137: 580 | M137: 563.8 | N137: 1371200 | O137: -0.75%
A138: 128 | B138: Banking | C138: RBLBANK | D138: 376.85 | E138: 371.50 | F138: 364.00 | G138: 351.15 | H138: 343.65 | I138: 384.35 | J138: 391.85 | K138: 404.70 | L138: 379 | M138: 358.65 | N138: 11548800 | O138: -5.48%
A139: 129 | B139: Power | C139: RECLTD | D139: 149.75 | E139: 150.18 | F139: 147.77 | G139: 145.78 | H139: 143.37 | I139: 152.17 | J139: 154.58 | K139: 156.57 | L139: 152.6 | M139: 148.2 | N139: 28440000 | O139: -1.04%
A140: 130 | B140: Finance | C140: RELCAPITAL | D140: 35.40 | E140: 35.98 | F140: 34.07 | G140: 32.73 | H140: 30.82 | I140: 37.32 | J140: 39.23 | K140: 40.57 | L140: 37.9 | M140: 34.65 | N140: 12600000 | O140: -2.39%
A141: 131 | B141: Oil_Gas | C141: RELIANCE | D141: 1237.65 | E141: 1236.22 | F141: 1227.43 | G141: 1217.22 | H141: 1208.43 | I141: 1246.43 | J141: 1255.22 | K141: 1265.43 | L141: 1245 | M141: 1226 | N141: 56342000 | O141: -0.00%
A142: 132 | B142: Power | C142: RELINFRA | D142: 40.60 | E142: 40.08 | F142: 38.67 | G142: 36.73 | H142: 35.32 | I142: 42.02 | J142: 43.43 | K142: 45.37 | L142: 41.5 | M142: 38.15 | N142: 12316000 | O142: -3.15%
A143: 133 | B143: Metals | C143: SAIL | D143: 34.15 | E143: 33.90 | F143: 33.25 | G143: 32.35 | H143: 31.70 | I143: 34.80 | J143: 35.45 | K143: 36.35 | L143: 34.55 | M143: 33 | N143: 89064000 | O143: 1.53%
A144: 134 | B144: Banking | C144: SBIN | D144: 285.50 | E144: 283.35 | F144: 280.80 | G144: 276.10 | H144: 273.55 | I144: 288.05 | J144: 290.60 | K144: 295.30 | L144: 285.9 | M144: 278.65 | N144: 103440000 | O144: -4.09%
A145: 135 | B145: Cement | C145: SHREECEM | D145: 18489.95 | E145: 18262.18 | F145: 17963.17 | G145: 17436.38 | H145: 17137.37 | I145: 18788.97 | J145: 19087.98 | K145: 19614.77 | L145: 18561.2 | M145: 17735.4 | N145: 177900 | O145: -4.53%
A146: 136 | B146: Capital_Goods | C146: SIEMENS | D146: 1228.35 | E146: 1230.77 | F146: 1220.08 | G146: 1211.82 | H146: 1201.13 | I146: 1239.03 | J146: 1249.72 | K146: 1257.98 | L146: 1241.45 | M146: 1222.5 | N146: 1118700 | O146: 2.26%
A147: 137 | B147: Textile | C147: SRF | D147: 2829.20 | E147: 2824.02 | F147: 2800.18 | G147: 2771.17 | H147: 2747.33 | I147: 2853.03 | J147: 2876.87 | K147: 2905.88 | L147: 2847.85 | M147: 2795 | N147: 829750 | O147: 2.66%
A148: 138 | B148: Finance | C148: SRTRANSFIN | D148: 1036.25 | E148: 1029.68 | F148: 1021.32 | G148: 1006.38 | H148: 998.02 | I148: 1044.62 | J148: 1052.98 | K148: 1067.92 | L148: 1038.05 | M148: 1014.75 | N148: 4260000 | O148: -3.05%
A149: 139 | B149: Pharma | C149: STAR | D149: 400.45 | E149: 399.95 | F149: 395.80 | G149: 391.15 | H149: 387.00 | I149: 404.60 | J149: 408.75 | K149: 413.40 | L149: 404.1 | M149: 395.3 | N149: 2119200 | O149: 0.57%
A150: 140 | B150: Pharma | C150: SUNPHARMA | D150: 424.10 | E150: 427.97 | F150: 419.23 | G150: 414.37 | H150: 405.63 | I150: 432.83 | J150: 441.57 | K150: 446.43 | L150: 436.7 | M150: 423.1 | N150: 51691200 | O150: 2.59%
A151: 141 | B151: Media | C151: SUNTV | D151: 446.05 | E151: 446.67 | F151: 440.23 | G151: 434.42 | H151: 427.98 | I151: 452.48 | J151: 458.92 | K151: 464.73 | L151: 453.1 | M151: 440.85 | N151: 5752000 | O151: -0.74%
A152: 142 | B152: Fertilisers | C152: TATACHEM | D152: 594.05 | E152: 592.77 | F152: 589.53 | G152: 585.02 | H152: 581.78 | I152: 597.28 | J152: 600.52 | K152: 605.03 | L152: 596 | M152: 588.25 | N152: 1747800 | O152: -2.56%
A153: 143 | B153: Technology | C153: TATAELXSI | D153: 647.75 | E153: 647.25 | F153: 639.50 | G153: 631.25 | H153: 623.50 | I153: 655.50 | J153: 663.25 | K153: 671.50 | L153: 655 | M153: 639 | N153: 1859400 | O153: 0.49%
A154: 144 | B154: FMCG | C154: TATAGLOBAL | D154: 259.95 | E154: 262.32 | F154: 256.23 | G154: 252.52 | H154: 246.43 | I154: 266.03 | J154: 272.12 | K154: 275.83 | L154: 268.4 | M154: 258.6 | N154: 10562400 | O154: 9.46%
A155: 145 | B155: Automobile | C155: TATAMOTORS | D155: 134.95 | E155: 132.07 | F155: 128.68 | G155: 122.42 | H155: 119.03 | I155: 138.33 | J155: 141.72 | K155: 147.98 | L155: 135.45 | M155: 125.8 | N155: 69204000 | O155: 5.25%
A156: 146 | B156: Automobile | C156: TATAMTRDVR | D156: 61.60 | E156: 60.15 | F156: 58.40 | G156: 55.20 | H156: 53.45 | I156: 63.35 | J156: 65.10 | K156: 68.30 | L156: 61.9 | M156: 56.95 | N156: 40734000 | O156: 2.82%
A157: 147 | B157: Power | C157: TATAPOWER | D157: 61.15 | E157: 60.80 | F157: 59.90 | G157: 58.65 | H157: 57.75 | I157: 62.05 | J157: 62.95 | K157: 64.20 | L157: 61.7 | M157: 59.55 | N157: 36243000 | O157: -2.47%
A158: 148 | B158: Metals | C158: TATASTEEL | D158: 368.55 | E158: 364.68 | F158: 359.37 | G158: 350.18 | H158: 344.87 | I158: 373.87 | J158: 379.18 | K158: 388.37 | L158: 370 | M158: 355.5 | N158: 32715935 | O158: -0.51%
A159: 149 | B159: Technology | C159: TCS | D159: 2163.10 | E159: 2171.43 | F159: 2136.67 | G159: 2110.23 | H159: 2075.47 | I159: 2197.87 | J159: 2232.63 | K159: 2259.07 | L159: 2206.2 | M159: 2145 | N159: 16974750 | O159: 2.16%
A160: 150 | B160: Technology | C160: TECHM | D160: 706.70 | E160: 712.42 | F160: 698.18 | G160: 689.67 | H160: 675.43 | I160: 720.93 | J160: 735.17 | K160: 743.68 | L160: 726.65 | M160: 703.9 | N160: 14822400 | O160: 3.10%
A161: 151 | B161: FMCG | C161: TITAN | D161: 1101.50 | E161: 1096.88 | F161: 1089.77 | G161: 1078.03 | H161: 1070.92 | I161: 1108.62 | J161: 1115.73 | K161: 1127.47 | L161: 1104 | M161: 1085.15 | N161: 9069750 | O161: 0.01%
A162: 152 | B162: Pharma | C162: TORNTPHARM | D162: 1705.50 | E162: 1714.17 | F162: 1691.33 | G162: 1677.17 | H162: 1654.33 | I162: 1728.33 | J162: 1751.17 | K162: 1765.33 | L162: 1737 | M162: 1700 | N162: 311500 | O162: -4.30%
A163: 153 | B163: Power | C163: TORNTPOWER | D163: 279.95 | E163: 281.23 | F163: 276.92 | G163: 273.88 | H163: 269.57 | I163: 284.27 | J163: 288.58 | K163: 291.62 | L163: 285.55 | M163: 278.2 | N163: 4446000 | O163: 0.82%
A164: 154 | B164: Automobile | C164: TVSMOTOR | D164: 402.30 | E164: 397.00 | F164: 389.80 | G164: 377.30 | H164: 370.10 | I164: 409.50 | J164: 416.70 | K164: 429.20 | L164: 404.2 | M164: 384.5 | N164: 7929900 | O164: -4.99%
A165: 155 | B165: FMCG | C165: UBL | D165: 1308.00 | E165: 1302.52 | F165: 1292.53 | G165: 1277.07 | H165: 1267.08 | I165: 1317.98 | J165: 1327.97 | K165: 1343.43 | L165: 1312.5 | M165: 1287.05 | N165: 1347500 | O165: 2.07%
A166: 156 | B166: Finance | C166: UJJIVAN | D166: 316.35 | E166: 313.43 | F166: 308.57 | G166: 300.78 | H166: 295.92 | I166: 321.22 | J166: 326.08 | K166: 333.87 | L166: 318.3 | M166: 305.65 | N166: 8059200 | O166: -8.15%
A167: 157 | B167: Cement | C167: ULTRACEMCO | D167: 3919.50 | E167: 3931.22 | F167: 3900.53 | G167: 3881.57 | H167: 3850.88 | I167: 3950.18 | J167: 3980.87 | K167: 3999.83 | L167: 3961.9 | M167: 3912.25 | N167: 3168000 | O167: 5.57%
A168: 158 | B168: Banking | C168: UNIONBANK | D168: 59.95 | E168: 58.85 | F168: 57.55 | G168: 55.15 | H168: 53.85 | I168: 61.25 | J168: 62.55 | K168: 64.95 | L168: 60.15 | M168: 56.45 | N168: 34244000 | O168: -5.81%
A169: 159 | B169: Fertilisers | C169: UPL | D169: 580.20 | E169: 583.22 | F169: 574.68 | G169: 569.17 | H169: 560.63 | I169: 588.73 | J169: 597.27 | K169: 602.78 | L169: 591.75 | M169: 577.7 | N169: 15384600 | O169: -0.40%
A170: 160 | B170: Metals | C170: VEDL | D170: 146.95 | E170: 146.18 | F170: 144.72 | G170: 142.48 | H170: 141.02 | I170: 148.42 | J170: 149.88 | K170: 152.12 | L170: 147.65 | M170: 143.95 | N170: 60954000 | O170: -1.01%
A171: 161 | B171: Capital_Goods | C171: VOLTAS | D171: 634.85 | E171: 637.35 | F171: 629.70 | G171: 624.55 | H171: 616.90 | I171: 642.50 | J171: 650.15 | K171: 655.30 | L171: 645 | M171: 632.2 | N171: 2658000 | O171: -2.46%
A172: 162 | B172: Technology | C172: WIPRO | D172: 248.70 | E172: 250.92 | F172: 245.78 | G172: 242.87 | H172: 237.73 | I172: 253.83 | J172: 258.97 | K172: 261.88 | L172: 256.05 | M172: 248 | N172: 32268800 | O172: -0.78%
A173: 163 | B173: Banking | C173: YESBANK | D173: 71.80 | E173: 70.10 | F173: 67.30 | G173: 62.80 | H173: 60.00 | I173: 74.60 | J173: 77.40 | K173: 81.90 | L173: 72.9 | M173: 65.6 | N173: 140687800 | O173: -2.14%
A174: 164 | B174: Media | C174: ZEEL | D174: 356.10 | E174: 359.32 | F174: 350.33 | G174: 344.57 | H174: 335.58 | I174: 365.08 | J174: 374.07 | K174: 379.83 | L174: 368.3 | M174: 353.55 | N174: 17072900 | O174: 1.43%
A190: Pivot Point: This is trigger point for intra day buy/sell based on the price range of the previous day
A191: As per the tool,the trader should take BUY position just above Pivot and keep the stop loss of pivot point and the first target would be Resistance 1(R1)
A192: If R1 is crossed then R2 becomes the next target with stop loss of at R1
A193: Similarly if price goes below pivot point then the trader should sell and keep a stop loss of pivot point and the first target would be S1
A194: If S1 is crossed then S2 becomes the next target with stop loss of at S1
A196: Disclaimer:
A197: This document has been prepared by the Retail Research Desk of Asit C Mehta
A198: Investment Intermediates Ltd. and is meant for use of the recipient only
A199: and is not for circulation. This document is not to be reported or
A200: copied or made available to others. It should not be considered to be
A201: taken as an offer to sell or a solicitation to buy any security. The
A202: information contained herein is from sources believed reliable. We do
A203: not represent that it is accurate or complete and it should not be
A204: relied upon as such. We may from time to time have positions in and buy
A205: and sell securities referred to herein

Sheet Cash Intra
M5: Back to Main Page
A6: FOR INTRA DAY TRADING | K6: =Main!B10 -> 2019-09-12
A8: Sr.no | B8: Scrip | C8: CLOSE RATE | D8: Pivot Point | E8: Supports | H8: Resistances
C9: Point | E9: S1 | F9: S2 | G9: S3 | H9: R1 | I9: R2 | J9: R3 | K9: HIGH | L9: LOW | M9: Total Trade Quanity in Lakhs
A10: 1 | B10: Nifty 50 | C10: 11035.7 | D10: 11034.05 | E10: 11013.30 | F10: 10990.90 | G10: 10970.15 | H10: 11056.45 | I10: 11077.20 | J10: 11099.60 | K10: 11054.8 | L10: 11011.65
A11: 2 | B11: Nifty Bank | C11: 27776.2 | D11: 27719.17 | E11: 27608.68 | F11: 27441.17 | G11: 27330.68 | H11: 27886.68 | I11: 27997.17 | J11: 28164.68 | K11: 27829.65 | L11: 27551.65
A12: 3 | B12: Nifty CPSE | C12: 1919.05 | D12: 1931.87 | E12: 1898.83 | F12: 1878.62 | G12: 1845.58 | H12: 1952.08 | I12: 1985.12 | J12: 2005.33 | K12: 1964.9 | L12: 1911.65
A13: 4 | B13: Nifty Infra | C13: 3074.55 | D13: 3078.68 | E13: 3060.52 | F13: 3046.48 | G13: 3028.32 | H13: 3092.72 | I13: 3110.88 | J13: 3124.92 | K13: 3096.85 | L13: 3064.65
A14: 5 | B14: Nifty IT | C14: 15701.8 | D14: 15775.43 | E14: 15595.67 | F14: 15489.53 | G14: 15309.77 | H14: 15881.57 | I14: 16061.33 | J14: 16167.47 | K14: 15955.2 | L14: 15669.3
A15: 6 | B15: Nifty PSE | C15: 3126.35 | D15: 3139.15 | E15: 3103.05 | F15: 3079.75 | G15: 3043.65 | H15: 3162.45 | I15: 3198.55 | J15: 3221.85 | K15: 3175.25 | L15: 3115.85
A16: 7 | B16: Nifty Midcap 50 | C16: 4365.1 | D16: 4351.85 | E16: 4333.95 | F16: 4302.80 | G16: 4284.90 | H16: 4383.00 | I16: 4400.90 | J16: 4432.05 | K16: 4369.75 | L16: 4320.7
A17: 8 | B17: ABB | C17: 1328.4 | D17: 1331.47 | E17: 1316.93 | F17: 1305.47 | G17: 1290.93 | H17: 1342.93 | I17: 1357.47 | J17: 1368.93 | K17: 1346 | L17: 1320 | M17: 0.35256
A18: 9 | B18: ACC | C18: 1485 | D18: 1484.87 | E18: 1475.73 | F18: 1466.47 | G18: 1457.33 | H18: 1494.13 | I18: 1503.27 | J18: 1512.53 | K18: 1494 | L18: 1475.6 | M18: 3.97144
A19: 10 | B19: AUBANK | C19: 662.6 | D19: 664.18 | E19: 658.52 | F19: 654.43 | G19: 648.77 | H19: 668.27 | I19: 673.93 | J19: 678.02 | K19: 669.85 | L19: 660.1 | M19: 0.77402
A20: 11 | B20: ADANIPORTS | C20: 373.35 | D20: 371.60 | E20: 368.25 | F20: 363.15 | G20: 359.80 | H20: 376.70 | I20: 380.05 | J20: 385.15 | K20: 374.95 | L20: 366.5 | M20: 33.41392
A21: 12 | B21: ADANIPOWER | C21: 63.75 | D21: 62.93 | E21: 61.37 | F21: 58.98 | G21: 57.42 | H21: 65.32 | I21: 66.88 | J21: 69.27 | K21: 64.5 | L21: 60.55 | M21: 155.89815
A22: 13 | B22: ABCAPITAL | C22: 96.65 | D22: 96.42 | E22: 95.33 | F22: 94.02 | G22: 92.93 | H22: 97.73 | I22: 98.82 | J22: 100.13 | K22: 97.5 | L22: 95.1 | M22: 14.48632
A23: 14 | B23: ABFRL | C23: 187.65 | D23: 188.78 | E23: 185.97 | F23: 184.28 | G23: 181.47 | H23: 190.47 | I23: 193.28 | J23: 194.97 | K23: 191.6 | L23: 187.1 | M23: 2.96934
A24: 15 | B24: AJANTPHARM | C24: 1012.85 | D24: 1014.13 | E24: 1002.27 | F24: 991.68 | G24: 979.82 | H24: 1024.72 | I24: 1036.58 | J24: 1047.17 | K24: 1026 | L24: 1003.55 | M24: 0.76103
A25: 16 | B25: ALKEM | C25: 1847.65 | D25: 1835.50 | E25: 1821.00 | F25: 1794.35 | G25: 1779.85 | H25: 1862.15 | I25: 1876.65 | J25: 1903.30 | K25: 1850 | L25: 1808.85 | M25: 0.16086
A26: 17 | B26: AMARAJABAT | C26: 657.4 | D26: 652.80 | E26: 645.90 | F26: 634.40 | G26: 627.50 | H26: 664.30 | I26: 671.20 | J26: 682.70 | K26: 659.7 | L26: 641.3 | M26: 5.37132
A27: 18 | B27: AMBUJACEM | C27: 197.35 | D27: 197.15 | E27: 195.95 | F27: 194.55 | G27: 193.35 | H27: 198.55 | I27: 199.75 | J27: 201.15 | K27: 198.35 | L27: 195.75 | M27: 17.46891
A28: 19 | B28: APOLLOHOSP | C28: 1497.2 | D28: 1494.65 | E28: 1476.60 | F28: 1456.00 | G28: 1437.95 | H28: 1515.25 | I28: 1533.30 | J28: 1553.90 | K28: 1512.7 | L28: 1474.05 | M28: 6.26957
A29: 20 | B29: APOLLOTYRE | C29: 179.1 | D29: 178.43 | E29: 176.87 | F29: 174.63 | G29: 173.07 | H29: 180.67 | I29: 182.23 | J29: 184.47 | K29: 180 | L29: 176.2 | M29: 21.19204
A30: 21 | B30: ASHOKLEY | C30: 63.7 | D30: 62.87 | E30: 61.03 | F30: 58.37 | G30: 56.53 | H30: 65.53 | I30: 67.37 | J30: 70.03 | K30: 64.7 | L30: 60.2 | M30: 621.92949
A31: 22 | B31: ASIANPAINT | C31: 1561.45 | D31: 1556.37 | E31: 1547.73 | F31: 1534.02 | G31: 1525.38 | H31: 1570.08 | I31: 1578.72 | J31: 1592.43 | K31: 1565 | L31: 1542.65 | M31: 15.413
A32: 23 | B32: AUROPHARMA | C32: 628.4 | D32: 626.90 | E32: 623.50 | F32: 618.60 | G32: 615.20 | H32: 631.80 | I32: 635.20 | J32: 640.10 | K32: 630.3 | L32: 622 | M32: 13.26159
A33: 24 | B33: DMART | C33: 1571.05 | D33: 1571.02 | E33: 1555.03 | F33: 1539.02 | G33: 1523.03 | H33: 1587.03 | I33: 1603.02 | J33: 1619.03 | K33: 1587 | L33: 1555 | M33: 3.04927
A34: 25 | B34: AXISBANK | C34: 681.7 | D34: 678.73 | E34: 673.97 | F34: 666.23 | G34: 661.47 | H34: 686.47 | I34: 691.23 | J34: 698.97 | K34: 683.5 | L34: 671 | M34: 59.66906
A35: 26 | B35: BAJAJ-AUTO | C35: 2908.4 | D35: 2880.28 | E35: 2840.12 | F35: 2771.83 | G35: 2731.67 | H35: 2948.57 | I35: 2988.73 | J35: 3057.02 | K35: 2920.45 | L35: 2812 | M35: 12.53636
A36: 27 | B36: BAJFINANCE | C36: 3416.4 | D36: 3419.23 | E36: 3382.47 | F36: 3348.53 | G36: 3311.77 | H36: 3453.17 | I36: 3489.93 | J36: 3523.87 | K36: 3456 | L36: 3385.3 | M36: 13.01112
A37: 28 | B37: BAJAJFINSV | C37: 7354.2 | D37: 7356.07 | E37: 7293.13 | F37: 7232.07 | G37: 7169.13 | H37: 7417.13 | I37: 7480.07 | J37: 7541.13 | K37: 7419 | L37: 7295 | M37: 3.48066
A38: 29 | B38: BAJAJHLDNG | C38: 3316.4 | D38: 3319.38 | E38: 3298.07 | F38: 3279.73 | G38: 3258.42 | H38: 3337.72 | I38: 3359.03 | J38: 3377.37 | K38: 3340.7 | L38: 3301.05 | M38: 0.10121
A39: 30 | B39: BALKRISIND | C39: 745.05 | D39: 742.60 | E39: 737.70 | F39: 730.35 | G39: 725.45 | H39: 749.95 | I39: 754.85 | J39: 762.20 | K39: 747.5 | L39: 735.25 | M39: 2.72723
A40: 31 | B40: BANDHANBNK | C40: 449.1 | D40: 452.98 | E40: 442.77 | F40: 436.43 | G40: 426.22 | H40: 459.32 | I40: 469.53 | J40: 475.87 | K40: 463.2 | L40: 446.65 | M40: 14.84769
A41: 32 | B41: BANKBARODA | C41: 99.05 | D41: 98.08 | E41: 96.52 | F41: 93.98 | G41: 92.42 | H41: 100.62 | I41: 102.18 | J41: 104.72 | K41: 99.65 | L41: 95.55 | M41: 218.86257
A42: 33 | B42: BANKINDIA | C42: 68.15 | D42: 67.48 | E42: 66.52 | F42: 64.88 | G42: 63.92 | H42: 69.12 | I42: 70.08 | J42: 71.72 | K42: 68.45 | L42: 65.85 | M42: 68.13652
A43: 34 | B43: BATAINDIA | C43: 1572.2 | D43: 1567.27 | E43: 1560.03 | F43: 1547.87 | G43: 1540.63 | H43: 1579.43 | I43: 1586.67 | J43: 1598.83 | K43: 1574.5 | L43: 1555.1 | M43: 5.23795
A44: 35 | B44: BERGEPAINT | C44: 369.9 | D44: 368.07 | E44: 365.28 | F44: 360.67 | G44: 357.88 | H44: 372.68 | I44: 375.47 | J44: 380.08 | K44: 370.85 | L44: 363.45 | M44: 6.93831
A45: 36 | B45: BEL | C45: 107.95 | D45: 108.83 | E45: 106.32 | F45: 104.68 | G45: 102.17 | H45: 110.47 | I45: 112.98 | J45: 114.62 | K45: 111.35 | L45: 107.2 | M45: 94.53974
A46: 37 | B46: BHARATFORG | C46: 411.45 | D46: 408.02 | E46: 402.73 | F46: 394.02 | G46: 388.73 | H46: 416.73 | I46: 422.02 | J46: 430.73 | K46: 413.3 | L46: 399.3 | M46: 17.55539
A47: 38 | B47: BHEL | C47: 51.95 | D47: 51.52 | E47: 50.73 | F47: 49.52 | G47: 48.73 | H47: 52.73 | I47: 53.52 | J47: 54.73 | K47: 52.3 | L47: 50.3 | M47: 119.51914
A48: 39 | B48: BPCL | C48: 386.1 | D48: 384.17 | E48: 380.43 | F48: 374.77 | G48: 371.03 | H48: 389.83 | I48: 393.57 | J48: 399.23 | K48: 387.9 | L48: 378.5 | M48: 46.93876
A49: 40 | B49: BHARTIARTL | C49: 355.1 | D49: 356.08 | E49: 350.22 | F49: 345.33 | G49: 339.47 | H49: 360.97 | I49: 366.83 | J49: 371.72 | K49: 361.95 | L49: 351.2 | M49: 48.1043
A50: 41 | B50: INFRATEL | C50: 253.2 | D50: 252.62 | E50: 250.43 | F50: 247.67 | G50: 245.48 | H50: 255.38 | I50: 257.57 | J50: 260.33 | K50: 254.8 | L50: 249.85 | M50: 18.22217
A51: 42 | B51: BIOCON | C51: 234.8 | D51: 235.22 | E51: 231.63 | F51: 228.47 | G51: 224.88 | H51: 238.38 | I51: 241.97 | J51: 245.13 | K51: 238.8 | L51: 232.05 | M51: 34.50784
A52: 43 | B52: BBTC | C52: 1023.85 | D52: 1024.30 | E52: 1003.60 | F52: 983.35 | G52: 962.65 | H52: 1044.55 | I52: 1065.25 | J52: 1085.50 | K52: 1045 | L52: 1004.05 | M52: 3.2627
A53: 44 | B53: BOSCHLTD | C53: 14249.25 | D53: 14264.75 | E53: 14034.50 | F53: 13819.75 | G53: 13589.50 | H53: 14479.50 | I53: 14709.75 | J53: 14924.50 | K53: 14495 | L53: 14050 | M53: 0.17322
A54: 45 | B54: BRITANNIA | C54: 2666.4 | D54: 2676.80 | E54: 2649.60 | F54: 2632.80 | G54: 2605.60 | H54: 2693.60 | I54: 2720.80 | J54: 2737.60 | K54: 2704 | L54: 2660 | M54: 3.34013
A55: 46 | B55: CADILAHC | C55: 239.6 | D55: 239.62 | E55: 236.73 | F55: 233.87 | G55: 230.98 | H55: 242.48 | I55: 245.37 | J55: 248.23 | K55: 242.5 | L55: 236.75 | M55: 14.64866
A56: 47 | B56: CANBK | C56: 204.5 | D56: 202.87 | E56: 199.73 | F56: 194.97 | G56: 191.83 | H56: 207.63 | I56: 210.77 | J56: 215.53 | K56: 206 | L56: 198.1 | M56: 82.73809
A57: 48 | B57: CASTROLIND | C57: 124.65 | D57: 124.22 | E57: 123.03 | F57: 121.42 | G57: 120.23 | H57: 125.83 | I57: 127.02 | J57: 128.63 | K57: 125.4 | L57: 122.6 | M57: 16.23827
A58: 49 | B58: CHOLAFIN | C58: 275.95 | D58: 274.78 | E58: 271.82 | F58: 267.68 | G58: 264.72 | H58: 278.92 | I58: 281.88 | J58: 286.02 | K58: 277.75 | L58: 270.65 | M58: 7.91262
A59: 50 | B59: CIPLA | C59: 471.8 | D59: 472.72 | E59: 467.13 | F59: 462.47 | G59: 456.88 | H59: 477.38 | I59: 482.97 | J59: 487.63 | K59: 478.3 | L59: 468.05 | M59: 9.9641
A60: 51 | B60: COALINDIA | C60: 196.7 | D60: 198.42 | E60: 193.83 | F60: 190.97 | G60: 186.38 | H60: 201.28 | I60: 205.87 | J60: 208.73 | K60: 203 | L60: 195.55 | M60: 87.55389
A61: 52 | B61: COLPAL | C61: 1236 | D61: 1245.13 | E61: 1222.77 | F61: 1209.53 | G61: 1187.17 | H61: 1258.37 | I61: 1280.73 | J61: 1293.97 | K61: 1267.5 | L61: 1231.9 | M61: 3.44765
A62: 53 | B62: CONCOR | C62: 517.85 | D62: 515.72 | E62: 510.18 | F62: 502.52 | G62: 496.98 | H62: 523.38 | I62: 528.92 | J62: 536.58 | K62: 521.25 | L62: 508.05 | M62: 5.03353
A63: 54 | B63: COROMANDEL | C63: 379.85 | D63: 379.40 | E63: 376.10 | F63: 372.35 | G63: 369.05 | H63: 383.15 | I63: 386.45 | J63: 390.20 | K63: 382.7 | L63: 375.65 | M63: 2.95102
A64: 55 | B64: CROMPTON | C64: 232 | D64: 233.17 | E64: 229.88 | F64: 227.77 | G64: 224.48 | H64: 235.28 | I64: 238.57 | J64: 240.68 | K64: 236.45 | L64: 231.05 | M64: 2.0938
A65: 56 | B65: CUMMINSIND | C65: 582.15 | D65: 580.68 | E65: 573.07 | F65: 563.98 | G65: 556.37 | H65: 589.77 | I65: 597.38 | J65: 606.47 | K65: 588.3 | L65: 571.6 | M65: 4.05311
A66: 57 | B66: DLF | C66: 160.4 | D66: 159.37 | E66: 154.43 | F66: 148.47 | G66: 143.53 | H66: 165.33 | I66: 170.27 | J66: 176.23 | K66: 164.3 | L66: 153.4 | M66: 155.62134
A67: 58 | B67: DABUR | C67: 449.1 | D67: 446.93 | E67: 443.87 | F67: 438.63 | G67: 435.57 | H67: 452.17 | I67: 455.23 | J67: 460.47 | K67: 450 | L67: 441.7 | M67: 30.44215
A68: 59 | B68: DHFL | C68: 50.7 | D68: 50.72 | E68: 48.68 | F68: 46.67 | G68: 44.63 | H68: 52.73 | I68: 54.77 | J68: 56.78 | K68: 52.75 | L68: 48.7 | M68: 214.01494
A69: 60 | B69: DBL | C69: 456 | D69: 450.62 | E69: 434.33 | F69: 412.67 | G69: 396.38 | H69: 472.28 | I69: 488.57 | J69: 510.23 | K69: 466.9 | L69: 428.95 | M69: 13.88275
A70: 61 | B70: DISHTV | C70: 23.4 | D70: 23.63 | E70: 22.87 | F70: 22.33 | G70: 21.57 | H70: 24.17 | I70: 24.93 | J70: 25.47 | K70: 24.4 | L70: 23.1 | M70: 219.28939
A71: 62 | B71: DIVISLAB | C71: 1616.55 | D71: 1620.63 | E71: 1602.32 | F71: 1588.08 | G71: 1569.77 | H71: 1634.87 | I71: 1653.18 | J71: 1667.42 | K71: 1638.95 | L71: 1606.4 | M71: 4.64103
A72: 63 | B72: DRREDDY | C72: 2761 | D72: 2760.13 | E72: 2741.87 | F72: 2722.73 | G72: 2704.47 | H72: 2779.27 | I72: 2797.53 | J72: 2816.67 | K72: 2778.4 | L72: 2741 | M72: 6.34349
A73: 64 | B73: EDELWEISS | C73: 104.55 | D73: 105.10 | E73: 102.95 | F73: 101.35 | G73: 99.20 | H73: 106.70 | I73: 108.85 | J73: 110.45 | K73: 107.25 | L73: 103.5 | M73: 28.68429
A74: 65 | B74: EICHERMOT | C74: 17013.65 | D74: 16771.65 | E74: 16453.30 | F74: 15892.95 | G74: 15574.60 | H74: 17332.00 | I74: 17650.35 | J74: 18210.70 | K74: 17090 | L74: 16211.3 | M74: 2.59782
A75: 66 | B75: ENDURANCE | C75: 990.65 | D75: 977.07 | E75: 953.78 | F75: 916.92 | G75: 893.63 | H75: 1013.93 | I75: 1037.22 | J75: 1074.08 | K75: 1000.35 | L75: 940.2 | M75: 0.27049
A76: 67 | B76: ENGINERSIN | C76: 112.35 | D76: 112.07 | E76: 110.63 | F76: 108.92 | G76: 107.48 | H76: 113.78 | I76: 115.22 | J76: 116.93 | K76: 113.5 | L76: 110.35 | M76: 17.00031
A77: 68 | B77: ESCORTS | C77: 530.7 | D77: 521.27 | E77: 509.53 | F77: 488.37 | G77: 476.63 | H77: 542.43 | I77: 554.17 | J77: 575.33 | K77: 533 | L77: 500.1 | M77: 62.27497
A78: 69 | B78: EXIDEIND | C78: 183.2 | D78: 183.15 | E78: 181.30 | F78: 179.40 | G78: 177.55 | H78: 185.05 | I78: 186.90 | J78: 188.80 | K78: 185 | L78: 181.25 | M78: 20.38604
A79: 70 | B79: FEDERALBNK | C79: 85.7 | D79: 85.75 | E79: 84.75 | F79: 83.80 | G79: 82.80 | H79: 86.70 | I79: 87.70 | J79: 88.65 | K79: 86.75 | L79: 84.8 | M79: 92.84318
A80: 71 | B80: FCONSUMER | C80: 29 | D80: 28.55 | E80: 27.35 | F80: 25.70 | G80: 24.50 | H80: 30.20 | I80: 31.40 | J80: 33.05 | K80: 29.75 | L80: 26.9 | M80: 19.18775
A81: 72 | B81: FRETAIL | C81: 405.6 | D81: 406.33 | E81: 403.27 | F81: 400.93 | G81: 397.87 | H81: 408.67 | I81: 411.73 | J81: 414.07 | K81: 409.4 | L81: 404 | M81: 2.81764
A82: 73 | B82: GAIL | C82: 128.45 | D82: 129.53 | E82: 127.07 | F82: 125.68 | G82: 123.22 | H82: 130.92 | I82: 133.38 | J82: 134.77 | K82: 132 | L82: 128.15 | M82: 123.66789
A83: 74 | B83: GMRINFRA | C83: 16.9 | D83: 16.52 | E83: 16.03 | F83: 15.17 | G83: 14.68 | H83: 17.38 | I83: 17.87 | J83: 18.73 | K83: 17 | L83: 15.65 | M83: 183.99337
A84: 75 | B84: GICRE | C84: 177.2 | D84: 176.62 | E84: 173.53 | F84: 169.87 | G84: 166.78 | H84: 180.28 | I84: 183.37 | J84: 187.03 | K84: 179.7 | L84: 172.95 | M84: 0.96926
A85: 76 | B85: GSKCONS | C85: 7880.5 | D85: 7907.18 | E85: 7833.37 | F85: 7786.23 | G85: 7712.42 | H85: 7954.32 | I85: 8028.13 | J85: 8075.27 | K85: 7981 | L85: 7860.05 | M85: 0.21039
A86: 77 | B86: GLENMARK | C86: 384.75 | D86: 386.08 | E86: 381.17 | F86: 377.58 | G86: 372.67 | H86: 389.67 | I86: 394.58 | J86: 398.17 | K86: 391 | L86: 382.5 | M86: 12.06799
A87: 78 | B87: GODREJAGRO | C87: 468.55 | D87: 467.67 | E87: 460.33 | F87: 452.12 | G87: 444.78 | H87: 475.88 | I87: 483.22 | J87: 491.43 | K87: 475 | L87: 459.45 | M87: 0.31494
A88: 79 | B88: GODREJCP | C88: 610.9 | D88: 607.95 | E88: 597.00 | F88: 583.10 | G88: 572.15 | H88: 621.85 | I88: 632.80 | J88: 646.70 | K88: 618.9 | L88: 594.05 | M88: 13.85716
A89: 80 | B89: GODREJIND | C89: 399.75 | D89: 400.62 | E89: 397.13 | F89: 394.52 | G89: 391.03 | H89: 403.23 | I89: 406.72 | J89: 409.33 | K89: 404.1 | L89: 398 | M89: 5.76796
A90: 81 | B90: GRAPHITE | C90: 282.95 | D90: 283.85 | E90: 278.20 | F90: 273.45 | G90: 267.80 | H90: 288.60 | I90: 294.25 | J90: 299.00 | K90: 289.5 | L90: 279.1 | M90: 14.80259
A91: 82 | B91: GRASIM | C91: 711.5 | D91: 711.60 | E91: 706.70 | F91: 701.90 | G91: 697.00 | H91: 716.40 | I91: 721.30 | J91: 726.10 | K91: 716.5 | L91: 706.8 | M91: 12.93216
A92: 83 | B92: GRUH | C92: 255.15 | D92: 254.05 | E92: 252.10 | F92: 249.05 | G92: 247.10 | H92: 257.10 | I92: 259.05 | J92: 262.10 | K92: 256 | L92: 251 | M92: 14.08577
A93: 84 | B93: GSPL | C93: 218.5 | D93: 219.55 | E93: 215.45 | F93: 212.40 | G93: 208.30 | H93: 222.60 | I93: 226.70 | J93: 229.75 | K93: 223.65 | L93: 216.5 | M93: 8.56135
A94: 85 | B94: HEG | C94: 1044.4 | D94: 1043.22 | E94: 1021.43 | F94: 998.47 | G94: 976.68 | H94: 1066.18 | I94: 1087.97 | J94: 1110.93 | K94: 1065 | L94: 1020.25 | M94: 3.36974
A95: 86 | B95: HCLTECH | C95: 1057.7 | D95: 1068.10 | E95: 1042.20 | F95: 1026.70 | G95: 1000.80 | H95: 1083.60 | I95: 1109.50 | J95: 1125.00 | K95: 1094 | L95: 1052.6 | M95: 26.62753
A96: 87 | B96: HDFCAMC | C96: 2657.75 | D96: 2666.25 | E96: 2643.50 | F96: 2629.25 | G96: 2606.50 | H96: 2680.50 | I96: 2703.25 | J96: 2717.50 | K96: 2689 | L96: 2652 | M96: 3.16636
A97: 88 | B97: HDFCBANK | C97: 2251.3 | D97: 2255.48 | E97: 2236.97 | F97: 2222.63 | G97: 2204.12 | H97: 2269.82 | I97: 2288.33 | J97: 2302.67 | K97: 2274 | L97: 2241.15 | M97: 38.02279
A98: 89 | B98: HDFCLIFE | C98: 537.9 | D98: 537.13 | E98: 533.77 | F98: 529.63 | G98: 526.27 | H98: 541.27 | I98: 544.63 | J98: 548.77 | K98: 540.5 | L98: 533 | M98: 25.05388
A99: 90 | B99: HAVELLS | C99: 665.1 | D99: 661.95 | E99: 656.60 | F99: 648.10 | G99: 642.75 | H99: 670.45 | I99: 675.80 | J99: 684.30 | K99: 667.3 | L99: 653.45 | M99: 14.08705
A100: 91 | B100: HEROMOTOCO | C100: 2760.15 | D100: 2736.72 | E100: 2703.43 | F100: 2646.72 | G100: 2613.43 | H100: 2793.43 | I100: 2826.72 | J100: 2883.43 | K100: 2770 | L100: 2680 | M100: 10.63773
A101: 92 | B101: HEXAWARE | C101: 380.05 | D101: 380.50 | E101: 378.00 | F101: 375.95 | G101: 373.45 | H101: 382.55 | I101: 385.05 | J101: 387.10 | K101: 383 | L101: 378.45 | M101: 4.52083
A102: 93 | B102: HINDALCO | C102: 193.45 | D102: 192.22 | E102: 190.23 | F102: 187.02 | G102: 185.03 | H102: 195.43 | I102: 197.42 | J102: 200.63 | K102: 194.2 | L102: 189 | M102: 59.04788
A103: 94 | B103: HINDPETRO | C103: 266 | D103: 264.33 | E103: 261.27 | F103: 256.53 | G103: 253.47 | H103: 269.07 | I103: 272.13 | J103: 276.87 | K103: 267.4 | L103: 259.6 | M103: 46.06154
A104: 95 | B104: HINDUNILVR | C104: 1824.3 | D104: 1829.72 | E104: 1811.88 | F104: 1799.47 | G104: 1781.63 | H104: 1842.13 | I104: 1859.97 | J104: 1872.38 | K104: 1847.55 | L104: 1817.3 | M104: 10.55039
A105: 96 | B105: HINDZINC | C105: 214.6 | D105: 215.65 | E105: 212.40 | F105: 210.20 | G105: 206.95 | H105: 217.85 | I105: 221.10 | J105: 223.30 | K105: 218.9 | L105: 213.45 | M105: 7.79326
A106: 97 | B106: HUDCO | C106: 37.35 | D106: 37.38 | E106: 36.07 | F106: 34.78 | G106: 33.47 | H106: 38.67 | I106: 39.98 | J106: 41.27 | K106: 38.7 | L106: 36.1 | M106: 18.62969
A107: 98 | B107: HDFC | C107: 2071.85 | D107: 2070.50 | E107: 2054.45 | F107: 2037.05 | G107: 2021.00 | H107: 2087.90 | I107: 2103.95 | J107: 2121.35 | K107: 2086.55 | L107: 2053.1 | M107: 40.03713
A108: 99 | B108: ICICIBANK | C108: 394.6 | D108: 395.65 | E108: 392.30 | F108: 390.00 | G108: 386.65 | H108: 397.95 | I108: 401.30 | J108: 403.60 | K108: 399 | L108: 393.35 | M108: 174.63978
A109: 100 | B109: ICICIGI | C109: 1129.2 | D109: 1132.70 | E109: 1116.50 | F109: 1103.80 | G109: 1087.60 | H109: 1145.40 | I109: 1161.60 | J109: 1174.30 | K109: 1148.9 | L109: 1120 | M109: 188.80363
A110: 101 | B110: ICICIPRULI | C110: 422 | D110: 429.43 | E110: 412.87 | F110: 403.73 | G110: 387.17 | H110: 438.57 | I110: 455.13 | J110: 464.27 | K110: 446 | L110: 420.3 | M110: 46.46266
A111: 102 | B111: IDBI | C111: 28.3 | D111: 28.28 | E111: 27.77 | F111: 27.23 | G111: 26.72 | H111: 28.82 | I111: 29.33 | J111: 29.87 | K111: 28.8 | L111: 27.75 | M111: 53.18779
A112: 103 | B112: IDFCFIRSTB | C112: 43.85 | D112: 43.67 | E112: 43.18 | F112: 42.52 | G112: 42.03 | H112: 44.33 | I112: 44.82 | J112: 45.48 | K112: 44.15 | L112: 43 | M112: 111.40259
A113: 104 | B113: ITC | C113: 243.75 | D113: 244.07 | E113: 242.68 | F113: 241.62 | G113: 240.23 | H113: 245.13 | I113: 246.52 | J113: 247.58 | K113: 245.45 | L113: 243 | M113: 89.68683
A114: 105 | B114: IBULHSGFIN | C114: 431.45 | D114: 430.43 | E114: 423.17 | F114: 414.88 | G114: 407.62 | H114: 438.72 | I114: 445.98 | J114: 454.27 | K114: 437.7 | L114: 422.15 | M114: 162.1323
A115: 106 | B115: IBVENTURES | C115: 151.35 | D115: 153.03 | E115: 146.57 | F115: 141.78 | G115: 135.32 | H115: 157.82 | I115: 164.28 | J115: 169.07 | K115: 159.5 | L115: 148.25 | M115: 22.56771
A116: 107 | B116: INDIANB | C116: 167.3 | D116: 167.88 | E116: 164.87 | F116: 162.43 | G116: 159.42 | H116: 170.32 | I116: 173.33 | J116: 175.77 | K116: 170.9 | L116: 165.45 | M116: 13.18909
A117: 108 | B117: INDHOTEL | C117: 134.7 | D117: 134.75 | E117: 132.95 | F117: 131.20 | G117: 129.40 | H117: 136.50 | I117: 138.30 | J117: 140.05 | K117: 136.55 | L117: 133 | M117: 2.636
A118: 109 | B118: IOC | C118: 126.05 | D118: 126.58 | E118: 124.77 | F118: 123.48 | G118: 121.67 | H118: 127.87 | I118: 129.68 | J118: 130.97 | K118: 128.4 | L118: 125.3 | M118: 76.51186
A119: 110 | B119: IGL | C119: 336.55 | D119: 336.25 | E119: 333.70 | F119: 330.85 | G119: 328.30 | H119: 339.10 | I119: 341.65 | J119: 344.50 | K119: 338.8 | L119: 333.4 | M119: 15.62295
A120: 111 | B120: INDUSINDBK | C120: 1372.15 | D120: 1364.05 | E120: 1348.10 | F120: 1324.05 | G120: 1308.10 | H120: 1388.10 | I120: 1404.05 | J120: 1428.10 | K120: 1380 | L120: 1340 | M120: 29.5861
A121: 112 | B121: NAUKRI | C121: 1963.1 | D121: 1994.37 | E121: 1918.73 | F121: 1874.37 | G121: 1798.73 | H121: 2038.73 | I121: 2114.37 | J121: 2158.73 | K121: 2070 | L121: 1950 | M121: 3.70352
A122: 113 | B122: INFY | C122: 820.1 | D122: 820.93 | E122: 813.32 | F122: 806.53 | G122: 798.92 | H122: 827.72 | I122: 835.33 | J122: 842.12 | K122: 828.55 | L122: 814.15 | M122: 79.81036
A123: 114 | B123: INDIGO | C123: 1664.05 | D123: 1669.68 | E123: 1649.57 | F123: 1635.08 | G123: 1614.97 | H123: 1684.17 | I123: 1704.28 | J123: 1718.77 | K123: 1689.8 | L123: 1655.2 | M123: 6.10667
A124: 115 | B124: JSWENERGY | C124: 67.05 | D124: 67.15 | E124: 66.40 | F124: 65.75 | G124: 65.00 | H124: 67.80 | I124: 68.55 | J124: 69.20 | K124: 67.9 | L124: 66.5 | M124: 8.0974
A125: 116 | B125: JSWSTEEL | C125: 227.7 | D125: 225.60 | E125: 222.25 | F125: 216.80 | G125: 213.45 | H125: 231.05 | I125: 234.40 | J125: 239.85 | K125: 228.95 | L125: 220.15 | M125: 114.04495
A126: 117 | B126: JINDALSTEL | C126: 107.55 | D126: 104.32 | E126: 99.43 | F126: 91.32 | G126: 86.43 | H126: 112.43 | I126: 117.32 | J126: 125.43 | K126: 109.2 | L126: 96.2 | M126: 412.16573
A127: 118 | B127: JUBLFOOD | C127: 1257.05 | D127: 1242.57 | E127: 1220.13 | F127: 1183.22 | G127: 1160.78 | H127: 1279.48 | I127: 1301.92 | J127: 1338.83 | K127: 1265 | L127: 1205.65 | M127: 13.20551
A128: 119 | B128: JUBILANT | C128: 501.9 | D128: 507.97 | E128: 483.93 | F128: 465.97 | G128: 441.93 | H128: 525.93 | I128: 549.97 | J128: 567.93 | K128: 532 | L128: 490 | M128: 16.83491
A129: 120 | B129: KOTAKBANK | C129: 1475.2 | D129: 1471.03 | E129: 1463.17 | F129: 1451.13 | G129: 1443.27 | H129: 1483.07 | I129: 1490.93 | J129: 1502.97 | K129: 1478.9 | L129: 1459 | M129: 26.04896
A130: 121 | B130: L&TFH | C130: 96.65 | D130: 95.73 | E130: 93.52 | F130: 90.38 | G130: 88.17 | H130: 98.87 | I130: 101.08 | J130: 104.22 | K130: 97.95 | L130: 92.6 | M130: 128.95665
A131: 122 | B131: LTTS | C131: 1623.8 | D131: 1627.08 | E131: 1611.72 | F131: 1599.63 | G131: 1584.27 | H131: 1639.17 | I131: 1654.53 | J131: 1666.62 | K131: 1642.45 | L131: 1615 | M131: 0.77113
A132: 123 | B132: LICHSGFIN | C132: 402.65 | D132: 402.15 | E132: 398.30 | F132: 393.95 | G132: 390.10 | H132: 406.50 | I132: 410.35 | J132: 414.70 | K132: 406 | L132: 397.8 | M132: 20.75182
A133: 124 | B133: LTI | C133: 1638.4 | D133: 1648.50 | E133: 1622.00 | F133: 1605.60 | G133: 1579.10 | H133: 1664.90 | I133: 1691.40 | J133: 1707.80 | K133: 1675 | L133: 1632.1 | M133: 0.62379
A134: 125 | B134: LT | C134: 1363.65 | D134: 1367.82 | E134: 1351.83 | F134: 1340.02 | G134: 1324.03 | H134: 1379.63 | I134: 1395.62 | J134: 1407.43 | K134: 1383.8 | L134: 1356 | M134: 25.45642
A135: 126 | B135: LUPIN | C135: 759.55 | D135: 761.52 | E135: 754.03 | F135: 748.52 | G135: 741.03 | H135: 767.03 | I135: 774.52 | J135: 780.03 | K135: 769 | L135: 756 | M135: 11.0166
A136: 127 | B136: MRF | C136: 60101.95 | D136: 59752.33 | E136: 59224.67 | F136: 58347.38 | G136: 57819.72 | H136: 60629.62 | I136: 61157.28 | J136: 62034.57 | K136: 60280 | L136: 58875.05 | M136: 0.06205
A137: 128 | B137: MGL | C137: 851.8 | D137: 851.08 | E137: 845.62 | F137: 839.43 | G137: 833.97 | H137: 857.27 | I137: 862.73 | J137: 868.92 | K137: 856.55 | L137: 844.9 | M137: 3.6022
A138: 129 | B138: M&MFIN | C138: 336.55 | D138: 333.02 | E138: 328.23 | F138: 319.92 | G138: 315.13 | H138: 341.33 | I138: 346.12 | J138: 354.43 | K138: 337.8 | L138: 324.7 | M138: 16.99414
A139: 130 | B139: M&M | C139: 545.75 | D139: 542.40 | E139: 536.55 | F139: 527.35 | G139: 521.50 | H139: 551.60 | I139: 557.45 | J139: 566.65 | K139: 548.25 | L139: 533.2 | M139: 32.24627
A140: 131 | B140: MANAPPURAM | C140: 125.5 | D140: 125.18 | E140: 124.27 | F140: 123.03 | G140: 122.12 | H140: 126.42 | I140: 127.33 | J140: 128.57 | K140: 126.1 | L140: 123.95 | M140: 51.15124
A141: 132 | B141: MRPL | C141: 47.35 | D141: 47.12 | E141: 46.63 | F141: 45.92 | G141: 45.43 | H141: 47.83 | I141: 48.32 | J141: 49.03 | K141: 47.6 | L141: 46.4 | M141: 2.3291
A142: 133 | B142: MARICO | C142: 386.8 | D142: 387.47 | E142: 384.43 | F142: 382.07 | G142: 379.03 | H142: 389.83 | I142: 392.87 | J142: 395.23 | K142: 390.5 | L142: 385.1 | M142: 13.45221
A143: 134 | B143: MARUTI | C143: 6597.3 | D143: 6504.13 | E143: 6378.27 | F143: 6159.23 | G143: 6033.37 | H143: 6723.17 | I143: 6849.03 | J143: 7068.07 | K143: 6630 | L143: 6285.1 | M143: 24.92039
A144: 135 | B144: MFSL | C144: 401.1 | D144: 403.45 | E144: 396.90 | F144: 392.70 | G144: 386.15 | H144: 407.65 | I144: 414.20 | J144: 418.40 | K144: 410 | L144: 399.25 | M144: 6.9115
A145: 136 | B145: MINDTREE | C145: 679.65 | D145: 680.60 | E145: 675.25 | F145: 670.85 | G145: 665.50 | H145: 685.00 | I145: 690.35 | J145: 694.75 | K145: 685.95 | L145: 676.2 | M145: 3.1322
A146: 137 | B146: MOTHERSUMI | C146: 103.4 | D146: 102.60 | E146: 100.20 | F146: 97.00 | G146: 94.60 | H146: 105.80 | I146: 108.20 | J146: 111.40 | K146: 105 | L146: 99.4 | M146: 162.42254
A147: 138 | B147: MPHASIS | C147: 990.2 | D147: 989.40 | E147: 981.80 | F147: 973.40 | G147: 965.80 | H147: 997.80 | I147: 1005.40 | J147: 1013.80 | K147: 997 | L147: 981 | M147: 1.69049
A148: 139 | B148: MUTHOOTFIN | C148: 604.2 | D148: 604.82 | E148: 596.58 | F148: 588.97 | G148: 580.73 | H148: 612.43 | I148: 620.67 | J148: 628.28 | K148: 613.05 | L148: 597.2 | M148: 11.50631
A149: 140 | B149: NATCOPHARM | C149: 578.95 | D149: 581.60 | E149: 571.60 | F149: 564.25 | G149: 554.25 | H149: 588.95 | I149: 598.95 | J149: 606.30 | K149: 591.6 | L149: 574.25 | M149: 0.99368
A150: 141 | B150: NBCC | C150: 37.9 | D150: 37.92 | E150: 37.28 | F150: 36.67 | G150: 36.03 | H150: 38.53 | I150: 39.17 | J150: 39.78 | K150: 38.55 | L150: 37.3 | M150: 168.54106
A151: 142 | B151: NHPC | C151: 24.3 | D151: 24.30 | E151: 24.05 | F151: 23.80 | G151: 23.55 | H151: 24.55 | I151: 24.80 | J151: 25.05 | K151: 24.55 | L151: 24.05 | M151: 25.98979
A152: 143 | B152: NMDC | C152: 84.45 | D152: 84.20 | E152: 83.25 | F152: 82.05 | G152: 81.10 | H152: 85.40 | I152: 86.35 | J152: 87.55 | K152: 85.15 | L152: 83 | M152: 26.51115
A153: 144 | B153: NTPC | C153: 124.5 | D153: 125.30 | E153: 123.05 | F153: 121.60 | G153: 119.35 | H153: 126.75 | I153: 129.00 | J153: 130.45 | K153: 127.55 | L153: 123.85 | M153: 54.73674
A154: 145 | B154: NATIONALUM | C154: 44.35 | D154: 43.83 | E154: 43.02 | F154: 41.68 | G154: 40.87 | H154: 45.17 | I154: 45.98 | J154: 47.32 | K154: 44.65 | L154: 42.5 | M154: 67.33955
A155: 146 | B155: OBEROIRLTY | C155: 564.3 | D155: 548.43 | E155: 528.07 | F155: 491.83 | G155: 471.47 | H155: 584.67 | I155: 605.03 | J155: 641.27 | K155: 568.8 | L155: 512.2 | M155: 10.2763
A156: 147 | B156: ONGC | C156: 125.75 | D156: 127.27 | E156: 123.63 | F156: 121.52 | G156: 117.88 | H156: 129.38 | I156: 133.02 | J156: 135.13 | K156: 130.9 | L156: 125.15 | M156: 113.98745
A157: 148 | B157: OIL | C157: 149.7 | D157: 151.20 | E157: 147.00 | F157: 144.30 | G157: 140.10 | H157: 153.90 | I157: 158.10 | J157: 160.80 | K157: 155.4 | L157: 148.5 | M157: 14.07812
A158: 149 | B158: OFSS | C158: 3009.55 | D158: 3022.08 | E158: 2967.67 | F158: 2925.78 | G158: 2871.37 | H158: 3063.97 | I158: 3118.38 | J158: 3160.27 | K158: 3076.5 | L158: 2980.2 | M158: 0.27076
A159: 150 | B159: PIIND | C159: 1266.85 | D159: 1270.28 | E159: 1241.57 | F159: 1216.28 | G159: 1187.57 | H159: 1295.57 | I159: 1324.28 | J159: 1349.57 | K159: 1299 | L159: 1245 | M159: 1.7695
A160: 151 | B160: PNBHOUSING | C160: 634.65 | D160: 636.70 | E160: 626.40 | F160: 618.15 | G160: 607.85 | H160: 644.95 | I160: 655.25 | J160: 663.50 | K160: 647 | L160: 628.45 | M160: 0.81985
A161: 152 | B161: PAGEIND | C161: 18361.95 | D161: 18405.13 | E161: 18162.32 | F161: 17962.68 | G161: 17719.87 | H161: 18604.77 | I161: 18847.58 | J161: 19047.22 | K161: 18647.95 | L161: 18205.5 | M161: 0.22559
A162: 153 | B162: PETRONET | C162: 265.4 | D162: 266.42 | E162: 262.88 | F162: 260.37 | G162: 256.83 | H162: 268.93 | I162: 272.47 | J162: 274.98 | K162: 269.95 | L162: 263.9 | M162: 24.25611
A163: 154 | B163: PFIZER | C163: 3195.8 | D163: 3218.62 | E163: 3162.18 | F163: 3128.57 | G163: 3072.13 | H163: 3252.23 | I163: 3308.67 | J163: 3342.28 | K163: 3275.05 | L163: 3185 | M163: 0.27866
A164: 155 | B164: PIDILITIND | C164: 1374.9 | D164: 1374.62 | E164: 1366.28 | F164: 1357.67 | G164: 1349.33 | H164: 1383.23 | I164: 1391.57 | J164: 1400.18 | K164: 1382.95 | L164: 1366 | M164: 3.8659
A165: 156 | B165: PEL | C165: 1983.05 | D165: 1961.35 | E165: 1932.70 | F165: 1882.35 | G165: 1853.70 | H165: 2011.70 | I165: 2040.35 | J165: 2090.70 | K165: 1990 | L165: 1911 | M165: 14.14764
A166: 157 | B166: PFC | C166: 110.3 | D166: 110.78 | E166: 108.57 | F166: 106.83 | G166: 104.62 | H166: 112.52 | I166: 114.73 | J166: 116.47 | K166: 113 | L166: 109.05 | M166: 91.01034
A167: 158 | B167: POWERGRID | C167: 201.4 | D167: 201.70 | E167: 199.50 | F167: 197.60 | G167: 195.40 | H167: 203.60 | I167: 205.80 | J167: 207.70 | K167: 203.9 | L167: 199.8 | M167: 43.4437
A168: 159 | B168: PRESTIGE | C168: 302.85 | D168: 302.87 | E168: 296.73 | F168: 290.62 | G168: 284.48 | H168: 308.98 | I168: 315.12 | J168: 321.23 | K168: 309 | L168: 296.75 | M168: 2.12293
A169: 160 | B169: PGHH | C169: 10171.9 | D169: 10159.50 | E169: 10069.00 | F169: 9966.10 | G169: 9875.60 | H169: 10262.40 | I169: 10352.90 | J169: 10455.80 | K169: 10250 | L169: 10056.6 | M169: 0.17097
A170: 161 | B170: PNB | C170: 64.85 | D170: 64.15 | E170: 63.30 | F170: 61.75 | G170: 60.90 | H170: 65.70 | I170: 66.55 | J170: 68.10 | K170: 65 | L170: 62.6 | M170: 244.14845
A171: 162 | B171: QUESS | C171: 460.25 | D171: 460.93 | E171: 456.37 | F171: 452.48 | G171: 447.92 | H171: 464.82 | I171: 469.38 | J171: 473.27 | K171: 465.5 | L171: 457.05 | M171: 1.68928
A172: 163 | B172: RBLBANK | C172: 378.25 | D172: 372.82 | E172: 364.83 | F172: 351.42 | G172: 343.43 | H172: 386.23 | I172: 394.22 | J172: 407.63 | K172: 380.8 | L172: 359.4 | M172: 139.54147
A173: 164 | B173: RECLTD | C173: 149.1 | D173: 149.53 | E173: 147.07 | F173: 145.03 | G173: 142.57 | H173: 151.57 | I173: 154.03 | J173: 156.07 | K173: 152 | L173: 147.5 | M173: 77.10146
A174: 165 | B174: RAJESHEXPO | C174: 672.4 | D174: 673.52 | E174: 670.38 | F174: 668.37 | G174: 665.23 | H174: 675.53 | I174: 678.67 | J174: 680.68 | K174: 676.65 | L174: 671.5 | M174: 1.7624
A175: 166 | B175: RELCAPITAL | C175: 35.9 | D175: 36.33 | E175: 34.77 | F175: 33.63 | G175: 32.07 | H175: 37.47 | I175: 39.03 | J175: 40.17 | K175: 37.9 | L175: 35.2 | M175: 264.47181
A176: 167 | B176: RELIANCE | C176: 1234.4 | D176: 1232.30 | E176: 1224.60 | F176: 1214.80 | G176: 1207.10 | H176: 1242.10 | I176: 1249.80 | J176: 1259.60 | K176: 1240 | L176: 1222.5 | M176: 55.44468
A177: 168 | B177: RELINFRA | C177: 40.5 | D177: 40.03 | E177: 38.57 | F177: 36.63 | G177: 35.17 | H177: 41.97 | I177: 43.43 | J177: 45.37 | K177: 41.5 | L177: 38.1 | M177: 216.15403
A178: 169 | B178: RPOWER | C178: 3.45 | D178: 3.43 | E178: 3.37 | F178: 3.28 | G178: 3.22 | H178: 3.52 | I178: 3.58 | J178: 3.67 | K178: 3.5 | L178: 3.35 | M178: 113.56918
A179: 170 | B179: SBILIFE | C179: 799.65 | D179: 802.83 | E179: 791.82 | F179: 783.98 | G179: 772.97 | H179: 810.67 | I179: 821.68 | J179: 829.52 | K179: 813.85 | L179: 795 | M179: 5.79309
A180: 171 | B180: SRF | C180: 2815.05 | D180: 2815.68 | E180: 2789.37 | F180: 2763.68 | G180: 2737.37 | H180: 2841.37 | I180: 2867.68 | J180: 2893.37 | K180: 2842 | L180: 2790 | M180: 1.73519
A181: 172 | B181: SHREECEM | C181: 18490.35 | D181: 18328.28 | E181: 18083.47 | F181: 17676.58 | G181: 17431.77 | H181: 18735.17 | I181: 18979.98 | J181: 19386.87 | K181: 18573.1 | L181: 17921.4 | M181: 0.66945
A182: 173 | B182: SRTRANSFIN | C182: 1034.25 | D182: 1026.87 | E182: 1016.58 | F182: 998.92 | G182: 988.63 | H182: 1044.53 | I182: 1054.82 | J182: 1072.48 | K182: 1037.15 | L182: 1009.2 | M182: 11.04303
A183: 174 | B183: SIEMENS | C183: 1224.75 | D183: 1226.62 | E183: 1214.13 | F183: 1203.52 | G183: 1191.03 | H183: 1237.23 | I183: 1249.72 | J183: 1260.33 | K183: 1239.1 | L183: 1216 | M183: 6.97939
A184: 175 | B184: SBIN | C184: 285.25 | D184: 283.20 | E184: 280.55 | F184: 275.85 | G184: 273.20 | H184: 287.90 | I184: 290.55 | J184: 295.25 | K184: 285.85 | L184: 278.5 | M184: 209.99669
A185: 176 | B185: SAIL | C185: 34.1 | D185: 33.83 | E185: 33.22 | F185: 32.33 | G185: 31.72 | H185: 34.72 | I185: 35.33 | J185: 36.22 | K185: 34.45 | L185: 32.95 | M185: 273.52192
A186: 177 | B186: STRTECH | C186: 136.65 | D186: 133.97 | E186: 129.18 | F186: 121.72 | G186: 116.93 | H186: 141.43 | I186: 146.22 | J186: 153.68 | K186: 138.75 | L186: 126.5 | M186: 24.59243
A187: 178 | B187: SPARC | C187: 150.5 | D187: 151.67 | E187: 148.83 | F187: 147.17 | G187: 144.33 | H187: 153.33 | I187: 156.17 | J187: 157.83 | K187: 154.5 | L187: 150 | M187: 3.29775
A188: 179 | B188: SUNPHARMA | C188: 422.2 | D188: 426.15 | E188: 417.30 | F188: 412.40 | G188: 403.55 | H188: 431.05 | I188: 439.90 | J188: 444.80 | K188: 435 | L188: 421.25 | M188: 77.42635
A189: 180 | B189: SUNTV | C189: 444.5 | D189: 444.67 | E189: 437.48 | F189: 430.47 | G189: 423.28 | H189: 451.68 | I189: 458.87 | J189: 465.88 | K189: 451.85 | L189: 437.65 | M189: 12.3731
A190: 181 | B190: SYNGENE | C190: 328.35 | D190: 327.52 | E190: 326.03 | F190: 323.72 | G190: 322.23 | H190: 329.83 | I190: 331.32 | J190: 333.63 | K190: 329 | L190: 325.2 | M190: 0.67122
A191: 182 | B191: TVSMOTOR | C191: 402.95 | D191: 398.95 | E191: 391.20 | F191: 379.45 | G191: 371.70 | H191: 410.70 | I191: 418.45 | J191: 430.20 | K191: 406.7 | L191: 387.2 | M191: 38.54277
A192: 183 | B192: TATACHEM | C192: 591.95 | D192: 590.92 | E192: 587.28 | F192: 582.62 | G192: 578.98 | H192: 595.58 | I192: 599.22 | J192: 603.88 | K192: 594.55 | L192: 586.25 | M192: 2.77787
A193: 184 | B193: TCS | C193: 2154 | D193: 2165.18 | E193: 2135.37 | F193: 2116.73 | G193: 2086.92 | H193: 2183.82 | I193: 2213.63 | J193: 2232.27 | K193: 2195 | L193: 2146.55 | M193: 26.2744
A194: 185 | B194: TATAGLOBAL | C194: 259.35 | D194: 261.45 | E194: 255.10 | F194: 250.85 | G194: 244.50 | H194: 265.70 | I194: 272.05 | J194: 276.30 | K194: 267.8 | L194: 257.2 | M194: 26.67978
A195: 186 | B195: TATAMTRDVR | C195: 61.45 | D195: 59.95 | E195: 58.00 | F195: 54.55 | G195: 52.60 | H195: 63.40 | I195: 65.35 | J195: 68.80 | K195: 61.9 | L195: 56.5 | M195: 128.21902
A196: 187 | B196: TATAMOTORS | C196: 134.35 | D196: 131.55 | E196: 128.10 | F196: 121.85 | G196: 118.40 | H196: 137.80 | I196: 141.25 | J196: 147.50 | K196: 135 | L196: 125.3 | M196: 965.68372
A197: 188 | B197: TATAPOWER | C197: 61.2 | D197: 60.63 | E197: 59.57 | F197: 57.93 | G197: 56.87 | H197: 62.27 | I197: 63.33 | J197: 64.97 | K197: 61.7 | L197: 59 | M197: 95.65117
A198: 189 | B198: TATASTEEL | C198: 367.05 | D198: 363.65 | E198: 358.60 | F198: 350.15 | G198: 345.10 | H198: 372.10 | I198: 377.15 | J198: 385.60 | K198: 368.7 | L198: 355.2 | M198: 136.50027
A199: 190 | B199: TECHM | C199: 703.7 | D199: 709.40 | E199: 695.55 | F199: 687.40 | G199: 673.55 | H199: 717.55 | I199: 731.40 | J199: 739.55 | K199: 723.25 | L199: 701.25 | M199: 27.02792
A200: 191 | B200: NIACL | C200: 109.55 | D200: 109.97 | E200: 107.58 | F200: 105.62 | G200: 103.23 | H200: 111.93 | I200: 114.32 | J200: 116.28 | K200: 112.35 | L200: 108 | M200: 1.20647
A201: 192 | B201: RAMCOCEM | C201: 724.4 | D201: 723.02 | E201: 719.73 | F201: 715.07 | G201: 711.78 | H201: 727.68 | I201: 730.97 | J201: 735.63 | K201: 726.3 | L201: 718.35 | M201: 1.81442
A202: 193 | B202: TITAN | C202: 1101.05 | D202: 1095.87 | E202: 1088.23 | F202: 1075.42 | G202: 1067.78 | H202: 1108.68 | I202: 1116.32 | J202: 1129.13 | K202: 1103.5 | L202: 1083.05 | M202: 14.32923
A203: 194 | B203: TORNTPHARM | C203: 1698.3 | D203: 1708.00 | E203: 1682.30 | F203: 1666.30 | G203: 1640.60 | H203: 1724.00 | I203: 1749.70 | J203: 1765.70 | K203: 1733.7 | L203: 1692 | M203: 1.44358
A204: 195 | B204: TORNTPOWER | C204: 279.1 | D204: 280.60 | E204: 275.85 | F204: 272.60 | G204: 267.85 | H204: 283.85 | I204: 288.60 | J204: 291.85 | K204: 285.35 | L204: 277.35 | M204: 12.72289
A205: 196 | B205: UPL | C205: 577.7 | D205: 581.23 | E205: 571.97 | F205: 566.23 | G205: 556.97 | H205: 586.97 | I205: 596.23 | J205: 601.97 | K205: 590.5 | L205: 575.5 | M205: 51.04552
... 30 more rows

Sheet MidCap Intra
L5: Back To Main Page
A6: FOR INTRA DAY TRADING | K6: =Main!B10 -> 2019-09-12
A9: Sr.no | B9: Scrip | C9: CLOSE RATE | D9: Pivot Point | E9: Supports | H9: Resistances
C10: Point | E10: S1 | F10: S2 | G10: S3 | H10: R1 | I10: R2 | J10: R3 | K10: HIGH | L10: LOW | M10: Total Trade Quanity in Lakhs
A11: 1 | B11: 3MINDIA | C11: 20260.55 | D11: 20403.52 | E11: 20007.03 | F11: 19753.52 | G11: 19357.03 | H11: 20657.03 | I11: 21053.52 | J11: 21307.03 | K11: 20800 | L11: 20150 | M11: 0.04281
A12: 2 | B12: ABB | C12: 1328.4 | D12: 1331.47 | E12: 1316.93 | F12: 1305.47 | G12: 1290.93 | H12: 1342.93 | I12: 1357.47 | J12: 1368.93 | K12: 1346 | L12: 1320 | M12: 0.35256
A13: 3 | B13: ACC | C13: 1485 | D13: 1484.87 | E13: 1475.73 | F13: 1466.47 | G13: 1457.33 | H13: 1494.13 | I13: 1503.27 | J13: 1512.53 | K13: 1494 | L13: 1475.6 | M13: 3.97144
A14: 4 | B14: AIAENG | C14: 1510.25 | D14: 1514.38 | E14: 1499.87 | F14: 1489.48 | G14: 1474.97 | H14: 1524.77 | I14: 1539.28 | J14: 1549.67 | K14: 1528.9 | L14: 1504 | M14: 0.23151
A15: 5 | B15: APLAPOLLO | C15: 1300.35 | D15: 1297.07 | E15: 1280.13 | F15: 1259.92 | G15: 1242.98 | H15: 1317.28 | I15: 1334.22 | J15: 1354.43 | K15: 1314 | L15: 1276.85 | M15: 0.26044
A16: 6 | B16: AUBANK | C16: 662.6 | D16: 664.18 | E16: 658.52 | F16: 654.43 | G16: 648.77 | H16: 668.27 | I16: 673.93 | J16: 678.02 | K16: 669.85 | L16: 660.1 | M16: 0.77402
A17: 7 | B17: AAVAS | C17: 1549.9 | D17: 1554.97 | E17: 1529.93 | F17: 1509.97 | G17: 1484.93 | H17: 1574.93 | I17: 1599.97 | J17: 1619.93 | K17: 1580 | L17: 1535 | M17: 0.2971
A18: 8 | B18: ADANIGREEN | C18: 48.3 | D18: 47.63 | E18: 46.17 | F18: 44.03 | G18: 42.57 | H18: 49.77 | I18: 51.23 | J18: 53.37 | K18: 49.1 | L18: 45.5 | M18: 10.4031
A19: 9 | B19: ADANIPORTS | C19: 373.35 | D19: 371.60 | E19: 368.25 | F19: 363.15 | G19: 359.80 | H19: 376.70 | I19: 380.05 | J19: 385.15 | K19: 374.95 | L19: 366.5 | M19: 33.41392
A20: 10 | B20: ADANIPOWER | C20: 63.75 | D20: 62.93 | E20: 61.37 | F20: 58.98 | G20: 57.42 | H20: 65.32 | I20: 66.88 | J20: 69.27 | K20: 64.5 | L20: 60.55 | M20: 155.89815
A21: 11 | B21: ADANITRANS | C21: 235.4 | D21: 236.32 | E21: 231.63 | F21: 227.87 | G21: 223.18 | H21: 240.08 | I21: 244.77 | J21: 248.53 | K21: 241 | L21: 232.55 | M21: 0.61718
A22: 12 | B22: ABCAPITAL | C22: 96.65 | D22: 96.42 | E22: 95.33 | F22: 94.02 | G22: 92.93 | H22: 97.73 | I22: 98.82 | J22: 100.13 | K22: 97.5 | L22: 95.1 | M22: 14.48632
A23: 13 | B23: ABFRL | C23: 187.65 | D23: 188.78 | E23: 185.97 | F23: 184.28 | G23: 181.47 | H23: 190.47 | I23: 193.28 | J23: 194.97 | K23: 191.6 | L23: 187.1 | M23: 2.96934
A24: 14 | B24: ADVENZYMES | C24: 164.1 | D24: 163.53 | E24: 161.27 | F24: 158.43 | G24: 156.17 | H24: 166.37 | I24: 168.63 | J24: 171.47 | K24: 165.8 | L24: 160.7 | M24: 0.70365
A25: 15 | B25: AEGISCHEM | C25: 188.2 | D25: 189.13 | E25: 186.27 | F25: 184.33 | G25: 181.47 | H25: 191.07 | I25: 193.93 | J25: 195.87 | K25: 192 | L25: 187.2 | M25: 0.46581
A26: 16 | B26: AJANTPHARM | C26: 1012.85 | D26: 1014.13 | E26: 1002.27 | F26: 991.68 | G26: 979.82 | H26: 1024.72 | I26: 1036.58 | J26: 1047.17 | K26: 1026 | L26: 1003.55 | M26: 0.76103
A27: 17 | B27: AKZOINDIA | C27: 1705 | D27: 1709.67 | E27: 1691.33 | F27: 1677.67 | G27: 1659.33 | H27: 1723.33 | I27: 1741.67 | J27: 1755.33 | K27: 1728 | L27: 1696 | M27: 0.24167
A28: 18 | B28: APLLTD | C28: 503.7 | D28: 502.18 | E28: 499.52 | F28: 495.33 | G28: 492.67 | H28: 506.37 | I28: 509.03 | J28: 513.22 | K28: 504.85 | L28: 498 | M28: 0.07361
A29: 19 | B29: ALKEM | C29: 1847.65 | D29: 1835.50 | E29: 1821.00 | F29: 1794.35 | G29: 1779.85 | H29: 1862.15 | I29: 1876.65 | J29: 1903.30 | K29: 1850 | L29: 1808.85 | M29: 0.16086
A30: 20 | B30: ALBK | C30: 33.5 | D30: 33.50 | E30: 33.00 | F30: 32.50 | G30: 32.00 | H30: 34.00 | I30: 34.50 | J30: 35.00 | K30: 34 | L30: 33 | M30: 7.86865
A31: 21 | B31: ALLCARGO | C31: 102.1 | D31: 100.93 | E31: 93.17 | F31: 84.23 | G31: 76.47 | H31: 109.87 | I31: 117.63 | J31: 126.57 | K31: 108.7 | L31: 92 | M31: 4.22498
A32: 22 | B32: AMARAJABAT | C32: 657.4 | D32: 652.80 | E32: 645.90 | F32: 634.40 | G32: 627.50 | H32: 664.30 | I32: 671.20 | J32: 682.70 | K32: 659.7 | L32: 641.3 | M32: 5.37132
A33: 23 | B33: AMBUJACEM | C33: 197.35 | D33: 197.15 | E33: 195.95 | F33: 194.55 | G33: 193.35 | H33: 198.55 | I33: 199.75 | J33: 201.15 | K33: 198.35 | L33: 195.75 | M33: 17.46891
A34: 24 | B34: ANDHRABANK | C34: 19.55 | D34: 19.37 | E34: 18.98 | F34: 18.42 | G34: 18.03 | H34: 19.93 | I34: 20.32 | J34: 20.88 | K34: 19.75 | L34: 18.8 | M34: 8.6981
A35: 25 | B35: APOLLOHOSP | C35: 1497.2 | D35: 1494.65 | E35: 1476.60 | F35: 1456.00 | G35: 1437.95 | H35: 1515.25 | I35: 1533.30 | J35: 1553.90 | K35: 1512.7 | L35: 1474.05 | M35: 6.26957
A36: 26 | B36: APOLLOTYRE | C36: 179.1 | D36: 178.43 | E36: 176.87 | F36: 174.63 | G36: 173.07 | H36: 180.67 | I36: 182.23 | J36: 184.47 | K36: 180 | L36: 176.2 | M36: 21.19204
A37: 27 | B37: ASHOKLEY | C37: 63.7 | D37: 62.87 | E37: 61.03 | F37: 58.37 | G37: 56.53 | H37: 65.53 | I37: 67.37 | J37: 70.03 | K37: 64.7 | L37: 60.2 | M37: 621.92949
A38: 28 | B38: ASHOKA | C38: 98.95 | D38: 99.62 | E38: 95.33 | F38: 91.72 | G38: 87.43 | H38: 103.23 | I38: 107.52 | J38: 111.13 | K38: 103.9 | L38: 96 | M38: 13.09044
A39: 29 | B39: ASIANPAINT | C39: 1561.45 | D39: 1556.37 | E39: 1547.73 | F39: 1534.02 | G39: 1525.38 | H39: 1570.08 | I39: 1578.72 | J39: 1592.43 | K39: 1565 | L39: 1542.65 | M39: 15.413
A40: 30 | B40: ASTERDM | C40: 119.75 | D40: 119.55 | E40: 118.10 | F40: 116.45 | G40: 115.00 | H40: 121.20 | I40: 122.65 | J40: 124.30 | K40: 121 | L40: 117.9 | M40: 0.33061
A41: 31 | B41: ASTRAZEN | C41: 2071.75 | D41: 2050.27 | E41: 2006.53 | F41: 1941.32 | G41: 1897.58 | H41: 2115.48 | I41: 2159.22 | J41: 2224.43 | K41: 2094 | L41: 1985.05 | M41: 0.76569
A42: 32 | B42: ASTRAL | C42: 1290.25 | D42: 1294.23 | E42: 1280.52 | F42: 1270.78 | G42: 1257.07 | H42: 1303.97 | I42: 1317.68 | J42: 1327.42 | K42: 1307.95 | L42: 1284.5 | M42: 0.24849
A43: 33 | B43: ATUL | C43: 3684.6 | D43: 3628.20 | E43: 3556.40 | F43: 3428.20 | G43: 3356.40 | H43: 3756.40 | I43: 3828.20 | J43: 3956.40 | K43: 3700 | L43: 3500 | M43: 0.14545
A44: 34 | B44: AUROPHARMA | C44: 628.4 | D44: 626.90 | E44: 623.50 | F44: 618.60 | G44: 615.20 | H44: 631.80 | I44: 635.20 | J44: 640.10 | K44: 630.3 | L44: 622 | M44: 13.26159
A45: 35 | B45: AVANTIFEED | C45: 347.3 | D45: 349.65 | E45: 342.90 | F45: 338.50 | G45: 331.75 | H45: 354.05 | I45: 360.80 | J45: 365.20 | K45: 356.4 | L45: 345.25 | M45: 2.46387
A46: 36 | B46: DMART | C46: 1571.05 | D46: 1571.02 | E46: 1555.03 | F46: 1539.02 | G46: 1523.03 | H46: 1587.03 | I46: 1603.02 | J46: 1619.03 | K46: 1587 | L46: 1555 | M46: 3.04927
A47: 37 | B47: AXISBANK | C47: 681.7 | D47: 678.73 | E47: 673.97 | F47: 666.23 | G47: 661.47 | H47: 686.47 | I47: 691.23 | J47: 698.97 | K47: 683.5 | L47: 671 | M47: 59.66906
A48: 38 | B48: BASF | C48: 1020.1 | D48: 1021.22 | E48: 1007.38 | F48: 994.67 | G48: 980.83 | H48: 1033.93 | I48: 1047.77 | J48: 1060.48 | K48: 1035.05 | L48: 1008.5 | M48: 0.13258
A49: 39 | B49: BEML | C49: 815.35 | D49: 817.13 | E49: 809.27 | F49: 803.18 | G49: 795.32 | H49: 823.22 | I49: 831.08 | J49: 837.17 | K49: 825 | L49: 811.05 | M49: 2.70995
A50: 40 | B50: BSE | C50: 543.5 | D50: 544.12 | E50: 540.23 | F50: 536.97 | G50: 533.08 | H50: 547.38 | I50: 551.27 | J50: 554.53 | K50: 548 | L50: 540.85 | M50: 0.54579
A51: 41 | B51: BAJAJ-AUTO | C51: 2908.4 | D51: 2880.28 | E51: 2840.12 | F51: 2771.83 | G51: 2731.67 | H51: 2948.57 | I51: 2988.73 | J51: 3057.02 | K51: 2920.45 | L51: 2812 | M51: 12.53636
A52: 42 | B52: BAJAJCON | C52: 254.5 | D52: 255.33 | E52: 250.02 | F52: 245.53 | G52: 240.22 | H52: 259.82 | I52: 265.13 | J52: 269.62 | K52: 260.65 | L52: 250.85 | M52: 0.87504
A53: 43 | B53: BAJAJELEC | C53: 385.15 | D53: 383.93 | E53: 379.37 | F53: 373.58 | G53: 369.02 | H53: 389.72 | I53: 394.28 | J53: 400.07 | K53: 388.5 | L53: 378.15 | M53: 1.15267
A54: 44 | B54: BAJFINANCE | C54: 3416.4 | D54: 3419.23 | E54: 3382.47 | F54: 3348.53 | G54: 3311.77 | H54: 3453.17 | I54: 3489.93 | J54: 3523.87 | K54: 3456 | L54: 3385.3 | M54: 13.01112
A55: 45 | B55: BAJAJFINSV | C55: 7354.2 | D55: 7356.07 | E55: 7293.13 | F55: 7232.07 | G55: 7169.13 | H55: 7417.13 | I55: 7480.07 | J55: 7541.13 | K55: 7419 | L55: 7295 | M55: 3.48066
A56: 46 | B56: BAJAJHLDNG | C56: 3316.4 | D56: 3319.38 | E56: 3298.07 | F56: 3279.73 | G56: 3258.42 | H56: 3337.72 | I56: 3359.03 | J56: 3377.37 | K56: 3340.7 | L56: 3301.05 | M56: 0.10121
A57: 47 | B57: BALKRISIND | C57: 745.05 | D57: 742.60 | E57: 737.70 | F57: 730.35 | G57: 725.45 | H57: 749.95 | I57: 754.85 | J57: 762.20 | K57: 747.5 | L57: 735.25 | M57: 2.72723
A58: 48 | B58: BALMLAWRIE | C58: 169.15 | D58: 169.05 | E58: 168.10 | F58: 167.05 | G58: 166.10 | H58: 170.10 | I58: 171.05 | J58: 172.10 | K58: 170 | L58: 168 | M58: 1.06985
A59: 49 | B59: BALRAMCHIN | C59: 149.75 | D59: 145.25 | E59: 138.10 | F59: 126.45 | G59: 119.30 | H59: 156.90 | I59: 164.05 | J59: 175.70 | K59: 152.4 | L59: 133.6 | M59: 61.81922
A60: 50 | B60: BANDHANBNK | C60: 449.1 | D60: 452.98 | E60: 442.77 | F60: 436.43 | G60: 426.22 | H60: 459.32 | I60: 469.53 | J60: 475.87 | K60: 463.2 | L60: 446.65 | M60: 14.84769
A61: 51 | B61: BANKBARODA | C61: 99.05 | D61: 98.08 | E61: 96.52 | F61: 93.98 | G61: 92.42 | H61: 100.62 | I61: 102.18 | J61: 104.72 | K61: 99.65 | L61: 95.55 | M61: 218.86257
A62: 52 | B62: BANKINDIA | C62: 68.15 | D62: 67.48 | E62: 66.52 | F62: 64.88 | G62: 63.92 | H62: 69.12 | I62: 70.08 | J62: 71.72 | K62: 68.45 | L62: 65.85 | M62: 68.13652
A63: 53 | B63: MAHABANK | C63: 12 | D63: 11.98 | E63: 11.87 | F63: 11.73 | G63: 11.62 | H63: 12.12 | I63: 12.23 | J63: 12.37 | K63: 12.1 | L63: 11.85 | M63: 3.47068
A64: 54 | B64: BATAINDIA | C64: 1572.2 | D64: 1567.27 | E64: 1560.03 | F64: 1547.87 | G64: 1540.63 | H64: 1579.43 | I64: 1586.67 | J64: 1598.83 | K64: 1574.5 | L64: 1555.1 | M64: 5.23795
A65: 55 | B65: BERGEPAINT | C65: 369.9 | D65: 368.07 | E65: 365.28 | F65: 360.67 | G65: 357.88 | H65: 372.68 | I65: 375.47 | J65: 380.08 | K65: 370.85 | L65: 363.45 | M65: 6.93831
A66: 56 | B66: BDL | C66: 280.5 | D66: 281.53 | E66: 277.97 | F66: 275.43 | G66: 271.87 | H66: 284.07 | I66: 287.63 | J66: 290.17 | K66: 285.1 | L66: 279 | M66: 0.27379
A67: 57 | B67: BEL | C67: 107.95 | D67: 108.83 | E67: 106.32 | F67: 104.68 | G67: 102.17 | H67: 110.47 | I67: 112.98 | J67: 114.62 | K67: 111.35 | L67: 107.2 | M67: 94.53974
A68: 58 | B68: BHARATFORG | C68: 411.45 | D68: 408.02 | E68: 402.73 | F68: 394.02 | G68: 388.73 | H68: 416.73 | I68: 422.02 | J68: 430.73 | K68: 413.3 | L68: 399.3 | M68: 17.55539
A69: 59 | B69: BHEL | C69: 51.95 | D69: 51.52 | E69: 50.73 | F69: 49.52 | G69: 48.73 | H69: 52.73 | I69: 53.52 | J69: 54.73 | K69: 52.3 | L69: 50.3 | M69: 119.51914
A70: 60 | B70: BPCL | C70: 386.1 | D70: 384.17 | E70: 380.43 | F70: 374.77 | G70: 371.03 | H70: 389.83 | I70: 393.57 | J70: 399.23 | K70: 387.9 | L70: 378.5 | M70: 46.93876
A71: 61 | B71: BHARTIARTL | C71: 355.1 | D71: 356.08 | E71: 350.22 | F71: 345.33 | G71: 339.47 | H71: 360.97 | I71: 366.83 | J71: 371.72 | K71: 361.95 | L71: 351.2 | M71: 48.1043
A72: 62 | B72: INFRATEL | C72: 253.2 | D72: 252.62 | E72: 250.43 | F72: 247.67 | G72: 245.48 | H72: 255.38 | I72: 257.57 | J72: 260.33 | K72: 254.8 | L72: 249.85 | M72: 18.22217
A73: 63 | B73: BIOCON | C73: 234.8 | D73: 235.22 | E73: 231.63 | F73: 228.47 | G73: 224.88 | H73: 238.38 | I73: 241.97 | J73: 245.13 | K73: 238.8 | L73: 232.05 | M73: 34.50784
A74: 64 | B74: BIRLACORPN | C74: 559.3 | D74: 556.50 | E74: 550.10 | F74: 540.90 | G74: 534.50 | H74: 565.70 | I74: 572.10 | J74: 581.30 | K74: 562.9 | L74: 547.3 | M74: 0.19378
A75: 65 | B75: BLISSGVS | C75: 112.05 | D75: 110.85 | E75: 108.70 | F75: 105.35 | G75: 103.20 | H75: 114.20 | I75: 116.35 | J75: 119.70 | K75: 113 | L75: 107.5 | M75: 1.37884
A76: 66 | B76: BLUEDART | C76: 2381.6 | D76: 2377.05 | E76: 2306.60 | F76: 2231.60 | G76: 2161.15 | H76: 2452.05 | I76: 2522.50 | J76: 2597.50 | K76: 2447.5 | L76: 2302.05 | M76: 0.03852
A77: 67 | B77: BLUESTARCO | C77: 724.1 | D77: 728.68 | E77: 713.42 | F77: 702.73 | G77: 687.47 | H77: 739.37 | I77: 754.63 | J77: 765.32 | K77: 743.95 | L77: 718 | M77: 0.15921
A78: 68 | B78: BBTC | C78: 1023.85 | D78: 1024.30 | E78: 1003.60 | F78: 983.35 | G78: 962.65 | H78: 1044.55 | I78: 1065.25 | J78: 1085.50 | K78: 1045 | L78: 1004.05 | M78: 3.2627
A79: 69 | B79: BOMDYEING | C79: 87.15 | D79: 87.80 | E79: 83.85 | F79: 80.55 | G79: 76.60 | H79: 91.10 | I79: 95.05 | J79: 98.35 | K79: 91.75 | L79: 84.5 | M79: 31.8784
A80: 70 | B80: BOSCHLTD | C80: 14249.25 | D80: 14264.75 | E80: 14034.50 | F80: 13819.75 | G80: 13589.50 | H80: 14479.50 | I80: 14709.75 | J80: 14924.50 | K80: 14495 | L80: 14050 | M80: 0.17322
A81: 71 | B81: BRIGADE | C81: 196.2 | D81: 196.50 | E81: 194.10 | F81: 192.00 | G81: 189.60 | H81: 198.60 | I81: 201.00 | J81: 203.10 | K81: 198.9 | L81: 194.4 | M81: 2.53392
A82: 72 | B82: BRITANNIA | C82: 2666.4 | D82: 2676.80 | E82: 2649.60 | F82: 2632.80 | G82: 2605.60 | H82: 2693.60 | I82: 2720.80 | J82: 2737.60 | K82: 2704 | L82: 2660 | M82: 3.34013
A83: 73 | B83: CARERATING | C83: 543.65 | D83: 549.55 | E83: 534.10 | F83: 524.55 | G83: 509.10 | H83: 559.10 | I83: 574.55 | J83: 584.10 | K83: 565 | L83: 540 | M83: 0.4185
A84: 74 | B84: CCL | C84: 243.15 | D84: 242.77 | E84: 236.73 | F84: 230.32 | G84: 224.28 | H84: 249.18 | I84: 255.22 | J84: 261.63 | K84: 248.8 | L84: 236.35 | M84: 0.3771
A85: 75 | B85: CESC | C85: 815.65 | D85: 811.67 | E85: 801.98 | F85: 788.32 | G85: 778.63 | H85: 825.33 | I85: 835.02 | J85: 848.68 | K85: 821.35 | L85: 798 | M85: 6.09057
A86: 76 | B86: CGPOWER | C86: 13.95 | D86: 13.95 | E86: 13.95 | F86: 13.95 | G86: 13.95 | H86: 13.95 | I86: 13.95 | J86: 13.95 | K86: 13.95 | L86: 13.95 | M86: 1.6297
A87: 77 | B87: CRISIL | C87: 1285 | D87: 1286.68 | E87: 1273.32 | F87: 1261.63 | G87: 1248.27 | H87: 1298.37 | I87: 1311.73 | J87: 1323.42 | K87: 1300.05 | L87: 1275 | M87: 0.10043
A88: 78 | B88: CADILAHC | C88: 239.6 | D88: 239.62 | E88: 236.73 | F88: 233.87 | G88: 230.98 | H88: 242.48 | I88: 245.37 | J88: 248.23 | K88: 242.5 | L88: 236.75 | M88: 14.64866
A89: 79 | B89: CANFINHOME | C89: 393.6 | D89: 396.40 | E89: 389.30 | F89: 385.00 | G89: 377.90 | H89: 400.70 | I89: 407.80 | J89: 412.10 | K89: 403.5 | L89: 392.1 | M89: 2.13395
A90: 80 | B90: CANBK | C90: 204.5 | D90: 202.87 | E90: 199.73 | F90: 194.97 | G90: 191.83 | H90: 207.63 | I90: 210.77 | J90: 215.53 | K90: 206 | L90: 198.1 | M90: 82.73809
A91: 81 | B91: CAPLIPOINT | C91: 436.05 | D91: 435.65 | E91: 421.50 | F91: 406.95 | G91: 392.80 | H91: 450.20 | I91: 464.35 | J91: 478.90 | K91: 449.8 | L91: 421.1 | M91: 0.41902
A92: 82 | B92: CARBORUNIV | C92: 303.75 | D92: 298.72 | E92: 291.53 | F92: 279.32 | G92: 272.13 | H92: 310.93 | I92: 318.12 | J92: 330.33 | K92: 305.9 | L92: 286.5 | M92: 0.21319
A93: 83 | B93: CASTROLIND | C93: 124.65 | D93: 124.22 | E93: 123.03 | F93: 121.42 | G93: 120.23 | H93: 125.83 | I93: 127.02 | J93: 128.63 | K93: 125.4 | L93: 122.6 | M93: 16.23827
A94: 84 | B94: CEATLTD | C94: 889.5 | D94: 892.48 | E94: 881.87 | F94: 874.23 | G94: 863.62 | H94: 900.12 | I94: 910.73 | J94: 918.37 | K94: 903.1 | L94: 884.85 | M94: 1.66331
A95: 85 | B95: CENTRALBK | C95: 19.5 | D95: 19.50 | E95: 19.00 | F95: 18.50 | G95: 18.00 | H95: 20.00 | I95: 20.50 | J95: 21.00 | K95: 20 | L95: 19 | M95: 4.10763
A96: 86 | B96: CDSL | C96: 207.5 | D96: 206.13 | E96: 200.27 | F96: 193.03 | G96: 187.17 | H96: 213.37 | I96: 219.23 | J96: 226.47 | K96: 212 | L96: 198.9 | M96: 3.1544
A97: 87 | B97: CENTURYPLY | C97: 145.85 | D97: 144.45 | E97: 141.95 | F97: 138.05 | G97: 135.55 | H97: 148.35 | I97: 150.85 | J97: 154.75 | K97: 146.95 | L97: 140.55 | M97: 2.55692
A98: 88 | B98: CERA | C98: 2502.7 | D98: 2490.88 | E98: 2421.92 | F98: 2341.13 | G98: 2272.17 | H98: 2571.67 | I98: 2640.63 | J98: 2721.42 | K98: 2559.85 | L98: 2410.1 | M98: 0.06593
A99: 89 | B99: CHAMBLFERT | C99: 159.35 | D99: 160.13 | E99: 154.27 | F99: 149.18 | G99: 143.32 | H99: 165.22 | I99: 171.08 | J99: 176.17 | K99: 166 | L99: 155.05 | M99: 7.96374
A100: 90 | B100: CHENNPETRO | C100: 182.2 | D100: 183.23 | E100: 180.57 | F100: 178.93 | G100: 176.27 | H100: 184.87 | I100: 187.53 | J100: 189.17 | K100: 185.9 | L100: 181.6 | M100: 1.83771
A101: 91 | B101: CHOLAHLDNG | C101: 445 | D101: 443.32 | E101: 438.78 | F101: 432.57 | G101: 428.03 | H101: 449.53 | I101: 454.07 | J101: 460.28 | K101: 447.85 | L101: 437.1 | M101: 0.19266
A102: 92 | B102: CHOLAFIN | C102: 275.95 | D102: 274.78 | E102: 271.82 | F102: 267.68 | G102: 264.72 | H102: 278.92 | I102: 281.88 | J102: 286.02 | K102: 277.75 | L102: 270.65 | M102: 7.91262
A103: 93 | B103: CIPLA | C103: 471.8 | D103: 472.72 | E103: 467.13 | F103: 462.47 | G103: 456.88 | H103: 477.38 | I103: 482.97 | J103: 487.63 | K103: 478.3 | L103: 468.05 | M103: 9.9641
A104: 94 | B104: CUB | C104: 199 | D104: 198.30 | E104: 196.90 | F104: 194.80 | G104: 193.40 | H104: 200.40 | I104: 201.80 | J104: 203.90 | K104: 199.7 | L104: 196.2 | M104: 7.36223
A105: 95 | B105: COALINDIA | C105: 196.7 | D105: 198.42 | E105: 193.83 | F105: 190.97 | G105: 186.38 | H105: 201.28 | I105: 205.87 | J105: 208.73 | K105: 203 | L105: 195.55 | M105: 87.55389
A106: 96 | B106: COCHINSHIP | C106: 353.3 | D106: 352.13 | E106: 348.27 | F106: 343.23 | G106: 339.37 | H106: 357.17 | I106: 361.03 | J106: 366.07 | K106: 356 | L106: 347.1 | M106: 0.35637
A107: 97 | B107: COFFEEDAY | C107: 67.3 | D107: 67.30 | E107: 67.30 | F107: 67.30 | G107: 67.30 | H107: 67.30 | I107: 67.30 | J107: 67.30 | K107: 67.3 | L107: 67.3 | M107: 0.44362
A108: 98 | B108: COLPAL | C108: 1236 | D108: 1245.13 | E108: 1222.77 | F108: 1209.53 | G108: 1187.17 | H108: 1258.37 | I108: 1280.73 | J108: 1293.97 | K108: 1267.5 | L108: 1231.9 | M108: 3.44765
A109: 99 | B109: CONCOR | C109: 517.85 | D109: 515.72 | E109: 510.18 | F109: 502.52 | G109: 496.98 | H109: 523.38 | I109: 528.92 | J109: 536.58 | K109: 521.25 | L109: 508.05 | M109: 5.03353
A110: 100 | B110: COROMANDEL | C110: 379.85 | D110: 379.40 | E110: 376.10 | F110: 372.35 | G110: 369.05 | H110: 383.15 | I110: 386.45 | J110: 390.20 | K110: 382.7 | L110: 375.65 | M110: 2.95102
A111: 101 | B111: CORPBANK | C111: 17.15 | D111: 17.08 | E111: 16.57 | F111: 15.98 | G111: 15.47 | H111: 17.67 | I111: 18.18 | J111: 18.77 | K111: 17.6 | L111: 16.5 | M111: 8.44377
A112: 102 | B112: COX&KINGS | C112: 3.7 | D112: 3.60 | E112: 3.50 | F112: 3.30 | G112: 3.20 | H112: 3.80 | I112: 3.90 | J112: 4.10 | K112: 3.7 | L112: 3.4 | M112: 41.08928
A113: 103 | B113: CREDITACC | C113: 609.8 | D113: 609.80 | E113: 603.00 | F113: 596.20 | G113: 589.40 | H113: 616.60 | I113: 623.40 | J113: 630.20 | K113: 616.6 | L113: 603 | M113: 1.91239
A114: 104 | B114: CROMPTON | C114: 232 | D114: 233.17 | E114: 229.88 | F114: 227.77 | G114: 224.48 | H114: 235.28 | I114: 238.57 | J114: 240.68 | K114: 236.45 | L114: 231.05 | M114: 2.0938
A115: 105 | B115: CUMMINSIND | C115: 582.15 | D115: 580.68 | E115: 573.07 | F115: 563.98 | G115: 556.37 | H115: 589.77 | I115: 597.38 | J115: 606.47 | K115: 588.3 | L115: 571.6 | M115: 4.05311
A116: 106 | B116: CYIENT | C116: 451.9 | D116: 450.10 | E116: 441.80 | F116: 431.70 | G116: 423.40 | H116: 460.20 | I116: 468.50 | J116: 478.60 | K116: 458.4 | L116: 440 | M116: 0.87011
A117: 107 | B117: DBCORP | C117: 137.5 | D117: 137.17 | E117: 134.33 | F117: 131.17 | G117: 128.33 | H117: 140.33 | I117: 143.17 | J117: 146.33 | K117: 140 | L117: 134 | M117: 0.90557
A118: 108 | B118: DCBBANK | C118: 195.7 | D118: 196.35 | E118: 193.45 | F118: 191.20 | G118: 188.30 | H118: 198.60 | I118: 201.50 | J118: 203.75 | K118: 199.25 | L118: 194.1 | M118: 3.58059
A119: 109 | B119: DCMSHRIRAM | C119: 410.5 | D119: 405.80 | E119: 394.70 | F119: 378.90 | G119: 367.80 | H119: 421.60 | I119: 432.70 | J119: 448.50 | K119: 416.9 | L119: 390 | M119: 3.94636
A120: 110 | B120: DLF | C120: 160.4 | D120: 159.37 | E120: 154.43 | F120: 148.47 | G120: 143.53 | H120: 165.33 | I120: 170.27 | J120: 176.23 | K120: 164.3 | L120: 153.4 | M120: 155.62134
A121: 111 | B121: DABUR | C121: 449.1 | D121: 446.93 | E121: 443.87 | F121: 438.63 | G121: 435.57 | H121: 452.17 | I121: 455.23 | J121: 460.47 | K121: 450 | L121: 441.7 | M121: 30.44215
A122: 112 | B122: DEEPAKFERT | C122: 92.6 | D122: 91.48 | E122: 89.37 | F122: 86.13 | G122: 84.02 | H122: 94.72 | I122: 96.83 | J122: 100.07 | K122: 93.6 | L122: 88.25 | M122: 4.30827
A123: 113 | B123: DEEPAKNTR | C123: 278.7 | D123: 278.88 | E123: 273.12 | F123: 267.53 | G123: 261.77 | H123: 284.47 | I123: 290.23 | J123: 295.82 | K123: 284.65 | L123: 273.3 | M123: 4.81061
A124: 114 | B124: DELTACORP | C124: 182.85 | D124: 181.65 | E124: 175.90 | F124: 168.95 | G124: 163.20 | H124: 188.60 | I124: 194.35 | J124: 201.30 | K124: 187.4 | L124: 174.7 | M124: 11.27059
A125: 115 | B125: DHFL | C125: 50.7 | D125: 50.72 | E125: 48.68 | F125: 46.67 | G125: 44.63 | H125: 52.73 | I125: 54.77 | J125: 56.78 | K125: 52.75 | L125: 48.7 | M125: 214.01494
A126: 116 | B126: DBL | C126: 456 | D126: 450.62 | E126: 434.33 | F126: 412.67 | G126: 396.38 | H126: 472.28 | I126: 488.57 | J126: 510.23 | K126: 466.9 | L126: 428.95 | M126: 13.88275
A127: 117 | B127: DISHTV | C127: 23.4 | D127: 23.63 | E127: 22.87 | F127: 22.33 | G127: 21.57 | H127: 24.17 | I127: 24.93 | J127: 25.47 | K127: 24.4 | L127: 23.1 | M127: 219.28939
A128: 118 | B128: DCAL | C128: 179.85 | D128: 180.40 | E128: 177.30 | F128: 174.75 | G128: 171.65 | H128: 182.95 | I128: 186.05 | J128: 188.60 | K128: 183.5 | L128: 177.85 | M128: 1.08305
A129: 119 | B129: DIVISLAB | C129: 1616.55 | D129: 1620.63 | E129: 1602.32 | F129: 1588.08 | G129: 1569.77 | H129: 1634.87 | I129: 1653.18 | J129: 1667.42 | K129: 1638.95 | L129: 1606.4 | M129: 4.64103
A130: 120 | B130: DIXON | C130: 2602.7 | D130: 2618.83 | E130: 2573.82 | F130: 2544.93 | G130: 2499.92 | H130: 2647.72 | I130: 2692.73 | J130: 2721.62 | K130: 2663.85 | L130: 2589.95 | M130: 0.07258
A131: 121 | B131: LALPATHLAB | C131: 1323.8 | D131: 1320.93 | E131: 1297.87 | F131: 1271.93 | G131: 1248.87 | H131: 1346.87 | I131: 1369.93 | J131: 1395.87 | K131: 1344 | L131: 1295 | M131: 1.26282
A132: 122 | B132: DRREDDY | C132: 2761 | D132: 2760.13 | E132: 2741.87 | F132: 2722.73 | G132: 2704.47 | H132: 2779.27 | I132: 2797.53 | J132: 2816.67 | K132: 2778.4 | L132: 2741 | M132: 6.34349
A133: 123 | B133: EIDPARRY | C133: 159.5 | D133: 157.08 | E133: 152.27 | F133: 145.03 | G133: 140.22 | H133: 164.32 | I133: 169.13 | J133: 176.37 | K133: 161.9 | L133: 149.85 | M133: 2.27561
A134: 124 | B134: EIHOTEL | C134: 159.4 | D134: 158.02 | E134: 156.03 | F134: 152.67 | G134: 150.68 | H134: 161.38 | I134: 163.37 | J134: 166.73 | K134: 160 | L134: 154.65 | M134: 1.24555
A135: 125 | B135: EDELWEISS | C135: 104.55 | D135: 105.10 | E135: 102.95 | F135: 101.35 | G135: 99.20 | H135: 106.70 | I135: 108.85 | J135: 110.45 | K135: 107.25 | L135: 103.5 | M135: 28.68429
A136: 126 | B136: EICHERMOT | C136: 17013.65 | D136: 16771.65 | E136: 16453.30 | F136: 15892.95 | G136: 15574.60 | H136: 17332.00 | I136: 17650.35 | J136: 18210.70 | K136: 17090 | L136: 16211.3 | M136: 2.59782
A137: 127 | B137: ELGIEQUIP | C137: 252.45 | D137: 251.58 | E137: 248.17 | F137: 243.88 | G137: 240.47 | H137: 255.87 | I137: 259.28 | J137: 263.57 | K137: 255 | L137: 247.3 | M137: 0.05176
A138: 128 | B138: EMAMILTD | C138: 290.05 | D138: 291.97 | E138: 287.63 | F138: 285.22 | G138: 280.88 | H138: 294.38 | I138: 298.72 | J138: 301.13 | K138: 296.3 | L138: 289.55 | M138: 23.82663
A139: 129 | B139: ENDURANCE | C139: 990.65 | D139: 977.07 | E139: 953.78 | F139: 916.92 | G139: 893.63 | H139: 1013.93 | I139: 1037.22 | J139: 1074.08 | K139: 1000.35 | L139: 940.2 | M139: 0.27049
A140: 130 | B140: ENGINERSIN | C140: 112.35 | D140: 112.07 | E140: 110.63 | F140: 108.92 | G140: 107.48 | H140: 113.78 | I140: 115.22 | J140: 116.93 | K140: 113.5 | L140: 110.35 | M140: 17.00031
A141: 131 | B141: EQUITAS | C141: 116.45 | D141: 114.58 | E141: 111.17 | F141: 105.88 | G141: 102.47 | H141: 119.87 | I141: 123.28 | J141: 128.57 | K141: 118 | L141: 109.3 | M141: 55.50145
A142: 132 | B142: ERIS | C142: 391.15 | D142: 381.42 | E142: 367.83 | F142: 344.52 | G142: 330.93 | H142: 404.73 | I142: 418.32 | J142: 441.63 | K142: 395 | L142: 358.1 | M142: 6.59074
A143: 133 | B143: ESCORTS | C143: 530.7 | D143: 521.27 | E143: 509.53 | F143: 488.37 | G143: 476.63 | H143: 542.43 | I143: 554.17 | J143: 575.33 | K143: 533 | L143: 500.1 | M143: 62.27497
A144: 134 | B144: ESSELPACK | C144: 108 | D144: 107.27 | E144: 105.73 | F144: 103.47 | G144: 101.93 | H144: 109.53 | I144: 111.07 | J144: 113.33 | K144: 108.8 | L144: 105 | M144: 0.49252
A145: 135 | B145: EXIDEIND | C145: 183.2 | D145: 183.15 | E145: 181.30 | F145: 179.40 | G145: 177.55 | H145: 185.05 | I145: 186.90 | J145: 188.80 | K145: 185 | L145: 181.25 | M145: 20.38604
A146: 136 | B146: FDC | C146: 167.5 | D146: 165.80 | E146: 162.30 | F146: 157.10 | G146: 153.60 | H146: 171.00 | I146: 174.50 | J146: 179.70 | K146: 169.3 | L146: 160.6 | M146: 0.35117
A147: 137 | B147: FEDERALBNK | C147: 85.7 | D147: 85.75 | E147: 84.75 | F147: 83.80 | G147: 82.80 | H147: 86.70 | I147: 87.70 | J147: 88.65 | K147: 86.75 | L147: 84.8 | M147: 92.84318
A148: 138 | B148: FINEORG | C148: 1530 | D148: 1528.55 | E148: 1500.15 | F148: 1470.30 | G148: 1441.90 | H148: 1558.40 | I148: 1586.80 | J148: 1616.65 | K148: 1556.95 | L148: 1498.7 | M148: 0.03325
A149: 139 | B149: FINCABLES | C149: 373.25 | D149: 374.37 | E149: 369.23 | F149: 365.22 | G149: 360.08 | H149: 378.38 | I149: 383.52 | J149: 387.53 | K149: 379.5 | L149: 370.35 | M149: 0.22265
A150: 140 | B150: FINPIPE | C150: 514 | D150: 513.32 | E150: 510.68 | F150: 507.37 | G150: 504.73 | H150: 516.63 | I150: 519.27 | J150: 522.58 | K150: 515.95 | L150: 510 | M150: 0.12429
A151: 141 | B151: FSL | C151: 50.2 | D151: 49.80 | E151: 48.90 | F151: 47.60 | G151: 46.70 | H151: 51.10 | I151: 52.00 | J151: 53.30 | K151: 50.7 | L151: 48.5 | M151: 15.05726
A152: 142 | B152: FORTIS | C152: 126.45 | D152: 127.15 | E152: 125.30 | F152: 124.15 | G152: 122.30 | H152: 128.30 | I152: 130.15 | J152: 131.30 | K152: 129 | L152: 126 | M152: 2.53922
A153: 143 | B153: FCONSUMER | C153: 29 | D153: 28.55 | E153: 27.35 | F153: 25.70 | G153: 24.50 | H153: 30.20 | I153: 31.40 | J153: 33.05 | K153: 29.75 | L153: 26.9 | M153: 19.18775
A154: 144 | B154: FLFL | C154: 439.85 | D154: 435.27 | E154: 428.83 | F154: 417.82 | G154: 411.38 | H154: 446.28 | I154: 452.72 | J154: 463.73 | K154: 441.7 | L154: 424.25 | M154: 0.18657
A155: 145 | B155: FRETAIL | C155: 405.6 | D155: 406.33 | E155: 403.27 | F155: 400.93 | G155: 397.87 | H155: 408.67 | I155: 411.73 | J155: 414.07 | K155: 409.4 | L155: 404 | M155: 2.81764
A156: 146 | B156: GAIL | C156: 128.45 | D156: 129.53 | E156: 127.07 | F156: 125.68 | G156: 123.22 | H156: 130.92 | I156: 133.38 | J156: 134.77 | K156: 132 | L156: 128.15 | M156: 123.66789
A157: 147 | B157: GEPIL | C157: 756.45 | D157: 761.70 | E157: 748.60 | F157: 740.75 | G157: 727.65 | H157: 769.55 | I157: 782.65 | J157: 790.50 | K157: 774.8 | L157: 753.85 | M157: 0.03918
A158: 148 | B158: GET&D | C158: 165.5 | D158: 166.08 | E158: 161.22 | F158: 156.93 | G158: 152.07 | H158: 170.37 | I158: 175.23 | J158: 179.52 | K158: 170.95 | L158: 161.8 | M158: 0.14357
A159: 149 | B159: GHCL | C159: 194.1 | D159: 195.70 | E159: 191.55 | F159: 189.00 | G159: 184.85 | H159: 198.25 | I159: 202.40 | J159: 204.95 | K159: 199.85 | L159: 193.15 | M159: 1.22886
A160: 150 | B160: GMRINFRA | C160: 16.9 | D160: 16.52 | E160: 16.03 | F160: 15.17 | G160: 14.68 | H160: 17.38 | I160: 17.87 | J160: 18.73 | K160: 17 | L160: 15.65 | M160: 183.99337
A161: 151 | B161: GALAXYSURF | C161: 1363.7 | D161: 1348.62 | E161: 1327.28 | F161: 1290.87 | G161: 1269.53 | H161: 1385.03 | I161: 1406.37 | J161: 1442.78 | K161: 1369.95 | L161: 1312.2 | M161: 0.17599
A162: 152 | B162: GDL | C162: 111.4 | D162: 111.53 | E162: 107.62 | F162: 103.83 | G162: 99.92 | H162: 115.32 | I162: 119.23 | J162: 123.02 | K162: 115.45 | L162: 107.75 | M162: 2.16542
A163: 153 | B163: GAYAPROJ | C163: 114 | D163: 114.25 | E163: 112.75 | F163: 111.50 | G163: 110.00 | H163: 115.50 | I163: 117.00 | J163: 118.25 | K163: 115.75 | L163: 113 | M163: 4.29233
A164: 154 | B164: GICRE | C164: 177.2 | D164: 176.62 | E164: 173.53 | F164: 169.87 | G164: 166.78 | H164: 180.28 | I164: 183.37 | J164: 187.03 | K164: 179.7 | L164: 172.95 | M164: 0.96926
A165: 155 | B165: GILLETTE | C165: 7119.5 | D165: 7134.83 | E165: 7094.92 | F165: 7070.33 | G165: 7030.42 | H165: 7159.42 | I165: 7199.33 | J165: 7223.92 | K165: 7174.75 | L165: 7110.25 | M165: 0.02458
A166: 156 | B166: GSKCONS | C166: 7880.5 | D166: 7907.18 | E166: 7833.37 | F166: 7786.23 | G166: 7712.42 | H166: 7954.32 | I166: 8028.13 | J166: 8075.27 | K166: 7981 | L166: 7860.05 | M166: 0.21039
A167: 157 | B167: GLAXO | C167: 1383.45 | D167: 1372.53 | E167: 1345.07 | F167: 1306.68 | G167: 1279.22 | H167: 1410.92 | I167: 1438.38 | J167: 1476.77 | K167: 1400 | L167: 1334.15 | M167: 1.72436
A168: 158 | B168: GLENMARK | C168: 384.75 | D168: 386.08 | E168: 381.17 | F168: 377.58 | G168: 372.67 | H168: 389.67 | I168: 394.58 | J168: 398.17 | K168: 391 | L168: 382.5 | M168: 12.06799
A169: 159 | B169: GODFRYPHLP | C169: 1014.25 | D169: 1017.23 | E169: 995.57 | F169: 976.88 | G169: 955.22 | H169: 1035.92 | I169: 1057.58 | J169: 1076.27 | K169: 1038.9 | L169: 998.55 | M169: 0.82482
A170: 160 | B170: GODREJAGRO | C170: 468.55 | D170: 467.67 | E170: 460.33 | F170: 452.12 | G170: 444.78 | H170: 475.88 | I170: 483.22 | J170: 491.43 | K170: 475 | L170: 459.45 | M170: 0.31494
A171: 161 | B171: GODREJCP | C171: 610.9 | D171: 607.95 | E171: 597.00 | F171: 583.10 | G171: 572.15 | H171: 621.85 | I171: 632.80 | J171: 646.70 | K171: 618.9 | L171: 594.05 | M171: 13.85716
A172: 162 | B172: GODREJIND | C172: 399.75 | D172: 400.62 | E172: 397.13 | F172: 394.52 | G172: 391.03 | H172: 403.23 | I172: 406.72 | J172: 409.33 | K172: 404.1 | L172: 398 | M172: 5.76796
A173: 163 | B173: GODREJPROP | C173: 954.9 | D173: 944.35 | E173: 894.00 | F173: 833.10 | G173: 782.75 | H173: 1005.25 | I173: 1055.60 | J173: 1116.50 | K173: 994.7 | L173: 883.45 | M173: 9.71235
A174: 164 | B174: GRANULES | C174: 99 | D174: 97.23 | E174: 94.87 | F174: 90.73 | G174: 88.37 | H174: 101.37 | I174: 103.73 | J174: 107.87 | K174: 99.6 | L174: 93.1 | M174: 7.97215
A175: 165 | B175: GRAPHITE | C175: 282.95 | D175: 283.85 | E175: 278.20 | F175: 273.45 | G175: 267.80 | H175: 288.60 | I175: 294.25 | J175: 299.00 | K175: 289.5 | L175: 279.1 | M175: 14.80259
A176: 166 | B176: GRASIM | C176: 711.5 | D176: 711.60 | E176: 706.70 | F176: 701.90 | G176: 697.00 | H176: 716.40 | I176: 721.30 | J176: 726.10 | K176: 716.5 | L176: 706.8 | M176: 12.93216
A177: 167 | B177: GESHIP | C177: 247.95 | D177: 247.80 | E177: 245.60 | F177: 243.25 | G177: 241.05 | H177: 250.15 | I177: 252.35 | J177: 254.70 | K177: 250 | L177: 245.45 | M177: 0.36126
A178: 168 | B178: GREAVESCOT | C178: 130.95 | D178: 130.73 | E178: 128.92 | F178: 126.88 | G178: 125.07 | H178: 132.77 | I178: 134.58 | J178: 136.62 | K178: 132.55 | L178: 128.7 | M178: 2.04361
A179: 169 | B179: GRINDWELL | C179: 582.45 | D179: 575.70 | E179: 565.70 | F179: 548.95 | G179: 538.95 | H179: 592.45 | I179: 602.45 | J179: 619.20 | K179: 585.7 | L179: 558.95 | M179: 0.35118
A180: 170 | B180: GRUH | C180: 255.15 | D180: 254.05 | E180: 252.10 | F180: 249.05 | G180: 247.10 | H180: 257.10 | I180: 259.05 | J180: 262.10 | K180: 256 | L180: 251 | M180: 14.08577
A181: 171 | B181: GUJALKALI | C181: 446.35 | D181: 444.95 | E181: 439.90 | F181: 433.45 | G181: 428.40 | H181: 451.40 | I181: 456.45 | J181: 462.90 | K181: 450 | L181: 438.5 | M181: 0.66181
A182: 172 | B182: GUJGASLTD | C182: 176.95 | D182: 176.45 | E182: 173.20 | F182: 169.45 | G182: 166.20 | H182: 180.20 | I182: 183.45 | J182: 187.20 | K182: 179.7 | L182: 172.7 | M182: 2.47395
A183: 173 | B183: GMDCLTD | C183: 67.55 | D183: 67.43 | E183: 66.47 | F183: 65.38 | G183: 64.42 | H183: 68.52 | I183: 69.48 | J183: 70.57 | K183: 68.4 | L183: 66.35 | M183: 1.60422
A184: 174 | B184: GNFC | C184: 192.3 | D184: 190.88 | E184: 187.77 | F184: 183.23 | G184: 180.12 | H184: 195.42 | I184: 198.53 | J184: 203.07 | K184: 194 | L184: 186.35 | M184: 5.38697
A185: 175 | B185: GPPL | C185: 82.7 | D185: 82.90 | E185: 82.00 | F185: 81.30 | G185: 80.40 | H185: 83.60 | I185: 84.50 | J185: 85.20 | K185: 83.8 | L185: 82.2 | M185: 0.49456
A186: 176 | B186: GSFC | C186: 78.8 | D186: 77.63 | E186: 75.92 | F186: 73.03 | G186: 71.32 | H186: 80.52 | I186: 82.23 | J186: 85.12 | K186: 79.35 | L186: 74.75 | M186: 7.94293
A187: 177 | B187: GSPL | C187: 218.5 | D187: 219.55 | E187: 215.45 | F187: 212.40 | G187: 208.30 | H187: 222.60 | I187: 226.70 | J187: 229.75 | K187: 223.65 | L187: 216.5 | M187: 8.56135
A188: 178 | B188: GULFOILLUB | C188: 842.15 | D188: 852.37 | E188: 829.78 | F188: 817.42 | G188: 794.83 | H188: 864.73 | I188: 887.32 | J188: 899.68 | K188: 874.95 | L188: 840 | M188: 0.49996
A189: 179 | B189: HEG | C189: 1044.4 | D189: 1043.22 | E189: 1021.43 | F189: 998.47 | G189: 976.68 | H189: 1066.18 | I189: 1087.97 | J189: 1110.93 | K189: 1065 | L189: 1020.25 | M189: 3.36974
A190: 180 | B190: HCLTECH | C190: 1057.7 | D190: 1068.10 | E190: 1042.20 | F190: 1026.70 | G190: 1000.80 | H190: 1083.60 | I190: 1109.50 | J190: 1125.00 | K190: 1094 | L190: 1052.6 | M190: 26.62753
A191: 181 | B191: HDFCAMC | C191: 2657.75 | D191: 2666.25 | E191: 2643.50 | F191: 2629.25 | G191: 2606.50 | H191: 2680.50 | I191: 2703.25 | J191: 2717.50 | K191: 2689 | L191: 2652 | M191: 3.16636
A192: 182 | B192: HDFCBANK | C192: 2251.3 | D192: 2255.48 | E192: 2236.97 | F192: 2222.63 | G192: 2204.12 | H192: 2269.82 | I192: 2288.33 | J192: 2302.67 | K192: 2274 | L192: 2241.15 | M192: 38.02279
A193: 183 | B193: HDFCLIFE | C193: 537.9 | D193: 537.13 | E193: 533.77 | F193: 529.63 | G193: 526.27 | H193: 541.27 | I193: 544.63 | J193: 548.77 | K193: 540.5 | L193: 533 | M193: 25.05388
A194: 184 | B194: HATHWAY | C194: 24.7 | D194: 25.12 | E194: 24.28 | F194: 23.87 | G194: 23.03 | H194: 25.53 | I194: 26.37 | J194: 26.78 | K194: 25.95 | L194: 24.7 | M194: 13.1493
A195: 185 | B195: HATSUN | C195: 631.25 | D195: 631.58 | E195: 623.62 | F195: 615.98 | G195: 608.02 | H195: 639.22 | I195: 647.18 | J195: 654.82 | K195: 639.55 | L195: 623.95 | M195: 0.03153
A196: 186 | B196: HAVELLS | C196: 665.1 | D196: 661.95 | E196: 656.60 | F196: 648.10 | G196: 642.75 | H196: 670.45 | I196: 675.80 | J196: 684.30 | K196: 667.3 | L196: 653.45 | M196: 14.08705
A197: 187 | B197: HEIDELBERG | C197: 191.75 | D197: 192.48 | E197: 189.52 | F197: 187.28 | G197: 184.32 | H197: 194.72 | I197: 197.68 | J197: 199.92 | K197: 195.45 | L197: 190.25 | M197: 2.24817
A198: 188 | B198: HERITGFOOD | C198: 377.4 | D198: 371.45 | E198: 357.90 | F198: 338.40 | G198: 324.85 | H198: 390.95 | I198: 404.50 | J198: 424.00 | K198: 385 | L198: 351.95 | M198: 0.26654
A199: 189 | B199: HEROMOTOCO | C199: 2760.15 | D199: 2736.72 | E199: 2703.43 | F199: 2646.72 | G199: 2613.43 | H199: 2793.43 | I199: 2826.72 | J199: 2883.43 | K199: 2770 | L199: 2680 | M199: 10.63773
A200: 190 | B200: HEXAWARE | C200: 380.05 | D200: 380.50 | E200: 378.00 | F200: 375.95 | G200: 373.45 | H200: 382.55 | I200: 385.05 | J200: 387.10 | K200: 383 | L200: 378.45 | M200: 4.52083
A201: 191 | B201: HFCL | C201: 19.7 | D201: 19.55 | E201: 19.20 | F201: 18.70 | G201: 18.35 | H201: 20.05 | I201: 20.40 | J201: 20.90 | K201: 19.9 | L201: 19.05 | M201: 18.72639
A202: 192 | B202: HSCL | C202: 75.25 | D202: 75.28 | E202: 73.47 | F202: 71.68 | G202: 69.87 | H202: 77.07 | I202: 78.88 | J202: 80.67 | K202: 77.1 | L202: 73.5 | M202: 7.73447
A203: 193 | B203: HIMATSEIDE | C203: 143.5 | D203: 144.60 | E203: 141.70 | F203: 139.90 | G203: 137.00 | H203: 146.40 | I203: 149.30 | J203: 151.10 | K203: 147.5 | L203: 142.8 | M203: 0.89795
A204: 194 | B204: HINDALCO | C204: 193.45 | D204: 192.22 | E204: 190.23 | F204: 187.02 | G204: 185.03 | H204: 195.43 | I204: 197.42 | J204: 200.63 | K204: 194.2 | L204: 189 | M204: 59.04788
A205: 195 | B205: HAL | C205: 696.8 | D205: 700.23 | E205: 691.57 | F205: 686.33 | G205: 677.67 | H205: 705.47 | I205: 714.13 | J205: 719.37 | K205: 708.9 | L205: 695 | M205: 0.10955
A206: 196 | B206: HINDCOPPER | C206: 35.05 | D206: 35.02 | E206: 34.43 | F206: 33.82 | G206: 33.23 | H206: 35.63 | I206: 36.22 | J206: 36.83 | K206: 35.6 | L206: 34.4 | M206: 7.24113
... 320 more rows

Sheet Bulk Deals
E6: Back To Main Page
A7: Subject : | B7: BULK DEAL | D7: =Main!B10 -> 2019-09-12
A9: Date | B9: Scrip code | C9: Scrip Name | D9: Client Name | E9: Buy / Sell | F9: Quantity Traded | G9: Trade Price / Wt.Avg.trade price | H9: Exchange
A10: 2019-09-11 | B10: 541401 | C10: ARIHANTINS | D10: ARUNKUMAR DASHRATHBHAI PRAJAPATI | E10: BUY | F10: 52,000 | G10: 5.67 | H10: BSE
A11: 2019-09-11 | B11: 541401 | C11: ARIHANTINS | D11: ARUNKUMAR DASHRATHBHAI PRAJAPATI | E11: SELL | F11: 52,000 | G11: 5.59 | H11: BSE
A12: 2019-09-11 | B12: 590122 | C12: ASHIKACR | D12: DEEPAK KUMAR | E12: BUY | F12: 36,000 | G12: 37.5 | H12: BSE
A13: 2019-09-11 | B13: 590122 | C13: ASHIKACR | D13: SEEMA | E13: SELL | F13: 40,000 | G13: 38 | H13: BSE
A14: 2019-09-11 | B14: 539447 | C14: BEARDSELL | D14: ANUMOLU ANUMOLU BHARAT | E14: SELL | F14: 1,563,694 | G14: 12 | H14: BSE
A15: 2019-09-11 | B15: 539447 | C15: BEARDSELL | D15: JAGDISH AMRITLAL SHAH | E15: BUY | F15: 200,000 | G15: 12 | H15: BSE
A16: 2019-09-11 | B16: 539447 | C16: BEARDSELL | D16: VINODCHANDRA MANSUKHLAL PAREKH | E16: BUY | F16: 1,300,000 | G16: 12 | H16: BSE
A17: 2019-09-11 | B17: 542641 | C17: CKFSL | D17: ALPHA LEON ENTERPRISES LLP | E17: BUY | F17: 1,300,015 | G17: 0.52 | H17: BSE
A18: 2019-09-11 | B18: 542641 | C18: CKFSL | D18: ALPHA LEON ENTERPRISES LLP | E18: SELL | F18: 22 | G18: 0.55 | H18: BSE
A19: 2019-09-11 | B19: 542641 | C19: CKFSL | D19: KARST PEAK ASIA MASTER FUND | E19: SELL | F19: 449,838 | G19: 0.52 | H19: BSE
A20: 2019-09-11 | B20: 542641 | C20: CKFSL | D20: THE BOARD OF REGENTS OF THE UNIVERSITY OF TEXAS SYSTEM - SAGA TREE CAPITAL ADVISORS PTE LTD | E20: SELL | F20: 754,005 | G20: 0.52 | H20: BSE
A21: 2019-09-11 | B21: 542641 | C21: CKFSL | D21: MULTIPLIER SHARE & STOCK ADVISORS PRIVATE LIMITED | E21: BUY | F21: 429,635 | G21: 0.54 | H21: BSE
A22: 2019-09-11 | B22: 542641 | C22: CKFSL | D22: MEHUL SURESH PARIKH | E22: BUY | F22: 900,000 | G22: 0.53 | H22: BSE
A23: 2019-09-11 | B23: 542641 | C23: CKFSL | D23: XANDER FINANCE PRIVATE LIMITED | E23: SELL | F23: 905,555 | G23: 0.54 | H23: BSE
A24: 2019-09-11 | B24: 542641 | C24: CKFSL | D24: RATTANINDIA FINANCE PRIVATE LIMITED | E24: SELL | F24: 1,191,950 | G24: 0.55 | H24: BSE
A25: 2019-09-11 | B25: 542641 | C25: CKFSL | D25: TANISH TRADEFIN LLP | E25: BUY | F25: 1,011,000 | G25: 0.55 | H25: BSE
A26: 2019-09-11 | B26: 542641 | C26: CKFSL | D26: TANISH TRADEFIN LLP | E26: SELL | F26: 11,010 | G26: 0.56 | H26: BSE
A27: 2019-09-11 | B27: 533144 | C27: COX&KINGS | D27: TANISH TRADEFIN LLP | E27: BUY | F27: 1,650,000 | G27: 3.1 | H27: BSE
A28: 2019-09-11 | B28: 533144 | C28: COX&KINGS | D28: TANISH TRADEFIN LLP | E28: SELL | F28: 650,000 | G28: 3.16 | H28: BSE
A29: 2019-09-11 | B29: 533144 | C29: COX&KINGS | D29: SETU SECURITIES PVT LTD | E29: BUY | F29: 2,000,000 | G29: 3.1 | H29: BSE
A30: 2019-09-11 | B30: 533144 | C30: COX&KINGS | D30: SETU SECURITIES PVT LTD | E30: SELL | F30: 1,000,000 | G30: 3.36 | H30: BSE
A31: 2019-09-11 | B31: 533144 | C31: COX&KINGS | D31: SSGA FUNDS MANAGEMENT INC AC SPDR S&P EMERGING ASIA PACIFIC ETF | E31: SELL | F31: 1,162,443 | G31: 3.1 | H31: BSE
A32: 2019-09-11 | B32: 533144 | C32: COX&KINGS | D32: AMERICAN FUNDS INSURANCE SERIES-GLOBAL CAPITALIZATION FUND | E32: SELL | F32: 905,302 | G32: 3.1 | H32: BSE
A33: 2019-09-11 | B33: 533144 | C33: COX&KINGS | D33: SMALLCAP WORLD FUND INC | E33: SELL | F33: 4,571,137 | G33: 3.1 | H33: BSE
A34: 2019-09-11 | B34: 541627 | C34: HITECHWIND | D34: DAXABEN PRAVINBHAI SHAH | E34: BUY | F34: 3,000 | G34: 9.82 | H34: BSE
A35: 2019-09-11 | B35: 541627 | C35: HITECHWIND | D35: DAXABEN PRAVINBHAI SHAH | E35: SELL | F35: 28,300 | G35: 9.93 | H35: BSE
A36: 2019-09-11 | B36: 532326 | C36: INTENTECH | D36: ASHOK KUMAR GOENKA | E36: BUY | F36: 200,000 | G36: 23.1 | H36: BSE
A37: 2019-09-11 | B37: 522287 | C37: KALPATPOWR | D37: MOFATRAJ PUKHRAJ MUNOT | E37: SELL | F37: 1,400,000 | G37: 444 | H37: BSE
A38: 2019-09-11 | B38: 539938 | C38: MIL | D38: BHARATI ARVIND SHAH | E38: BUY | F38: 18,800 | G38: 75.58 | H38: BSE
A39: 2019-09-11 | B39: 539938 | C39: MIL | D39: BHARATI ARVIND SHAH | E39: SELL | F39: 8,937 | G39: 81.19 | H39: BSE
A40: 2019-09-11 | B40: 539938 | C40: MIL | D40: NARESH JAYANTILAL SHAH | E40: SELL | F40: 18,000 | G40: 75.5 | H40: BSE
A41: 2019-09-11 | B41: 542383 | C41: RITCO | D41: DIMPLE VIPUL PATEL . | E41: SELL | F41: 158,400 | G41: 59.26 | H41: BSE
A42: 2019-09-11 | B42: 533107 | C42: RNAVAL | D42: MORGAN STANLEY MAURITIUS COMPANY LIMITED | E42: SELL | F42: 5,133,977 | G42: 0.7 | H42: BSE
A43: 2019-09-11 | B43: 533107 | C43: RNAVAL | D43: MORGAN STANLEY FRANCE SAS | E43: SELL | F43: 6,850,434 | G43: 0.72 | H43: BSE
A44: 2019-09-11 | B44: 533107 | C44: RNAVAL | D44: KSHITIJ PORTFOLIO PRIVATE LIMITED | E44: BUY | F44: 4,000,000 | G44: 0.7 | H44: BSE
A45: 2019-09-11 | B45: 533107 | C45: RNAVAL | D45: TANISH TRADEFIN LLP | E45: BUY | F45: 3,728,036 | G45: 0.71 | H45: BSE
A46: 2019-09-11 | B46: 533107 | C46: RNAVAL | D46: TANISH TRADEFIN LLP | E46: SELL | F46: 1,628,036 | G46: 0.72 | H46: BSE
A47: 2019-09-11 | B47: 540259 | C47: SHANGAR | D47: BARKHA RAJESHKUAMR AHUJA | E47: SELL | F47: 15,400 | G47: 37.25 | H47: BSE
A48: 2019-09-11 | B48: 539363 | C48: SKC | D48: KAILASH DHIRENDRA DUBAL | E48: BUY | F48: 91,641 | G48: 10.29 | H48: BSE
A49: 2019-09-11 | B49: 540253 | C49: SNTCL | D49: FASTNER MACHINERY DEALERS PVT LIMITED | E49: SELL | F49: 52,000 | G49: 13.7 | H49: BSE
A50: 2019-09-11 | B50: 539026 | C50: SSPNFIN | D50: ASHOK KUMAR SINGH | E50: BUY | F50: 18,000 | G50: 58.77 | H50: BSE
A51: 2019-09-11 | B51: 539026 | C51: SSPNFIN | D51: CHANDU K JAIN HUF | E51: SELL | F51: 12,000 | G51: 58.1 | H51: BSE
A52: 2019-09-11 | B52: 532348 | C52: SUBEX | D52: UNO METALS LIMITED | E52: BUY | F52: 4,870,031 | G52: 5.52 | H52: BSE
A53: 2019-09-11 | B53: 532348 | C53: SUBEX | D53: ASHOK KUMAR GOENKA | E53: SELL | F53: 6,000,000 | G53: 5.51 | H53: BSE
A54: 2019-09-11 | B54: 542765 | C54: TRANSPACT | D54: ARYAMAN BROKING LIMITED | E54: BUY | F54: 17,000 | G54: 131.76 | H54: BSE
A55: 2019-09-11 | B55: 542765 | C55: TRANSPACT | D55: ARYAMAN BROKING LIMITED | E55: SELL | F55: 4,000 | G55: 131 | H55: BSE
A56: 2019-09-11 | B56: 539402 | C56: VAL | D56: PARESHKUMAR SHAH PRATIK | E56: BUY | F56: 88,000 | G56: 9.1 | H56: BSE
A57: 2019-09-11 | B57: 539402 | C57: VAL | D57: OVERSKUD MULTI ASSET MANAGEMENT PRIVATE LIMITED | E57: SELL | F57: 40,000 | G57: 9.1 | H57: BSE
A58: 2019-09-11 | B58: 539402 | C58: VAL | D58: SAJANKUMAR RAMESHWARLAL BAJAJ | E58: SELL | F58: 48,000 | G58: 9.1 | H58: BSE
A59: 2019-09-11 | B59: CKFSL | C59: Cox & Kings Fin Serv Ltd | D59: MULTIPLIER S AND S ADV PVT LTD | E59: BUY | F59: 756,399 | G59: 0.68 | H59: NSE
A60: 2019-09-11 | B60: CKFSL | C60: Cox & Kings Fin Serv Ltd | D60: ALPHA LEON ENTERPRISES LLP | E60: BUY | F60: 38 | G60: 0.71 | H60: NSE
A61: 2019-09-11 | B61: CKFSL | C61: Cox & Kings Fin Serv Ltd | D61: VIJIT ASSET MANAGEMENT PRIVATE LIMITED | E61: BUY | F61: 1,100,000 | G61: 0.65 | H61: NSE
A62: 2019-09-11 | B62: CKFSL | C62: Cox & Kings Fin Serv Ltd | D62: VIJIT TRADING | E62: BUY | F62: 900,000 | G62: 0.75 | H62: NSE
A63: 2019-09-11 | B63: DHFL | C63: Dewan Housing Fin Corp | D63: TOWER RESEARCH CAPITAL MARKETS INDIA PRIVATE LIMITED | E63: BUY | F63: 2,461,344 | G63: 50.75 | H63: NSE
A64: 2019-09-11 | B64: ESCORTS | C64: Escorts India Ltd. | D64: TOWER RESEARCH CAPITAL MARKETS INDIA PRIVATE LIMITED | E64: BUY | F64: 619603 | G64: 518.91 | H64: NSE
A65: 2019-09-11 | B65: KALPATPOWR | C65: Kalpataru Pow Trans Ltd | D65: ICICI PRUDENTIAL MUTUAL FUND A/C ICICI PRUDENTIAL BALANCED ADVANTAGE FUND | E65: BUY | F65: 800000 | G65: 444 | H65: NSE
A66: 2019-09-11 | B66: KALPATPOWR | C66: Kalpataru Pow Trans Ltd | D66: TNTBC AS THE TRUSTEE OF NOMURA INDIA STOCK MOTHER FUND | E66: BUY | F66: 2300000 | G66: 444 | H66: NSE
A67: 2019-09-11 | B67: MCX | C67: Multi Commodity Exchange | D67: ALPHAGREP SECURITIES PRIVATE LIMITED | E67: BUY | F67: 311607 | G67: 983.3 | H67: NSE
A68: 2019-09-11 | B68: MCX | C68: Multi Commodity Exchange | D68: CROSSLAND TRADING CO | E68: BUY | F68: 303777 | G68: 985.12 | H68: NSE
A69: 2019-09-11 | B69: MCX | C69: Multi Commodity Exchange | D69: GRAVITON RESEARCH CAPITAL LLP | E69: BUY | F69: 214988 | G69: 979.53 | H69: NSE
A70: 2019-09-11 | B70: RELCAPITAL | C70: Reliance Capital Limited | D70: TOWER RESEARCH CAPITAL MARKETS INDIA PRIVATE LIMITED | E70: BUY | F70: 4441976 | G70: 36.4 | H70: NSE
A71: 2019-09-11 | B71: RELINFRA | C71: Reliance Infrastructu Ltd | D71: TOWER RESEARCH CAPITAL MARKETS INDIA PRIVATE LIMITED | E71: BUY | F71: 3262690 | G71: 39.99 | H71: NSE
A72: 2019-09-11 | B72: SANCO | C72: Sanco Industries Ltd. | D72: SUNIL GIRDHARILAL RAHEJA | E72: BUY | F72: 74393 | G72: 20.76 | H72: NSE
A73: 2019-09-11 | B73: TALWALKARS | C73: Talwalkar Fitness Ltd | D73: MULTIPLIER S AND S ADV PVT LTD | E73: BUY | F73: 200000 | G73: 5.7 | H73: NSE
A74: 2019-09-11 | B74: TALWALKARS | C74: Talwalkar Fitness Ltd | D74: WALLFORT FINANCIAL SERVICES LTD | E74: BUY | F74: 200000 | G74: 5.7 | H74: NSE
A75: 2019-09-11 | B75: TALWALKARS | C75: Talwalkar Fitness Ltd | D75: TANISH TRADEFIN LLP | E75: BUY | F75: 210000 | G75: 5.73 | H75: NSE
A76: 2019-09-11 | B76: TALWGYM | C76: Talwalkars Lifestyles Ltd | D76: KSHITIJ PORTFOLIO PVT LTD | E76: BUY | F76: 900000 | G76: 9.7 | H76: NSE
A77: 2019-09-11 | B77: TALWGYM | C77: Talwalkars Lifestyles Ltd | D77: SWAPNIL MEHTA | E77: BUY | F77: 51238 | G77: 10.69 | H77: NSE
A78: 2019-09-11 | B78: TALWGYM | C78: Talwalkars Lifestyles Ltd | D78: WALLFORT FINANCIAL SERVICES LTD | E78: BUY | F78: 500000 | G78: 9.75 | H78: NSE
A79: 2019-09-11 | B79: TALWGYM | C79: Talwalkars Lifestyles Ltd | D79: WOODSTOCK BROKING PRIVATE LIMITED | E79: BUY | F79: 161500 | G79: 10.45 | H79: NSE
A80: 2019-09-11 | B80: TALWGYM | C80: Talwalkars Lifestyles Ltd | D80: ALPHA LEON ENTERPRISES LLP | E80: BUY | F80: 70036 | G80: 9.78 | H80: NSE
A81: 2019-09-11 | B81: TALWGYM | C81: Talwalkars Lifestyles Ltd | D81: AMIT KUMAR VAISH | E81: BUY | F81: 174265 | G81: 10.65 | H81: NSE
A82: 2019-09-11 | B82: TALWGYM | C82: Talwalkars Lifestyles Ltd | D82: JYOTI PORTFOLIO LTD | E82: BUY | F82: 589545 | G82: 9.7 | H82: NSE
A83: 2019-09-11 | B83: TATAMTRDVR | C83: Tata Motors DVR 'A' Ord | D83: TOWER RESEARCH CAPITAL MARKETS INDIA PRIVATE LIMITED | E83: BUY | F83: 2754151 | G83: 59.4 | H83: NSE
A84: 2019-09-11 | B84: VETO | C84: Veto Switchgear Cable Ltd | D84: J S L ENTERPRISES | E84: BUY | F84: 172000 | G84: 52.6 | H84: NSE
A85: 2019-09-11 | B85: YESBANK | C85: Yes Bank Limited | D85: TOWER RESEARCH CAPITAL MARKETS INDIA PRIVATE LIMITED | E85: BUY | F85: 27816951 | G85: 69.29 | H85: NSE
A86: 2019-09-11 | B86: YESBANK | C86: Yes Bank Limited | D86: ALPHAGREP SECURITIES PRIVATE LIMITED | E86: BUY | F86: 13153590 | G86: 70.16 | H86: NSE
A87: 2019-09-11 | B87: CKFSL | C87: Cox & Kings Fin Serv Ltd | D87: XANDER FINANCE PRIVATE LIMITED | E87: SELL | F87: 933079 | G87: 0.65 | H87: NSE
A88: 2019-09-11 | B88: CKFSL | C88: Cox & Kings Fin Serv Ltd | D88: MULTIPLIER S AND S ADV PVT LTD | E88: SELL | F88: 457399 | G88: 0.66 | H88: NSE
A89: 2019-09-11 | B89: CKFSL | C89: Cox & Kings Fin Serv Ltd | D89: KARST PEAK VERMILION PARTNERS MASTER FUND | E89: SELL | F89: 731432 | G89: 0.72 | H89: NSE
A90: 2019-09-11 | B90: CKFSL | C90: Cox & Kings Fin Serv Ltd | D90: KARST PEAK ASIA MASTER FUND | E90: SELL | F90: 1315254 | G90: 0.72 | H90: NSE
A91: 2019-09-11 | B91: CKFSL | C91: Cox & Kings Fin Serv Ltd | D91: ALPHA LEON ENTERPRISES LLP | E91: SELL | F91: 1300050 | G91: 0.69 | H91: NSE
A92: 2019-09-11 | B92: COX&KINGS | C92: Cox & Kings Limited | D92: SETU SECURITIES PVT LTD | E92: SELL | F92: 1000010 | G92: 3.6 | H92: NSE
A93: 2019-09-11 | B93: DHFL | C93: Dewan Housing Fin Corp | D93: TOWER RESEARCH CAPITAL MARKETS INDIA PRIVATE LIMITED | E93: SELL | F93: 2461344 | G93: 50.68 | H93: NSE
A94: 2019-09-11 | B94: ESCORTS | C94: Escorts India Ltd. | D94: TOWER RESEARCH CAPITAL MARKETS INDIA PRIVATE LIMITED | E94: SELL | F94: 619603 | G94: 519.83 | H94: NSE
A95: 2019-09-11 | B95: ICICIGI | C95: ICICI Lombard GIC Limited | D95: RED BLOOM INVESTMENT LTD | E95: SELL | F95: 12281312 | G95: 1122.27 | H95: NSE
A96: 2019-09-11 | B96: KALPATPOWR | C96: Kalpataru Pow Trans Ltd | D96: PARAG MOFATRAJ MUNOT | E96: SELL | F96: 5450000 | G96: 444.03 | H96: NSE
A97: 2019-09-11 | B97: KWALITY | C97: Kwality Limited | D97: VISTRA ITCL (INDIA) LIMITED | E97: SELL | F97: 1850000 | G97: 1.86 | H97: NSE
A98: 2019-09-11 | B98: MCX | C98: Multi Commodity Exchange | D98: ALPHAGREP SECURITIES PRIVATE LIMITED | E98: SELL | F98: 311607 | G98: 983.52 | H98: NSE
A99: 2019-09-11 | B99: MCX | C99: Multi Commodity Exchange | D99: GRAVITON RESEARCH CAPITAL LLP | E99: SELL | F99: 269588 | G99: 981.14 | H99: NSE
A100: 2019-09-11 | B100: MCX | C100: Multi Commodity Exchange | D100: CROSSLAND TRADING CO | E100: SELL | F100: 306330 | G100: 985.34 | H100: NSE
A101: 2019-09-11 | B101: RELCAPITAL | C101: Reliance Capital Limited | D101: TOWER RESEARCH CAPITAL MARKETS INDIA PRIVATE LIMITED | E101: SELL | F101: 4441976 | G101: 36.41 | H101: NSE
A102: 2019-09-11 | B102: RELINFRA | C102: Reliance Infrastructu Ltd | D102: TOWER RESEARCH CAPITAL MARKETS INDIA PRIVATE LIMITED | E102: SELL | F102: 3262690 | G102: 40.09 | H102: NSE
A103: 2019-09-11 | B103: RNAVAL | C103: Reliance Naval & Eng Ltd. | D103: KSHITIJ PORTFOLIO PVT LTD | E103: SELL | F103: 4000000 | G103: 0.93 | H103: NSE
A104: 2019-09-11 | B104: SAKETH | C104: Saketh Exim Limited | D104: ARYAMAN CAPITAL MARKETS LIMITED | E104: SELL | F104: 40000 | G104: 112.13 | H104: NSE
A105: 2019-09-11 | B105: SANCO | C105: Sanco Industries Ltd. | D105: SUNIL GIRDHARILAL RAHEJA | E105: SELL | F105: 74393 | G105: 20.9 | H105: NSE
A106: 2019-09-11 | B106: TALWALKARS | C106: Talwalkar Fitness Ltd | D106: ASCENT INDIA FUND III | E106: SELL | F106: 1439763 | G106: 5.7 | H106: NSE
A107: 2019-09-11 | B107: TALWGYM | C107: Talwalkars Lifestyles Ltd | D107: SWAPNIL MEHTA | E107: SELL | F107: 201238 | G107: 9.85 | H107: NSE
A108: 2019-09-11 | B108: TALWGYM | C108: Talwalkars Lifestyles Ltd | D108: VISA CAPITAL PARTNERS | E108: SELL | F108: 161500 | G108: 10.45 | H108: NSE
A109: 2019-09-11 | B109: TALWGYM | C109: Talwalkars Lifestyles Ltd | D109: ASCENT INDIA FUND III | E109: SELL | F109: 1475400 | G109: 9.74 | H109: NSE
A110: 2019-09-11 | B110: TALWGYM | C110: Talwalkars Lifestyles Ltd | D110: AMIT KUMAR VAISH | E110: SELL | F110: 145099 | G110: 10.08 | H110: NSE
A111: 2019-09-11 | B111: TALWGYM | C111: Talwalkars Lifestyles Ltd | D111: ALPHA LEON ENTERPRISES LLP | E111: SELL | F111: 170036 | G111: 9.7 | H111: NSE
A112: 2019-09-11 | B112: TALWGYM | C112: Talwalkars Lifestyles Ltd | D112: JYOTI PORTFOLIO LTD | E112: SELL | F112: 589545 | G112: 10.65 | H112: NSE
A113: 2019-09-11 | B113: TATAMTRDVR | C113: Tata Motors DVR 'A' Ord | D113: TOWER RESEARCH CAPITAL MARKETS INDIA PRIVATE LIMITED | E113: SELL | F113: 2754151 | G113: 59.49 | H113: NSE
A114: 2019-09-11 | B114: VETO | C114: Veto Switchgear Cable Ltd | D114: ANANT JAIN | E114: SELL | F114: 172000 | G114: 52.6 | H114: NSE
A115: 2019-09-11 | B115: YESBANK | C115: Yes Bank Limited | D115: ALPHAGREP SECURITIES PRIVATE LIMITED | E115: SELL | F115: 13153380 | G115: 70.2 | H115: NSE
A116: 2019-09-11 | B116: YESBANK | C116: Yes Bank Limited | D116: TOWER RESEARCH CAPITAL MARKETS INDIA PRIVATE LIMITED | E116: SELL | F116: 27816951 | G116: 69.34 | H116: NSE

Sheet Call Tracker (Equity & F&O)
M5: Back To Main Page
A6: Retail Research Technical Calls & Fundamental Performance Report for the month of September-2019
M7: =Main!B10 -> 2019-09-12
B8: Positional Call
A9: Sr.no | B9: Date | D9: Company | E9: Rec | F9: Rec Price | G9: Stop Loss*** | H9: Call Closed At | I9: Target | J9: Remark | K9: Profit / Loss per Share | L9: Gain / Loss % | M9: Status | N9: Closed Date | O9: NSE Closed Price
A10: 1 | B10: 2019-08-01 | D10: HDFCBANK | E10: Buy | F10: 2205-2215 | G10: 2130 | I10: 2320-2370 | J10: Open | O10: =VLOOKUP(D10,Sheet2!A25:M1664,6,0) -> 2251.3 | R10: H
A11: 2 | B11: 2019-08-02 | D11: LT | E11: Buy | F11: 1345-1355 | G11: 1270 | I11: 1500 | J11: Open | O11: =VLOOKUP(D11,Sheet2!A26:M1665,6,0) -> 1363.65 | R11: H
A12: 3 | B12: 2019-08-09 | D12: TATACHEM | E12: Buy | F12: 566 | G12: 534 | H12: 583.5 | I12: 620-640 | J12: Profit of Rs.17.50/- | K12: =H12-F12 -> 17.5 | L12: =K12/F12 -> 3.09% | M12: Successful | N12: 2019-09-05 | R12: H
A13: 4 | B13: 2019-08-19 | D13: TATAELXSI | E13: Buy | F13: 635 | G13: 597 | H13: 660.5 | I13: 700-720 | J13: Part Profit of Rs.25.50/- | K13: =H13-F13 -> 25.5 | L13: =K13/F13 -> 4.02% | M13: Successful | N13: 2019-08-27 | O13: =VLOOKUP(D13,Sheet2!A36:M1675,6,0) -> 644.9 | R13: R
A14: 5 | B14: 2019-08-23 | D14: IOC | E14: Buy | F14: 122.5 | G14: 114.4 | H14: 122.75 | I14: 135 | J14: Neutral | K14: =H14-F14 -> 0.25 | L14: =K14/F14 -> 0.20% | M14: Neutral | N14: 2019-09-03 | R14: H
A15: 6 | B15: 2019-08-30 | D15: BIOCON | E15: Buy | F15: 229.5 | G15: 214.3 | H15: 237 | I15: 255-260 | J15: Part Profit of Rs.7.5/- | K15: =H15-F15 -> 7.5 | L15: =K15/F15 -> 3.27% | M15: Successful | N15: 2019-08-30 | O15: =VLOOKUP(D15,Sheet2!A38:M1677,6,0) -> 234.8 | R15: R
A16: 7 | B16: 2019-09-03 | D16: POWERGRID | E16: Buy | F16: 197-199 | G16: 186 | I16: 220-224 | J16: Open | O16: =VLOOKUP(D16,Sheet2!A31:M1670,6,0) -> 201.4 | R16: R
A17: 8 | B17: 2019-09-04 | D17: JUSTDIAL | E17: Buy | F17: 709.5 | G17: 673 | H17: 734 | I17: 775-785 | J17: Part Profit of Rs.24.5/- | K17: =H17-F17 -> 24.5 | L17: =K17/F17 -> 3.45% | M17: Successful | N17: 2019-09-09 | O17: =VLOOKUP(D17,Sheet2!A40:M1679,6,0) -> 725.8 | R17: R
A18: 9 | B18: 2019-09-09 | D18: TATAGLOBAL | E18: Buy | F18: 265-267 | G18: 256 | I18: 281-285 | J18: Open | O18: =VLOOKUP(D18,Sheet2!A33:M1672,6,0) -> 259.35 | R18: R
A19: 10 | B19: 2019-09-09 | D19: TORNTPHARM | E19: Sell | F19: 1710-1720 | G19: 1808 | I19: 1560-1540 | J19: Open | O19: =VLOOKUP(D19,Sheet2!A34:M1673,6,0) -> 1698.3 | R19: R
A20: 11 | B20: 2019-09-11 | D20: LICHSGFIN | E20: Buy | F20: 398-403 | G20: 379 | I20: 440-450 | J20: Open | O20: =VLOOKUP(D20,Sheet2!A35:M1674,6,0) -> 402.65
A30: CLBS = Closing Basis *** | F30: Reinitiated $
A31: Dividend adjusted <> | F31: Revised stoploss #
A32: Part book {}
B34: Momentum Call
A35: Sr.no | B35: Date | D35: Company | E35: Rec | F35: Rec Price | G35: Stop Loss | H35: Call Closed At | I35: Target | J35: Remark | K35: Profit / Loss per Share/Lot | L35: Gain / Loss % | M35: Gain / Loss per Lot | N35: Lot | O35: Status | P35: Closed Date
A36: 1 | B36: 2019-08-30 | D36: INFY | E36: Sell | F36: 805 | G36: 822 | H36: 827.5 | I36: 760 | J36: Loss of Rs.22.5/- | K36: =F36-H36 -> -22.5 | L36: =K36/F36 -> -2.80% | O36: Unsuccessful | P36: 2019-09-05 | R36: H
A37: 2 | B37: 2019-09-03 | D37: CONCOR SEP FUT | E37: Buy | F37: 498 | G37: 488 | H37: 503 | I37: 515 | J37: Profit of Rs.5/- | K37: =H37-F37 -> 5 | M37: =N37*K37 -> 7815 | N37: 1563 | O37: Successful | P37: 2019-09-03 | R37: N
A38: 3 | B38: 2019-09-03 | D38: DABUR | E38: Sell | F38: 451 | G38: 464 | H38: 446 | I38: 435-430 | J38: Profit of Rs.5/- | K38: =F38-H38 -> 5 | L38: =K38/F38 -> 1.11% | O38: Successful | P38: 2019-09-03 | R38: H
A39: 4 | B39: 2019-09-03 | D39: NIFTY SEP FUT | E39: Buy | F39: 10845 | G39: 10740 | H39: 10905 | I39: 10980-11000 | J39: Profit of Rs.60/- | K39: =H39-F39 -> 60 | M39: =N39*K39 -> 4500 | N39: 75 | O39: Successful | P39: 2019-09-04 | R39: R
A40: 5 | B40: 2019-09-03 | D40: BANKNIFTY SEP FUT | E40: Buy | F40: 26870 | G40: 26580 | H40: 27070 | I40: 27000-27100 | J40: Profit of Rs.200/- | K40: 200 | M40: =N40*K40 -> 4000 | N40: 20 | O40: Successful | P40: 2019-09-04 | R40: R
A41: 6 | B41: 2019-09-04 | D41: HDFCBANK SEP FUT | E41: Buy | F41: 2210 | G41: 2167 | H41: 2242.5 | I41: 2270 | J41: Profit of Rs.32.50/- | K41: 32.5 | M41: 8125 | N41: 250 | O41: Successful | P41: 2019-09-04 | R41: R
A42: 7 | B42: 2019-09-04 | D42: BANKBARODA | E42: Buy | F42: 92 | G42: 88.7 | H42: 93.7 | I42: 96-98 | J42: Profit of Rs.1.70/- | K42: 1.7 | L42: =K42/F42 -> 1.85% | O42: Successful | P42: 2019-09-04 | R42: R
A43: 8 | B43: 2019-09-04 | D43: ICICIBANK SEP FUT | E43: Buy | F43: 396 | G43: 386 | H43: 401.5 | I43: 410 | J43: Profit of Rs.5.50/- | K43: 5.5 | M43: =N43*K43 -> 7562.5 | N43: 1375 | O43: Successful | P43: 2019-09-04 | R43: N
A44: 9 | B44: 2019-09-04 | D44: CONCOR SEP FUT | E44: Buy | F44: 493 | G44: 484 | H44: 498 | I44: 510 | J44: Profit of Rs.5/- | K44: 5 | M44: =N44*K44 -> 7815 | N44: 1563 | O44: Successful | P44: 2019-09-04 | R44: N
A45: 10 | B45: 2019-09-04 | D45: DABUR SEP FUT | E45: Buy | F45: 436.5 | G45: 426 | H45: 444 | I45: 455 | J45: Profit of Rs.7.5/- | K45: 7.5 | M45: =N45*K45 -> 9375 | N45: 1250 | O45: Successful | P45: 2019-09-04 | R45: N
A46: 11 | B46: 2019-09-05 | D46: COLPAL SEP FUT | E46: Buy | F46: 1245 | G46: 1228 | H46: 1256 | I46: 1270 | J46: Profit of Rs.11/- | K46: 11 | M46: 7700 | N46: 700 | O46: Successful | P46: 2019-09-09 | R46: N
A47: 12 | B47: 2019-09-05 | D47: SBIN | E47: Buy | F47: 272.5 | G47: 264 | H47: 278 | I47: 285-290 | J47: Profit of Rs.5.5/- | K47: =H47-F47 -> 5.5 | L47: =K47/F47 -> 2.02% | O47: Successful | P47: 2019-09-09 | R47: H
A48: 13 | B48: 2019-09-05 | D48: PFC | E48: Buy | F48: 106.5 | G48: 104 | H48: 104 | I48: 112-114 | J48: Loss of Rs.2.5/- | K48: =H48-F48 -> -2.5 | L48: =K48/F48 -> -2.35% | O48: Unsuccessful | P48: 2019-09-05 | R48: H
A49: 14 | B49: 2019-09-05 | D49: M&M SEP FUT | E49: Buy | F49: 517 | G49: 505 | H49: 524 | I49: 535 | J49: Profit of Rs.7/- | K49: =H49-F49 -> 7 | M49: =N49*K49 -> 7000 | N49: 1000 | O49: Successful | P49: 2019-09-06 | R49: N
A50: 15 | B50: 2019-09-05 | D50: POWERGRID SEP FUT | E50: Buy | F50: 198.5 | G50: 195 | H50: 200.5 | I50: 206 | J50: Profit of Rs.2/- | K50: =H50-F50 -> 2 | M50: =N50*K50 -> 8000 | N50: 4000 | O50: Successful | P50: 2019-09-05 | R50: N
A51: 16 | B51: 2019-09-05 | D51: YESBANK | E51: Buy | F51: 61.2 | G51: 59.7 | H51: 63 | I51: 65 | J51: Profit of Rs.1.80/- | K51: 1.8 | L51: =K51/F51 -> 2.94% | O51: Successful | P51: 2019-09-09 | R51: R
A52: 17 | B52: 2019-09-06 | D52: HDFC | E52: Buy | F52: 2027.5 | G52: 1980 | H52: 2068 | I52: 2100-2120 | J52: Profit of Rs.40.5/- | K52: 40.5 | L52: 2.00% | O52: Successful | P52: 2019-09-09 | R52: H
A53: 18 | B53: 2019-09-06 | D53: BATAINDIA SEP FUT | E53: Buy | F53: 1531 | G53: 1510 | H53: 1548.5 | I53: 1560-1570 | J53: Profit of Rs.17.5/- | K53: =H53-F53 -> 17.5 | M53: =N53*K53 -> 9625 | N53: 550 | O53: Successful | P53: 2019-09-09 | R53: N
A54: 19 | B54: 2019-09-06 | D54: TORNTPOWER SEP FUT | E54: Sell | F54: 275 | G54: 279 | H54: 275 | I54: 266 | J54: Neutral | K54: 0 | M54: 0 | N54: 3000 | O54: Neutral | P54: 2019-09-09 | R54: N
A55: 20 | B55: 2019-09-06 | D55: CONCOR SEP FUT | E55: Buy | F55: 505 | G55: 495 | H55: 507.5 | I55: 520-525 | J55: Profit of Rs.2.50/- | K55: 2.5 | M55: 3907.5 | N55: 1563 | O55: Successful | P55: 2019-09-09 | R55: N
A56: 21 | B56: 2019-09-09 | D56: JUBLFOOD SEP FUT | E56: Buy | F56: 1197 | G56: 1174 | H56: 1214.5 | I56: 1240-1250 | J56: Profit of Rs.17.50/- | K56: =H56-F56 -> 17.5 | M56: =N56*K56 -> 8750 | N56: 500 | O56: Successful | P56: 2019-09-11 | R56: R
A57: 22 | B57: 2019-09-09 | D57: RECLTD | E57: Buy | F57: 149.5 | G57: 144.5 | I57: 160-163 | J57: Open | R57: H
A58: 23 | B58: 2019-09-09 | D58: ENGINERSIN | E58: Sell | F58: 110-111 | G58: 114 | I58: 160-105 | J58: Open | R58: H
A59: 24 | B59: 2019-09-11 | D59: KOTAKBANK SEP FUT | E59: Buy | F59: 1464-1468 | G59: 1435 | I59: 1510-1520 | J59: Open
A60: 25 | B60: 2019-09-11 | D60: ABB | E60: Buy | F60: 1330-1338 | G60: 1289 | I60: 1400-1420 | J60: Open
A61: 26 | B61: 2019-09-11 | D61: APOLLOTYRE | E61: Sell | F61: 178.50-179.50 | G61: 184 | I61: 170 | J61: Open
A74: CLBS = Closing Basis ***
A75: Dividend adjusted <> | F75: Reinitiated $
F76: Revised stoploss #
A78: Master Trade High Risk
A79: Sr.no | B79: Date | D79: Company | E79: Rec | F79: Rec Price | G79: Stop Loss | H79: Call Closed At | I79: Target | J79: Remark | K79: Profit / Loss per share | L79: Gain / Loss per Lot | M79: Lot | N79: Status | O79: Closed Date
A80: 1 | B80: 2019-09-05 | D80: HEROMOTOCO SEP FUT | E80: Buy | F80: 2595 | G80: 2490 | H80: 2645 | I80: 2750 | J80: Profit of Rs.42.5/- | K80: =H80-F80 -> 50 | L80: =M80*42.5 -> 8500 | M80: 200 | N80: Successful | O80: 2019-09-06 | R80: H
D81: HEROMOTOCO SEP 2700 CE | E81: Sell | F81: 40 | H81: 47.5 | K81: =F81-H81 -> -7.5 | R81: H
A82: 2 | B82: 2019-09-09 | D82: NIFTY SEP FUT | E82: Buy | F82: 10933 | G82: 10780 | H82: 11035 | I82: 11200 | J82: Profit of Rs.65/- | K82: =H82-F82 -> 102 | L82: =65*75 -> 4875 | M82: 75 | N82: Successful | O82: 2019-09-09 | R82: H
D83: Nifty 11050 CE SEP | E83: Sell | F83: 98 | H83: 135 | K83: =F83-H83 -> -37 | R83: H
A88: Master Trade Medium Risk
A89: Sr.no | B89: Date | D89: Company | E89: Rec | F89: Rec Price | G89: Stop Loss | H89: Call Closed At | I89: Target | J89: Remark | K89: Profit/ Loss per lot | L89: Gain / Loss per Lot | M89: Lot | N89: Status | O89: Closed Date
A90: 1 | B90: 2019-09-03 | D90: NIFTY 05-Sep 11000 CE | E90: Buy | F90: 38 | G90: 19 | H90: 49 | I90: 80 | J90: Profit of Rs.11/- | K90: =H90-F90 -> 11 | L90: =K90*M90 -> 825 | M90: 75 | N90: Successful | O90: 2019-09-03 | R90: H
A91: 2 | B91: 2019-09-03 | D91: NIFTY 05-Sep 11000 CE | E91: Buy | F91: 38 | G91: 19 | H91: 27 | I91: 80 | J91: Loss of Rs.11/- | K91: =H91-F91 -> -11 | L91: =K91*M91 -> -825 | M91: 75 | N91: Unsuccessful | O91: 2019-09-03 | R91: H
A92: 3 | B92: 2019-09-03 | D92: NIFTY 05-Sep 10900 CE | E92: Buy | F92: 41 | G92: 27 | H92: 28 | I92: 70-75 | J92: Loss of Rs.13/- | K92: =H92-F92 -> -13 | L92: =K92*M92 -> -975 | M92: 75 | N92: Unsuccessful | O92: 2019-09-04 | R92: H
A93: 4 | B93: 2019-09-05 | D93: NIFTY 12-Sep 11000 CE | E93: Buy | F93: 40 | G93: 22 | H93: 51 | I93: 70-75 | J93: Profit of Rs.11/- | K93: 11 | L93: 825 | M93: 75 | N93: Successful | O93: 2019-09-06 | R93: H
A94: 5 | B94: 2019-09-06 | D94: M&M Sep 530 CE | E94: Buy | F94: 11.5 | G94: 6 | H94: 13.75 | I94: 20 | J94: Profit of Rs.2.25/- | K94: 2.25 | L94: 2250 | M94: 1000 | N94: Successful | O94: 2019-09-06 | R94: H
A95: 6 | B95: 2019-09-09 | D95: HINDUNILVR Sep 1840 CE | E95: Buy | F95: 31-33 | G95: 15 | I95: 60 | J95: Open | R95: N
A96: 7 | B96: 2019-09-09 | D96: ICICIBANK Sep 400 CE | E96: Buy | F96: 7.5 | G96: 3.5 | H96: 9.25 | I96: 15 | J96: Profit of Rs.1.75/- | K96: =H96-F96 -> 1.75 | L96: =K96*M96 -> 2406.25 | M96: 1375 | N96: Successful | O96: 2019-09-09 | R96: N
A97: 8 | B97: 2019-09-09 | D97: HDFCBANK 2260 CE SEP | E97: Buy | F97: 34-36 | J97: Open | R97: N
D98: HDFCBANK 2280 CE SEP | E98: Sell | F98: 27-29 | R98: N
A99: 9 | B99: 2019-09-09 | D99: NIFTY 12-Sep 10950 PE | E99: Buy | F99: 40.5 | G99: 22 | H99: 50 | I99: 80 | J99: Profit of Rs.9.50/- | K99: =H99-F99 -> 9.5 | L99: =K99*M99 -> 712.5 | M99: 75 | N99: Successful | O99: 2019-09-09 | R99: H
A100: 10 | B100: 2019-09-09 | D100: ASIANPAINT Sep 1540 PE | E100: Buy | F100: 25 | G100: 16 | H100: 29.5 | I100: 40 | J100: Profit of Rs.4.50/- | K100: 4.5 | L100: 2700 | M100: 600 | N100: Successful | O100: 2019-09-09 | R100: N
A101: 11 | B101: 2019-09-11 | D101: BHARATFORG 410 CE SEP | E101: Buy | F101: 8.50 | H101: 13.5 | J101: Profit of Rs.2/- | K101: 5 | L101: 2400 | M101: 1200 | N101: Successful | O101: 2019-09-11
D102: BHARATFORG 420 CE SEP | E102: Sell | F102: 5.50 | H102: 8.5 | K102: =F102-H102 -> -3
A103: 12 | B103: 2019-09-11 | D103: TCS Sep 2180 CE | E103: Buy | F103: 33-34 | G103: 8 | I103: 70 | J103: Open
A104: 13 | B104: 2019-09-11 | D104: ASIANPAINT Sep 1560 PE | E104: Buy | F104: 25-26 | G104: 16 | I104: 40 | J104: Open
A113: Techno -Funda (positional)
A114: Sr.no | B114: Date | D114: Company | E114: Rec | F114: Rec Price | G114: Stop Loss*** | H114: Call Closed At | I114: Target | J114: Remark | K114: Profit / Loss per Share | L114: Gain / Loss % | M114: Status | N114: Closed Date | O114: NSE Closed Price
A115: 1 | B115: 2019-08-13 | D115: ITC | E115: Buy | F115: 246-248 | G115: 228 | I115: 290-300 | J115: Open | O115: =VLOOKUP(D115,Sheet2!A131:M1770,6,0) -> 243.75
A119: CLBS = Closing Basis *** | F119: Reinitiated $
A120: Dividend adjusted <> | F120: Revised stoploss #
B125: Investment Idea
A126: Sr.no | B126: Date | D126: Company | E126: Rec | F126: Rec Price | G126: Point of Review | H126: Close Rate | I126: Target | J126: Remark | K126: Profit / Loss per Share | L126: Gain / Loss % | M126: Status | N126: Closed Date
A127: 1 | B127: 2013-11-01 | D127: L&T Finance Holding | E127: Accu | F127: 82.00 | G127: - | H127: 100 | I127: 100.00 | J127: Target Achieved | K127: =H127-F127 -> 18.00 | L127: =K127/F127 -> 21.95% | M127: Successful | N127: 2016-10-14
A128: 2 | B128: 2014-06-04 | D128: Finolex Inds | E128: Buy | F128: 257.00 | G128: - | H128: 300 | I128: 300.00 | J128: Target Achieved | K128: =H128-F128 -> 43.00 | L128: 16.73% | M128: Successful | N128: 2014-07-02
A129: 3 | B129: 2014-07-08 | D129: JK Cement | E129: Buy | F129: 393.00 | G129: - | H129: 468 | I129: 468.00 | J129: Target Achieved | K129: =H129-F129 -> 75.00 | L129: 19.08% | M129: Successful | N129: 2014-08-12
A130: 4 | B130: 2014-08-06 | D130: Finolex Cables | E130: Buy | F130: 205.00 | G130: - | H130: 275 | I130: 250.00 | J130: Target Achieved | K130: 70.00 | L130: 34.15% | M130: Successful | N130: 2014-11-19
A131: 5 | B131: 2014-09-04 | D131: Exide Inds | E131: Buy | F131: 162.00 | G131: - | H131: 190 | I131: 190.00 | J131: Target Achieved | K131: 28.00 | L131: 17.28% | M131: Successful | N131: 2015-01-02
A132: 6 | B132: 2014-09-04 | D132: Deepak Nitrite | E132: Buy | F132: 75.00 | G132: - | H132: 91.5 | I132: 95-100 | J132: Profit of Rs.16.50/- | K132: 16.50 | L132: 22.00% | M132: Successful | N132: 2014-11-11
A133: 7 | B133: 2014-10-01 | D133: Mercks | E133: Buy | F133: 850.00 | G133: - | H133: 982.5 | I133: 1050.00 | J133: Profit of Rs.132.50/- | K133: 132.50 | L133: 15.59% | M133: Successful | N133: 2015-02-04
A134: 8 | B134: 2014-10-01 | D134: Grindwell Norton | E134: Buy | F134: 475.00 | G134: - | H134: 515 | I134: 600.00 | J134: Profit of Rs.40/- | K134: 40.00 | L134: 8.42% | M134: Successful | N134: 2014-10-27
A135: 9 | B135: 2014-10-01 | D135: Snowman Logistics | E135: Buy | F135: 86.00 | G135: - | H135: 99 | I135: 140.00 | J135: Profit of Rs.13.00/- | K135: 13.00 | L135: 15.12% | M135: Successful | N135: 2014-10-27
A136: 10 | B136: 2014-10-14 | D136: Birla Corp | E136: Buy | F136: 496.60 | G136: - | H136: 621 | I136: 580.00 | J136: Target Achieved | K136: 124.40 | L136: 25.05% | M136: Successful | N136: 2016-08-23
A137: 11 | B137: 2014-10-14 | D137: Ultratech Cem | E137: Buy | F137: 2481.90 | G137: - | H137: 2840 | I137: 2870.00 | J137: Profit of Rs.358.10/- | K137: 358.10 | L137: 14.43% | M137: Successful | N137: 2015-01-13
A138: 12 | B138: 2014-10-16 | D138: Sintex Inds | E138: Buy | F138: 84.50 | G138: - | H138: 93 | I138: 110.00 | J138: Profit of Rs.8.50/- | K138: 8.50 | L138: 10.06% | M138: Successful | N138: 2014-10-27
A139: 13 | B139: 2014-10-16 | D139: HSIL | E139: Buy | F139: 401.00 | G139: - | H139: 428 | I139: 450.00 | J139: Profit of Rs.27.00/- | K139: 27.00 | L139: 6.73% | M139: Successful | N139: 2015-01-16
A140: 14 | B140: 2014-10-16 | D140: Eveready Inds | E140: Buy | F140: 101.00 | G140: - | H140: 112 | I140: 120.00 | J140: Profit of Rs.11.00/- | K140: 11.00 | L140: 10.89% | M140: Successful | N140: 2014-10-27
A141: 15 | B141: 2014-11-11 | D141: Pennar Inds | E141: Buy | F141: 59.00 | G141: - | H141: 76 | I141: 76.00 | J141: Target Achieved | K141: 17.00 | L141: 28.81% | M141: Successful | N141: 2017-10-24
A142: 16 | B142: 2014-11-11 | D142: Snowman Logistics | E142: Buy | F142: 99.00 | G142: - | H142: 120 | I142: 120.00 | J142: Profit of Rs.21/- | K142: 21.00 | L142: 21.21% | M142: Successful | N142: 2014-11-17
A143: 17 | B143: 2014-11-13 | D143: Dharamsi Morarji Chem | E143: Buy | F143: 22.00 | G143: - | H143: 33.55 | I143: 32.00 | J143: Profit of Rs 11.55/- | K143: 11.55 | L143: 52.50% | M143: Successful | N143: 2015-07-03
A144: 18 | B144: 2014-12-03 | D144: Tatachem | E144: Buy | F144: 440.00 | G144: - | H144: 520 | I144: 520.00 | J144: Profit of Rs 80.00/- | K144: 80.00 | L144: 18.18% | M144: Successful | N144: 2015-07-23
A145: 19 | B145: 2014-12-03 | D145: Advanta | E145: Buy | F145: 360.00 | G145: - | H145: 427 | I145: 425.00 | J145: Profit of Rs.67.00/- | K145: 67.00 | L145: 18.61% | M145: Successful | N145: 2015-02-23
A146: 20 | B146: 2015-01-08 | D146: GDL | E146: Buy | F146: 360.00 | G146: - | H146: 455 | I146: 420.00 | J146: Profit of Rs.95.00/- | K146: 95.00 | L146: 26.39% | M146: Successful | N146: 2015-01-20
A147: 21 | B147: 2015-01-08 | D147: NRB Bearing | E147: Buy | F147: 130.00 | H147: 175.5 | I147: 165.00 | J147: Profit of Rs 45.50/- | K147: 45.50 | L147: 35.00% | M147: Successful | N147: 2017-12-19
A148: 22 | B148: 2015-02-05 | D148: GSFC | E148: Accu | F148: 98.00 | H148: 120 | I148: 120.00 | J148: Target Achieved | K148: 22.00 | L148: 22.45% | M148: Successful | N148: 2017-01-18
A149: 23 | B149: 2015-02-05 | D149: Sundrmfast | E149: Accu | F149: 196.00 | H149: 262 | I149: 255.00 | J149: Target Achieved | K149: 66.00 | L149: 33.67% | M149: Successful | N149: 2016-08-17
A150: 24 | B150: 2015-03-04 | D150: GPPL | E150: Accu | F150: 235 | H150: 77.00 | I150: 280-285 | J150: Loss of Rs.158/- | K150: =H150-F150 -> -158.00 | L150: -67.23% | M150: Unsuccessful | N150: 2019-02-26
A151: 25 | B151: 2015-03-04 | D151: ORIENTCEM | E151: Accu | F151: 185.00 | H151: 224 | I151: 220-225 | J151: Target Achieved | K151: 39.00 | L151: =K151/F151 -> 21.08% | M151: Successful | N151: 2016-10-04
A152: 26 | B152: 2015-03-27 | D152: PFS | E152: Accu | F152: 49.5 | H152: 15.85 | I152: 67.00 | J152: Loss of Rs.33.65/- | K152: =H152-F152 -> -33.65 | L152: =K152/F152 -> -68% | M152: Unsuccessful | N152: 2019-06-11
A153: 27 | B153: 2015-03-30 | D153: Walchandnagar Ind Ltd | E153: Accu | F153: 183.50 | H153: 219 | I153: 218.00 | J153: Profit of Rs.35.50/- | K153: 35.50 | L153: =K153/F153 -> 19.35% | M153: Successful | N153: 2015-04-09
A154: 28 | B154: 2015-04-20 | D154: Kalpataru Power Transmission Ltd | E154: Accu | F154: =(227+237)/2 -> 232.00 | H154: 298 | I154: 298.00 | J154: Target Achieved | K154: 66.00 | L154: 28.45% | M154: Successful | N154: 2017-03-29
A155: 29 | B155: 2015-05-04 | D155: Mastek Ltd | E155: Buy | F155: 385.00 | H155: =212.5+331 -> 543.5 | I155: 510.00 | J155: Profit of Rs 158.50/- | K155: 158.50 | L155: 41.17% | M155: Successful | N155: 2015-08-19
A156: 30 | B156: 2015-05-04 | D156: Suprajit Eng | E156: Buy | F156: 115.50 | H156: 146 | I156: 142.00 | J156: Profit of Rs 30.50/- | K156: 30.50 | L156: 26.41% | M156: Successful | N156: 2015-07-17
A157: 31 | B157: 2015-05-27 | D157: TCI | E157: Buy | F157: 237.50 | H157: 279.5 | I157: 278.00 | J157: Target Achieved | K157: 42.00 | L157: 17.68% | M157: Successful | N157: 2015-08-06
A158: 32 | B158: 2015-06-19 | D158: HSIL | E158: Accu | F158: 340.00 | H158: 448 | I158: 448.00 | J158: Target Achieved | K158: 108.00 | L158: 31.76% | M158: Successful | N158: 2017-10-10
A159: 33 | B159: 2015-07-06 | D159: Capital First | E159: Accu | F159: 390.00 | H159: 460 | I159: 460.00 | J159: Target Achieved | K159: 70.00 | L159: 17.95% | M159: Successful | N159: 2016-04-18
A160: 34 | B160: 2015-07-10 | D160: Dolphin OffShore | E160: Accu | F160: 122.5 | H160: 61.00 | I160: 172.00 | J160: Loss of Rs.61.50/- | K160: -61.50 | L160: -50.20% | M160: Unsuccessful | N160: 2018-08-21
A161: 35 | B161: 2015-08-03 | D161: Allcargo logistics | E161: Accu | F161: 297.50 | H161: 350 | I161: 360.00 | J161: Profit of Rs 52.50/- | K161: 52.50 | L161: 17.65% | M161: Successful | N161: 2015-08-16
A162: 36 | B162: 2015-08-03 | D162: Camline Fine | E162: Accu | F162: 115.50 | H162: 149 | I162: 140.00 | J162: Profit of Rs 33.50/- | K162: 33.50 | L162: 29.00% | M162: Successful | N162: 2017-01-05
A163: 37 | B163: 2015-09-04 | D163: TCI | E163: Accu | F163: 226.00 | H163: 292 | I163: 292.00 | J163: Target Achieved | K163: 66.00 | L163: 29.20% | M163: Successful | N163: 2015-10-09
A164: 38 | B164: 2015-09-07 | D164: Kalpataru Power Transmission Ltd | E164: Accu | F164: 232.50 | H164: 312.5 | I164: 310.00 | J164: Target Achieved | K164: 80.00 | L164: 34.41% | M164: Successful | N164: 2017-03-29
A165: 39 | B165: 2015-09-21 | D165: LLOYD ELECTRIC & ENG LTD | E165: Accu | F165: 196.50 | H165: 238 | I165: 238.00 | J165: Target Achieved | K165: 41.50 | L165: 21.12% | M165: Successful | N165: 2015-10-14
A166: 40 | B166: 2015-09-24 | D166: L&T Finance Holding | E166: Accu | F166: 65.00 | H166: 82 | I166: 82.00 | J166: Target Achieved | K166: 17.00 | L166: 26.15% | M166: Successful | N166: 2016-07-27
A167: 41 | B167: 2015-10-14 | D167: KEC International ltd | E167: Accu | F167: 144.00 | H167: 182.5 | I167: 181.00 | J167: Target Achieved | K167: 38.50 | L167: 26.74% | M167: Successful | N167: 2017-03-23
A168: 42 | B168: 2015-10-14 | D168: Gruh Finance | E168: Accu | F168: 264.00 | H168: 311 | I168: 311.00 | J168: Target Achieved | K168: 47.00 | L168: 17.80% | M168: Successful | N168: 2016-08-22
A169: 43 | B169: 2015-11-10 | D169: Pidilitind | E169: Buy | F169: 549.50 | H169: 630 | I169: 630.00 | J169: Target Achieved | K169: 80.50 | L169: 14.65% | M169: Successful | N169: 2016-02-19
A170: 44 | B170: 2015-12-04 | D170: Zensar Technology | E170: Accu | F170: 1027.50 | H170: 1315 | I170: 1250.00 | J170: Target Achieved | K170: =H170-F170 -> 287.50 | L170: 27.98% | M170: Successful | N170: 2018-05-24
A171: 45 | B171: 2015-12-29 | D171: Vinati Organics Ltd | E171: Accu | F171: 465.00 | H171: 540 | I171: 540.00 | J171: Target Achieved | K171: 75.00 | L171: 16.13% | M171: Successful | N171: 2016-06-09
A172: 46 | B172: 2016-01-11 | D172: GSFC | E172: Buy | F172: 81.00 | H172: 110 | I172: 110.00 | J172: Target Achieved | K172: 29.00 | L172: 35.80% | M172: Successful | N172: 2017-01-10
A173: 47 | B173: 2016-01-13 | D173: SSWL | E173: Buy | F173: 417.50 | H173: 547 | I173: 535.00 | J173: Target Achieved | K173: 129.50 | L173: 31.02% | M173: Successful | N173: 2016-07-27
A174: 48 | B174: 2016-02-08 | D174: Persistent System Ltd | E174: Accu | F174: 650.00 | H174: 800 | I174: 800.00 | J174: Target Achieved | K174: 150.00 | L174: 23.08% | M174: Successful | N174: 2018-02-23
A175: 49 | B175: 2016-03-04 | D175: UPL | E175: Accu | F175: 437.50 | H175: 504.5 | I175: 522.00 | J175: Profit of Rs.67/- | K175: 67.00 | L175: 15.31% | M175: Successful | N175: 2016-04-20
A176: 50 | B176: 2016-03-09 | D176: Ashoka Buildcon Ltd | E176: Accu | F176: 189.50 | H176: 218 | I176: 218.00 | J176: Target Achieved | K176: 28.50 | L176: 15.04% | M176: Successful | N176: 2017-10-26
A177: 51 | B177: 2016-04-11 | D177: PTC INDIA FIN SERV LTD | E177: Accu | F177: 36.5 | H177: 15.85 | I177: 60.00 | J177: Loss of Rs.20.65/- | K177: -20.65 | L177: -56.58% | M177: Unsuccessful | N177: 2019-06-11
A178: 52 | B178: 2016-04-12 | D178: CAMLINFINE $ | E178: Accu | F178: 93.00 | H178: 149 | I178: 140.00 | J178: Profit of Rs 56/- | K178: 56.00 | L178: 60.22% | M178: Successful | N178: 2017-01-05
A179: 53 | B179: 2016-04-12 | D179: Greaves Cotton Ltd. | E179: Accu | F179: 130.00 | H179: 150 | I179: 150-155 | J179: Target Achieved | K179: 20.00 | L179: 15.38% | M179: Successful | N179: 2016-07-13
A180: 54 | B180: 2016-05-02 | D180: KEC International ltd $ | E180: Accu | F180: 127.50 | H180: 148 | I180: 148-150 | J180: Target Achieved | K180: 20.50 | L180: 16.08% | M180: Successful | N180: 2016-07-13
A181: 55 | B181: 2016-05-03 | D181: Mindtree | E181: Accu | F181: 675.00 | H181: 815 | I181: 790-800 | J181: Target Achieved | K181: 140.00 | L181: 20.74% | M181: Successful | N181: 2018-02-23
A182: 56 | B182: 2016-06-06 | D182: TRITURBINE | E182: Accu | F182: 110.00 | H182: 126.5 | I182: 125.00 | J182: Profit of Rs.16.50/- | K182: 16.50 | L182: 15.00% | M182: Successful | N182: 2016-07-01
A183: 57 | B183: 2016-06-17 | D183: Pennar Industries Ltd | E183: Accu | F183: 44.00 | H183: 69.5 | I183: 69.50 | J183: Profit of Rs.25.50/- | K183: 25.50 | L183: 57.95% | M183: Successful | N183: 2017-08-30
A184: 58 | B184: 2016-07-05 | D184: Bajaj Corp Ltd | E184: Accu | F184: 395 | H184: =(468.5+342.5)/2 -> 405.50 | I184: 510.00 | J184: Profit of Rs.10.50/- | K184: 10.50 | L184: 3% | M184: Neutral | N184: 2019-05-21
A185: 59 | B185: 2016-08-02 | D185: GPPL $ | E185: Buy | F185: 169.5 | H185: 77.00 | I185: 198-200 | J185: Loss of Rs.92.5/- | K185: -92.50 | L185: -54.57% | M185: Unsuccessful | N185: 2019-02-26
A186: 60 | B186: 2016-08-04 | D186: WONDERLA HOLIDAYS LTD | E186: Accu | F186: 400 | H186: 305.00 | I186: 475.00 | J186: Loss of Rs.95/- | K186: -95.00 | L186: -23.75% | M186: Unsuccessful | N186: 2019-05-21
A187: 61 | B187: 2016-08-11 | D187: CAMLINFINE | E187: Accu | F187: 86.50 | H187: 130 | I187: 130.00 | J187: Profit of Rs.43.50/- | K187: 43.50 | L187: 50.29% | M187: Successful | N187: 2017-12-22
A188: 62 | B188: 2016-08-18 | D188: GRANULES | E188: Accu | F188: 133.5 | H188: 126.50 | I188: 178.00 | J188: Exit | K188: -7.00 | L188: -5.24% | M188: Unsuccessful | N188: 2016-09-02
A189: 63 | B189: 2016-08-31 | D189: VA TECH WABAG | E189: Accu | F189: 560.00 | H189: 725 | I189: 725.00 | J189: Target Achieved | K189: 165.00 | L189: 29.46% | M189: Successful | N189: 2016-03-27
A190: 64 | B190: 2016-09-01 | D190: SKIPPER LIMITED | E190: Accu | F190: 160.50 | H190: 210 | I190: 210.00 | J190: Target Achieved | K190: 49.50 | L190: 30.84% | M190: Successful | N190: 2017-05-16
A191: 65 | B191: 2016-10-14 | D191: ASIANTILES | E191: Accu | F191: 280.00 | H191: 345 | I191: 345.00 | J191: Target Achieved | K191: 65.00 | L191: 23.21% | M191: Successful | N191: 2017-03-20
A192: 66 | B192: 2016-10-14 | D192: DEEPIND | E192: Accu | F192: 245.00 | H192: 325.5 | I192: 330.00 | J192: Profit of Rs.80.5/- | K192: 80.50 | L192: 32.86% | M192: Successful | N192: 2017-02-03
A193: 67 | B193: 2016-10-17 | D193: DCBBANK | E193: Accu | F193: 125.00 | H193: 160 | I193: 160.00 | J193: Target Achieved | K193: =H193-F193 -> 35.00 | L193: 28.00% | M193: Successful | N193: 2017-03-09
A194: 68 | B194: 2016-10-17 | D194: ORIENTREF | E194: Accu | F194: 114.00 | H194: 145 | I194: 145.00 | J194: Target Achieved | K194: 31.00 | L194: =K194/F194 -> 27.19% | M194: Successful | N194: 2017-05-04
A195: 69 | B195: 2016-10-17 | D195: GANECOS | E195: Accu | F195: 212.00 | H195: 280 | I195: 276.00 | J195: Profit of Rs.68/- | K195: 68.00 | L195: =K195/F195 -> 32.08% | M195: Successful | N195: 2017-05-03
A196: 70 | B196: 2016-11-04 | D196: NBCC | E196: Accu | F196: 155.00 | H196: 210 | I196: 210.00 | J196: Profit of Rs.55/- | K196: 55.00 | L196: =K196/F196 -> 35.48% | M196: Successful | N196: 2017-07-28
A197: 71 | B197: 2016-12-08 | D197: INFRATEL | E197: Accu | F197: 380.00 | H197: 478 | I197: 468.00 | J197: Target Achieved | K197: 98.00 | L197: =K197/F197 -> 25.79% | M197: Successful | N197: 2017-10-17
A198: 72 | B198: 2016-12-30 | D198: GODREJPROP | E198: Accu | F198: 305.00 | H198: 375 | I198: 375.00 | J198: Target Achieved | K198: 70.00 | L198: 22.95% | M198: Successful | N198: 2017-02-02
A199: 73 | B199: 2017-01-04 | D199: DEEPAKNTR | E199: Accu | F199: 99.50 | H199: 158 | I199: 158.00 | J199: Target Achieved | K199: 58.50 | L199: 58.79% | M199: Successful | N199: 2017-06-12
A200: 74 | B200: 2017-02-20 | D200: RECLTD | E200: Accu | F200: 140.50 | H200: 220 | I200: 220.00 | J200: Target Achieved | K200: 79.50 | L200: 56.58% | M200: Successful | N200: 2017-05-09
A201: 75 | B201: 2017-03-24 | D201: VRLLOG | E201: Accu | F201: 300.50 | H201: 417.5 | I201: 420.00 | J201: Profit of Rs.117/- | K201: 117.00 | L201: 38.94% | M201: Successful | N201: 2017-12-01
A202: 76 | B202: 2017-04-05 | D202: RATNAMANI | E202: Accu | F202: 785.00 | H202: 930 | I202: 920.00 | J202: Profit of Rs.145/- | K202: 145.00 | L202: 18.47% | M202: Successful | N202: 2017-08-29
A203: 77 | B203: 2017-04-12 | D203: DABUR | E203: Accu | F203: 289.50 | H203: 354 | I203: 360.00 | J203: Profit of Rs.64.5/- | K203: 64.50 | L203: =K203/F203 -> 22.28% | M203: Successful | N203: 2017-11-01
A204: 78 | B204: 2017-04-20 | D204: KPRMILL | E204: Accu | F204: 700.00 | H204: 840 | I204: 840.00 | J204: Profit of Rs.140/- | K204: 140.00 | L204: =K204/F204 -> 20.00% | M204: Successful | N204: 2017-06-07
A205: 79 | B205: 2017-05-22 | D205: GREAVESCOT | E205: Accu | F205: 153-158 | I205: 190.00 | J205: Open
A206: 80 | B206: 2017-06-01 | D206: ESSELPACK | E206: Accu | F206: 130.00 | H206: 144.25 | I206: 170.00 | J206: Profit of Rs.14.25/- | K206: =H206-F206 -> 14.25 | L206: =K206/F206 -> 10.96% | M206: Successful | N206: 2019-07-29
A207: 81 | B207: 2017-06-15 | D207: KEI | E207: Accu | F207: 214.50 | H207: 262 | I207: 262.00 | J207: Profit of Rs.47.5/- | K207: =H207-F207 -> 47.50 | L207: 22.14% | M207: Successful | N207: 2017-08-30
A208: 82 | B208: 2017-07-17 | D208: MAYURUNIQ | E208: Accu | F208: 370.00 | H208: 447.5 | I208: 450.00 | J208: Target Achieved | K208: 77.50 | L208: 20.95% | M208: Successful | N208: 2017-10-27
A209: 83 | B209: 2017-07-27 | D209: RAMCOCEM | E209: Accu | F209: 657.50 | H209: 825 | I209: 820.00 | J209: Target Achieved | K209: 167.50 | L209: 25.48% | M209: Successful | N209: 2017-12-21
A210: 84 | B210: 2017-08-17 | D210: FINPIPE | E210: Accu | F210: 605.00 | H210: 750 | I210: 750.00 | J210: Profit of Rs.145/- | K210: 145.00 | L210: 23.97% | M210: Successful | N210: 2017-10-19
A211: 85 | B211: 2017-09-01 | D211: SHK | E211: Accu | F211: 255 | H211: 217.25 | I211: 320.00 | J211: Loss of Rs.37.75/- | K211: -37.75 | L211: -15% | M211: Unsuccessful | N211: 2019-07-15
A212: 86 | B212: 2017-09-19 | D212: SKIPPER | E212: Accu | F212: 215.00 | H212: 258 | I212: 258.00 | J212: Target Achieved | K212: 43.00 | L212: 20.00% | M212: Successful | N212: 2017-11-01
A213: 87 | B213: 2017-09-20 | D213: CAMLINFINE | E213: Accu | F213: 75.00 | H213: 90 | I213: 90.00 | J213: Profit of Rs.15.00/- | K213: 15.00 | L213: 20.00% | M213: Successful | N213: 2017-10-11
A214: 88 | B214: 2017-10-03 | D214: GNA | E214: Accu | F214: 315.00 | H214: 392 | I214: 384.00 | J214: Profit of Rs.77/- | K214: 77.00 | L214: 24.44% | M214: Successful | N214: 2017-10-09
A215: 89 | B215: 2017-10-05 | D215: NOCIL | E215: Accu | F215: 145.00 | H215: 179 | I215: 180.00 | J215: Profit of Rs.34/- | K215: 34.00 | L215: 23.45% | M215: Successful | N215: 2017-10-17
A216: 90 | B216: 2017-10-06 | D216: CENTURYPLY | E216: Accu | F216: 256.00 | H216: 323 | I216: 320.00 | J216: Target Achieved | K216: 67.00 | L216: 26.17% | M216: Successful | N216: 2017-11-28
A217: 91 | B217: 2017-10-09 | D217: RECLTD | E217: Accu | F217: 152.5 | H217: 183.50 | I217: 210.00 | J217: Part Profit of Rs.31/- | K217: 31.00 | L217: 20% | M217: Successful | N217: 2017-11-03
A218: 92 | B218: 2017-10-09 | D218: EIHOTEL | E218: Accu | F218: 137.50 | H218: 184 | I218: 183.00 | J218: Profit of Rs.46.5/- | K218: 46.50 | L218: 33.82% | M218: Successful | N218: 2018-01-08
A219: 93 | B219: 2017-10-10 | D219: NRBBEARING | E219: Accu | F219: 125.50 | H219: 158 | I219: 155.00 | J219: Profit of Rs.32.5/- | K219: 32.50 | L219: 25.90% | M219: Successful | N219: 2017-11-28
A220: 94 | B220: 2017-11-07 | D220: HATSUN | E220: Accu | F220: 740.00 | H220: 892.5 | I220: 900.00 | J220: Profit of Rs.152.5/- | K220: 152.50 | L220: 20.61% | M220: Successful | N220: 2017-11-13
A221: 95 | B221: 2017-12-04 | D221: SANGHIIND | E221: Accu | F221: 118.50 | H221: 143.5 | I221: 145.00 | J221: Profit of Rs.25/- | K221: 25.00 | L221: 21.10% | M221: Successful | N221: 2017-12-28
A222: 96 | B222: 2017-12-05 | D222: ALLCARGO | E222: Accu | F222: 177.5 | H222: 215.00 | I222: 230.00 | J222: Part Profit of Rs.37.5/- | K222: 37.50 | L222: 21% | M222: Successful | N222: 2017-12-27
A223: 97 | B223: 2017-12-21 | D223: KAJARIACER | E223: Accu | F223: 715 | H223: 500.00 | I223: 872.00 | J223: Loss of Rs.215/- | K223: =H223-F223 -> -215.00 | L223: =K223/F223 -> -30.07% | M223: Unsuccessful | N223: 2019-07-24
A224: 98 | B224: 2018-02-07 | D224: GREAVESCOT | E224: Accu | F224: 130-132 | I224: 190.00 | J224: Open
A225: 99 | B225: 2018-02-27 | D225: MOLDTKPAC | E225: Accu | F225: 320-330 | I225: 398.00 | J225: Open
A226: 100 | B226: 2018-03-05 | D226: LICHSGFIN | E226: Accu | F226: 505-515 | I226: 672.00 | J226: Open
A227: 101 | B227: 2018-04-02 | D227: EVERESTIND | E227: Accu | F227: 492.5 | H227: 589.00 | I227: 613.00 | J227: Part Profit of Rs.37.5/- | K227: =H227-F227 -> 96.50 | L227: =K227/F227 -> 20% | M227: Successful | N227: 2018-08-21
A228: 102 | B228: 2018-04-04 | D228: GPPL | E228: Accu | F228: 141.5 | H228: 77.00 | I228: 180.00 | J228: Loss of Rs.64.5/- | K228: =H228-F228 -> -64.50 | L228: =K228/F228 -> -45.58% | M228: Unsuccessful | N228: 2019-02-26
A229: 103 | B229: 2018-04-19 | D229: MANPASAND | E229: Accu | F229: 430 | H229: 220.00 | I229: 537.00 | J229: Loss of Rs.210/- | K229: =H229-F229 -> -210.00 | L229: =K229/F229 -> -48.84% | M229: Unsuccessful | N229: 2018-06-01
A230: 104 | B230: 2018-04-30 | D230: HEIDELBERG | E230: Accu | F230: 156 | H230: 196.00 | I230: 196.00 | J230: Profit of Rs.40/- | K230: =H230-F230 -> 40.00 | L230: =K230/F230 -> 26% | M230: Successful | N230: 2019-05-20
A231: 105 | B231: 2018-06-07 | D231: KEC | E231: Accu | F231: 340-345 | I231: 439.00 | J231: Open
A232: 106 | B232: 2018-07-04 | D232: ASHOKLEY | E232: Accu | F232: 125-130 | I232: 170.00 | J232: Open
A233: 107 | B233: 2018-08-06 | D233: GABRIEL | E233: Accu | F233: 150.00 | H233: 102 | I233: 182.00 | J233: Loss of Rs.48 /- | K233: =H233-F233 -> -48.00 | L233: =K233/F233 -> -32.00% | M233: Unsuccessful | N233: 2019-07-15
A234: 108 | B234: 2018-08-29 | D234: GRINDWELL | E234: Accu | F234: 525.00 | H234: 585 | I234: 635.00 | J234: Profit of Rs.60- | K234: =H234-F234 -> 60.00 | L234: =K234/F234 -> 11.43% | N234: 2019-07-16
A235: 109 | B235: 2018-10-22 | D235: FINPIPE | E235: Accu | F235: 475.00 | H235: 574 | I235: 570.00 | J235: Target Achieved | K235: =H235-F235 -> 99.00 | L235: =K235/F235 -> 20.84% | M235: Successful | N235: 2018-10-30
A236: 110 | B236: 2018-10-23 | D236: JKPAPER | E236: Accu | F236: 158-162 | I236: 191.00 | J236: Open
A237: 111 | B237: 2018-10-24 | D237: GULFOILLUB | E237: Accu | F237: 707.50 | H237: 872 | I237: 872.00 | J237: Target Achieved | K237: =H237-F237 -> 164.50 | L237: =K237/F237 -> 23.25% | M237: Successful | N237: 2019-01-17
A238: 112 | B238: 2018-10-25 | D238: GODREJCP | E238: Accu | F238: 707.5 | H238: 850.00 | I238: 890.00 | J238: Part Profit of Rs.142.5/- | K238: =H238-F238 -> 142.50 | L238: =K238/F238 -> 20% | M238: Successful | N238: 2018-12-19
A239: 113 | B239: 2018-10-25 | D239: DBCORP | E239: Accu | F239: 164.00 | H239: 204 | I239: 209.00 | J239: Profit of Rs.40/- | K239: =H239-F239 -> 40.00 | L239: =K239/F239 -> 24.39% | M239: Successful | N239: 2019-03-15
A240: 114 | B240: 2018-10-26 | D240: RITES | E240: Accu | F240: 240.00 | H240: 297 | I240: 297.00 | J240: Target Achieved | K240: =H240-F240 -> 57.00 | L240: =K240/F240 -> 23.75% | M240: Successful | N240: 2018-11-13
A241: 115 | B241: 2018-12-05 | D241: CCL | E241: Accu | F241: 260-270 | I241: 321.00 | J241: Open
A242: 116 | B242: 2018-12-05 | D242: BRIGADE | E242: Accu | F242: 202.50 | H242: 255 | I242: 252.00 | J242: Target Achieved | K242: =H242-F242 -> 52.50 | L242: =K242/F242 -> 25.93% | M242: Successful | N242: 2019-03-18
A243: 117 | B243: 2018-12-31 | D243: JKCEMENT | E243: Accu | F243: 710.00 | H243: 866 | I243: 866.00 | J243: Target Achieved | K243: =H243-F243 -> 156.00 | L243: =K243/F243 -> 21.97% | M243: Successful | N243: 2019-03-29
A244: 118 | B244: 2019-01-04 | D244: MGL | E244: Accu | F244: 890-900 | I244: 1185.00 | J244: Open
A245: 119 | B245: 2019-02-26 | D245: MARICO | E245: Accu | F245: 335-345 | I245: 411.00 | J245: Open
A246: 120 | B246: 2019-04-04 | D246: ITDCEM | E246: Accu | F246: 128-132 | I246: 158.00 | J246: Open
... 29 more rows

Sheet Sheet2 (hidden)
A1: SYMBOL | B1: SERIES | C1: OPEN | D1: HIGH | E1: LOW | F1: CLOSE | G1: LAST | H1: PREVCLOSE | I1: TOTTRDQTY | J1: TOTTRDVAL | K1: TIMESTAMP | L1: TOTALTRADES | M1: ISIN | N1: ISIN
A2: 20MICRONS | B2: EQ | C2: 34.9 | D2: 36.8 | E2: 34.55 | F2: 35.8 | G2: 35.65 | H2: 34.3 | I2: 94929 | J2: 3421804.15 | K2: 2019-09-11 | L2: 1356 | M2: INE144J01027
A3: 21STCENMGM | B3: EQ | C3: 12.15 | D3: 12.15 | E3: 12.15 | F3: 12.15 | G3: 12.15 | H3: 12.15 | I3: 10 | J3: 121.5 | K3: 2019-09-11 | L3: 1 | M3: INE253B01015
A4: 3IINFOTECH | B4: EQ | C4: 2.4 | D4: 2.7 | E4: 2.35 | F4: 2.5 | G4: 2.5 | H4: 2.3 | I4: 4799549 | J4: 12308139.75 | K4: 2019-09-11 | L4: 2096 | M4: INE748C01020
A5: 3MINDIA | B5: EQ | C5: 20800 | D5: 20800 | E5: 20150 | F5: 20260.55 | G5: 20250 | H5: 20604.35 | I5: 4281 | J5: 86917683.8 | K5: 2019-09-11 | L5: 1021 | M5: INE470A01017
A6: 5PAISA | B6: EQ | C6: 136 | D6: 140.55 | E6: 136 | F6: 137.75 | G6: 137.5 | H6: 135.55 | I6: 15262 | J6: 2105088.8 | K6: 2019-09-11 | L6: 342 | M6: INE618L01018
A7: 63MOONS | B7: EQ | C7: 116.8 | D7: 119.75 | E7: 114.1 | F7: 119.75 | G7: 119.75 | H7: 114.05 | I7: 65226 | J7: 7701673.5 | K7: 2019-09-11 | L7: 600 | M7: INE111B01023
A8: 8KMILES | B8: EQ | C8: 56 | D8: 58.7 | E8: 55.95 | F8: 58.7 | G8: 58.7 | H8: 55.95 | I8: 65519 | J8: 3782017.2 | K8: 2019-09-11 | L8: 502 | M8: INE650K01021
A9: A2ZINFRA | B9: EQ | C9: 9.8 | D9: 10.55 | E9: 9.55 | F9: 10.3 | G9: 10.35 | H9: 9.55 | I9: 968083 | J9: 9913345.45 | K9: 2019-09-11 | L9: 1077 | M9: INE619I01012
A10: AARTIDRUGS | B10: EQ | C10: 452.05 | D10: 458.95 | E10: 443 | F10: 444.25 | G10: 443 | H10: 451.75 | I10: 9401 | J10: 4204312.6 | K10: 2019-09-11 | L10: 641 | M10: INE767A01016
A11: AARTIIND | B11: EQ | C11: 1601 | D11: 1603 | E11: 1578 | F11: 1598.7 | G11: 1595.55 | H11: 1584.7 | I11: 35747 | J11: 56936830.1 | K11: 2019-09-11 | L11: 3233 | M11: INE769A01020
A12: AARVEEDEN | B12: EQ | C12: 15.25 | D12: 16.8 | E12: 15.25 | F12: 16.05 | G12: 15.8 | H12: 15.25 | I12: 7609 | J12: 123066.1 | K12: 2019-09-11 | L12: 349 | M12: INE273D01019
A13: AAVAS | B13: EQ | C13: 1580 | D13: 1580 | E13: 1535 | F13: 1549.9 | G13: 1550 | H13: 1556.9 | I13: 29710 | J13: 46160051.4 | K13: 2019-09-11 | L13: 1749 | M13: INE216P01012
A14: ABAN | B14: EQ | C14: 25.6 | D14: 26.7 | E14: 24.9 | F14: 26.7 | G14: 26.7 | H14: 25.45 | I14: 64619 | J14: 1701980.45 | K14: 2019-09-11 | L14: 493 | M14: INE421A01028
A15: ABB | B15: EQ | C15: 1330 | D15: 1346 | E15: 1320 | F15: 1328.4 | G15: 1327.2 | H15: 1327.85 | I15: 35256 | J15: 47048653.7 | K15: 2019-09-11 | L15: 3073 | M15: INE117A01022
A16: ABBOTINDIA | B16: EQ | C16: 9950 | D16: 9979.9 | E16: 9757 | F16: 9800.55 | G16: 9784 | H16: 9944.4 | I16: 17643 | J16: 174777290.3 | K16: 2019-09-11 | L16: 1810 | M16: INE358A01014
A17: ABCAPITAL | B17: EQ | C17: 95.1 | D17: 97.5 | E17: 95.1 | F17: 96.65 | G17: 96.5 | H17: 94.45 | I17: 1448632 | J17: 139965662.3 | K17: 2019-09-11 | L17: 22728 | M17: INE674K01013
A18: ABFRL | B18: EQ | C18: 189.4 | D18: 191.6 | E18: 187.1 | F18: 187.65 | G18: 187.75 | H18: 189.4 | I18: 296934 | J18: 55945500.4 | K18: 2019-09-11 | L18: 6361 | M18: INE647O01011
A19: ABMINTLTD | B19: BE | C19: 14.6 | D19: 14.6 | E19: 13.95 | F19: 13.95 | G19: 13.95 | H19: 13.95 | I19: 45 | J19: 631.65 | K19: 2019-09-11 | L19: 4 | M19: INE251C01017
A20: ABSLNN50ET | B20: EQ | C20: 264.49 | D20: 264.49 | E20: 264.49 | F20: 264.49 | G20: 264.49 | H20: 263.01 | I20: 25 | J20: 6612.25 | K20: 2019-09-11 | L20: 1 | M20: INF209KB1B87
A21: ACC | B21: EQ | C21: 1477.85 | D21: 1494 | E21: 1475.6 | F21: 1485 | G21: 1483.35 | H21: 1472.95 | I21: 397144 | J21: 589712894.5 | K21: 2019-09-11 | L21: 24791 | M21: INE012A01025
A22: ACCELYA | B22: EQ | C22: 837 | D22: 856 | E22: 830.1 | F22: 852.7 | G22: 855.95 | H22: 837.15 | I22: 4933 | J22: 4183890.8 | K22: 2019-09-11 | L22: 577 | M22: INE793A01012
A23: ACE | B23: EQ | C23: 74.8 | D23: 75.75 | E23: 70.6 | F23: 73.95 | G23: 73.7 | H23: 74.6 | I23: 337195 | J23: 24870564.3 | K23: 2019-09-11 | L23: 6861 | M23: INE731H01025
A24: ADANIENT | B24: EQ | C24: 140.05 | D24: 144.9 | E24: 140.05 | F24: 143.95 | G24: 143.5 | H24: 140.9 | I24: 4245005 | J24: 606870046.7 | K24: 2019-09-11 | L24: 18344 | M24: INE423A01024
A25: ADANIGAS | B25: EQ | C25: 133.3 | D25: 141.9 | E25: 133.3 | F25: 137.5 | G25: 136.95 | H25: 134.8 | I25: 853048 | J25: 117935394.9 | K25: 2019-09-11 | L25: 6604 | M25: INE399L01023
A26: ADANIGREEN | B26: EQ | C26: 45.55 | D26: 49.1 | E26: 45.5 | F26: 48.3 | G26: 48.5 | H26: 45.5 | I26: 1040310 | J26: 49703367.95 | K26: 2019-09-11 | L26: 3931 | M26: INE364U01010
A27: ADANIPORTS | B27: EQ | C27: 371.2 | D27: 374.95 | E27: 366.5 | F27: 373.35 | G27: 373.15 | H27: 369.55 | I27: 3341392 | J27: 1240236810 | K27: 2019-09-11 | L27: 43795 | M27: INE742F01042
A28: ADANIPOWER | B28: EQ | C28: 60.6 | D28: 64.5 | E28: 60.55 | F28: 63.75 | G28: 64.15 | H28: 60.15 | I28: 15589815 | J28: 975651373.8 | K28: 2019-09-11 | L28: 39792 | M28: INE814H01011
A29: ADANITRANS | B29: EQ | C29: 233.55 | D29: 241 | E29: 232.55 | F29: 235.4 | G29: 235.35 | H29: 235.75 | I29: 61718 | J29: 14613929.5 | K29: 2019-09-11 | L29: 1444 | M29: INE931S01010
A30: ADFFOODS | B30: EQ | C30: 253.5 | D30: 274 | E30: 253.5 | F30: 266.6 | G30: 265.95 | H30: 255.9 | I30: 51048 | J30: 13548089.95 | K30: 2019-09-11 | L30: 2753 | M30: INE982B01019
A31: ADHUNIK | B31: BE | C31: 1.1 | D31: 1.1 | E31: 1 | F31: 1 | G31: 1.1 | H31: 1.05 | I31: 187056 | J31: 191639.1 | K31: 2019-09-11 | L31: 63 | M31: INE400H01019
A32: ADHUNIKIND | B32: EQ | C32: 88.95 | D32: 90.5 | E32: 88.5 | F32: 89.95 | G32: 89.35 | H32: 88.9 | I32: 31426 | J32: 2818664.8 | K32: 2019-09-11 | L32: 333 | M32: INE452L01012
A33: ADLABS | B33: EQ | C33: 3.6 | D33: 3.6 | E33: 3.4 | F33: 3.5 | G33: 3.45 | H33: 3.5 | I33: 156433 | J33: 547112.35 | K33: 2019-09-11 | L33: 464 | M33: INE172N01012
A34: ADORWELD | B34: EQ | C34: 292 | D34: 303.9 | E34: 292 | F34: 298.5 | G34: 298 | H34: 291.05 | I34: 6218 | J34: 1861828.35 | K34: 2019-09-11 | L34: 216 | M34: INE045A01017
A35: ADROITINFO | B35: BE | C35: 8.4 | D35: 8.4 | E35: 8.4 | F35: 8.4 | G35: 8.4 | H35: 8.4 | I35: 17 | J35: 142.8 | K35: 2019-09-11 | L35: 1 | M35: INE737B01033
A36: ADSL | B36: EQ | C36: 14.4 | D36: 15 | E36: 13.9 | F36: 14.5 | G36: 14.4 | H36: 13.75 | I36: 38725 | J36: 568177.15 | K36: 2019-09-11 | L36: 227 | M36: INE102I01027
A37: ADVANIHOTR | B37: EQ | C37: 50.2 | D37: 53 | E37: 50.2 | F37: 52.5 | G37: 53 | H37: 52 | I37: 544 | J37: 28268.5 | K37: 2019-09-11 | L37: 31 | M37: INE199C01026
A38: ADVENZYMES | B38: EQ | C38: 163 | D38: 165.8 | E38: 160.7 | F38: 164.1 | G38: 164.1 | H38: 162.25 | I38: 70365 | J38: 11502475.7 | K38: 2019-09-11 | L38: 1212 | M38: INE837H01020
A39: AEGISCHEM | B39: EQ | C39: 187.9 | D39: 192 | E39: 187.2 | F39: 188.2 | G39: 187.95 | H39: 188.7 | I39: 46581 | J39: 8817732.9 | K39: 2019-09-11 | L39: 2524 | M39: INE208C01025
A40: AFFLE | B40: EQ | C40: 851 | D40: 867 | E40: 835 | F40: 849.8 | G40: 851 | H40: 847 | I40: 53619 | J40: 45645269.1 | K40: 2019-09-11 | L40: 5404 | M40: INE00WC01019
A41: AGARIND | B41: EQ | C41: 126.9 | D41: 130 | E41: 122.05 | F41: 124.55 | G41: 123 | H41: 125.15 | I41: 20342 | J41: 2544887.35 | K41: 2019-09-11 | L41: 338 | M41: INE204E01012
A42: AGCNET | B42: BE | C42: 114.45 | D42: 117.5 | E42: 110.1 | F42: 114.3 | G42: 117 | H42: 112.05 | I42: 14060 | J42: 1577058.6 | K42: 2019-09-11 | L42: 34 | M42: INE676A01019
A43: AGLSL | B43: EQ | C43: 49.9 | D43: 53 | E43: 49 | F43: 52.85 | G43: 52.25 | H43: 49.15 | I43: 13449 | J43: 684269.15 | K43: 2019-09-11 | L43: 116 | M43: INE517U01013
A44: AGRITECH | B44: EQ | C44: 47.8 | D44: 48.35 | E44: 44.1 | F44: 46.6 | G44: 46.95 | H44: 46.85 | I44: 22347 | J44: 1044664.5 | K44: 2019-09-11 | L44: 421 | M44: INE449G01018
A45: AGROPHOS | B45: BE | C45: 84.5 | D45: 88.4 | E45: 84.5 | F45: 86 | G45: 85 | H45: 88.15 | I45: 9414 | J45: 830215.1 | K45: 2019-09-11 | L45: 13 | M45: INE740V01019
A46: AHLEAST | B46: EQ | C46: 165.2 | D46: 173.8 | E46: 160 | F46: 167.2 | G46: 173 | H46: 161.55 | I46: 2022 | J46: 329326.5 | K46: 2019-09-11 | L46: 121 | M46: INE926K01017
A47: AHLUCONT | B47: EQ | C47: 314.95 | D47: 317 | E47: 309.65 | F47: 314.9 | G47: 315 | H47: 306.15 | I47: 4395 | J47: 1380479.45 | K47: 2019-09-11 | L47: 166 | M47: INE758C01029
A48: AHLWEST | B48: EQ | C48: 309.1 | D48: 309.1 | E48: 300.1 | F48: 302.15 | G48: 302.05 | H48: 318.7 | I48: 151 | J48: 45498.95 | K48: 2019-09-11 | L48: 37 | M48: INE915K01010
A49: AIAENG | B49: EQ | C49: 1510 | D49: 1528.9 | E49: 1504 | F49: 1510.25 | G49: 1508 | H49: 1510.1 | I49: 23151 | J49: 35009190.4 | K49: 2019-09-11 | L49: 3017 | M49: INE212H01026
A50: AIONJSW | B50: EQ | C50: 14.35 | D50: 14.4 | E50: 13.9 | F50: 14 | G50: 14 | H50: 13.9 | I50: 56051 | J50: 790736.25 | K50: 2019-09-11 | L50: 226 | M50: INE743C01021
A51: AIRAN | B51: EQ | C51: 11.2 | D51: 11.85 | E51: 10.75 | F51: 11.25 | G51: 11.3 | H51: 11.05 | I51: 17473 | J51: 197119.45 | K51: 2019-09-11 | L51: 99 | M51: INE645W01026
A52: AJANTPHARM | B52: EQ | C52: 1011.95 | D52: 1026 | E52: 1003.55 | F52: 1012.85 | G52: 1008 | H52: 1015.9 | I52: 76103 | J52: 77243012.7 | K52: 2019-09-11 | L52: 3440 | M52: INE031B01049
A53: AJMERA | B53: EQ | C53: 118.55 | D53: 126.8 | E53: 117 | F53: 125.6 | G53: 125 | H53: 116.65 | I53: 126665 | J53: 15683279.65 | K53: 2019-09-11 | L53: 3184 | M53: INE298G01027
A54: AKSHARCHEM | B54: EQ | C54: 202 | D54: 224.4 | E54: 194 | F54: 215.1 | G54: 214.9 | H54: 197.85 | I54: 10336 | J54: 2150230.5 | K54: 2019-09-11 | L54: 572 | M54: INE542B01011
A55: AKSHOPTFBR | B55: EQ | C55: 7.65 | D55: 8.2 | E55: 7.5 | F55: 8.2 | G55: 8.2 | H55: 7.85 | I55: 342615 | J55: 2691087.8 | K55: 2019-09-11 | L55: 575 | M55: INE523B01011
A56: AKZOINDIA | B56: EQ | C56: 1718.1 | D56: 1728 | E56: 1696 | F56: 1705 | G56: 1701.1 | H56: 1704.15 | I56: 24167 | J56: 41247696.45 | K56: 2019-09-11 | L56: 1650 | M56: INE133A01011
A57: ALANKIT | B57: EQ | C57: 20 | D57: 20.9 | E57: 18.6 | F57: 20.6 | G57: 20.75 | H57: 19.8 | I57: 306756 | J57: 6255543.7 | K57: 2019-09-11 | L57: 872 | M57: INE914E01040
A58: ALBERTDAVD | B58: EQ | C58: 367.95 | D58: 367.95 | E58: 356.95 | F58: 359.75 | G58: 360 | H58: 359.65 | I58: 7705 | J58: 2777507.15 | K58: 2019-09-11 | L58: 251 | M58: INE155C01010
A59: ALBK | B59: EQ | C59: 33.15 | D59: 34 | E59: 33 | F59: 33.5 | G59: 33.4 | H59: 33.15 | I59: 786865 | J59: 26446760 | K59: 2019-09-11 | L59: 3730 | M59: INE428A01015
A60: ALCHEM | B60: BE | C60: 1.1 | D60: 1.1 | E60: 1 | F60: 1 | G60: 1 | H60: 1.05 | I60: 8124 | J60: 8809.1 | K60: 2019-09-11 | L60: 25 | M60: INE964B01033
A61: ALEMBICLTD | B61: EQ | C61: 41 | D61: 43.95 | E61: 40 | F61: 43.6 | G61: 43.5 | H61: 39.8 | I61: 180435 | J61: 7551774.65 | K61: 2019-09-11 | L61: 1203 | M61: INE426A01027
A62: ALICON | B62: EQ | C62: 399.95 | D62: 404.9 | E62: 372.05 | F62: 399.15 | G62: 390 | H62: 386.65 | I62: 3985 | J62: 1537292.15 | K62: 2019-09-11 | L62: 301 | M62: INE062D01024
A63: ALKALI | B63: EQ | C63: 41.7 | D63: 44.1 | E63: 41.1 | F63: 43.8 | G63: 42.8 | H63: 41.6 | I63: 11337 | J63: 485716.4 | K63: 2019-09-11 | L63: 594 | M63: INE773I01017
A64: ALKEM | B64: EQ | C64: 1818.95 | D64: 1850 | E64: 1808.85 | F64: 1847.65 | G64: 1849.9 | H64: 1800 | I64: 16086 | J64: 29530716.5 | K64: 2019-09-11 | L64: 2802 | M64: INE540L01014
A65: ALKYLAMINE | B65: EQ | C65: 792.1 | D65: 797 | E65: 785.2 | F65: 788.65 | G65: 788 | H65: 788.5 | I65: 4324 | J65: 3428379.85 | K65: 2019-09-11 | L65: 179 | M65: INE150B01021
A66: ALLCARGO | B66: EQ | C66: 92.95 | D66: 108.7 | E66: 92 | F66: 102.1 | G66: 99.3 | H66: 92.45 | I66: 422498 | J66: 42456812.85 | K66: 2019-09-11 | L66: 5391 | M66: INE418H01029
A67: ALLSEC | B67: EQ | C67: 257.25 | D67: 285 | E67: 257.25 | F67: 271.7 | G67: 285 | H67: 268.5 | I67: 2714 | J67: 727214 | K67: 2019-09-11 | L67: 182 | M67: INE835G01018
A68: ALMONDZ | B68: EQ | C68: 10 | D68: 10.45 | E68: 9.5 | F68: 9.65 | G68: 9.95 | H68: 10 | I68: 5318 | J68: 51961.8 | K68: 2019-09-11 | L68: 44 | M68: INE326B01027
A69: ALOKTEXT | B69: EQ | C69: 2.75 | D69: 2.9 | E69: 2.7 | F69: 2.9 | G69: 2.9 | H69: 2.65 | I69: 3237640 | J69: 9328207.9 | K69: 2019-09-11 | L69: 684 | M69: INE270A01011
A70: ALPA | B70: EQ | C70: 16 | D70: 17.25 | E70: 15.4 | F70: 16.4 | G70: 16.35 | H70: 15.6 | I70: 87178 | J70: 1429259.95 | K70: 2019-09-11 | L70: 474 | M70: INE385I01010
A71: ALPHAGEO | B71: EQ | C71: 218.25 | D71: 224.9 | E71: 215 | F71: 224.9 | G71: 224.9 | H71: 214.2 | I71: 13998 | J71: 3092491.6 | K71: 2019-09-11 | L71: 351 | M71: INE137C01018
A72: ALPSINDUS | B72: BE | C72: 0.45 | D72: 0.5 | E72: 0.4 | F72: 0.45 | G72: 0.45 | H72: 0.45 | I72: 14980 | J72: 6702.5 | K72: 2019-09-11 | L72: 18 | M72: INE093B01015
A73: AMARAJABAT | B73: EQ | C73: 641.3 | D73: 659.7 | E73: 641.3 | F73: 657.4 | G73: 656 | H73: 639.55 | I73: 537132 | J73: 351064191.4 | K73: 2019-09-11 | L73: 15792 | M73: INE885A01032
A74: AMBER | B74: EQ | C74: 830.9 | D74: 846.9 | E74: 830.9 | F74: 843.05 | G74: 838 | H74: 828.7 | I74: 10161 | J74: 8560435.5 | K74: 2019-09-11 | L74: 910 | M74: INE371P01015
A75: AMBIKCO | B75: EQ | C75: 912 | D75: 925 | E75: 886.7 | F75: 907.9 | G75: 905 | H75: 887.4 | I75: 3905 | J75: 3556485.45 | K75: 2019-09-11 | L75: 498 | M75: INE540G01014
A76: AMBUJACEM | B76: EQ | C76: 195.75 | D76: 198.35 | E76: 195.75 | F76: 197.35 | G76: 196.8 | H76: 195.5 | I76: 1746891 | J76: 344518559.7 | K76: 2019-09-11 | L76: 26947 | M76: INE079A01024
A77: AMDIND | B77: EQ | C77: 16.35 | D77: 17.25 | E77: 16.35 | F77: 16.7 | G77: 16.55 | H77: 16.35 | I77: 31291 | J77: 522775.8 | K77: 2019-09-11 | L77: 147 | M77: INE005I01014
A78: AMJLAND | B78: EQ | C78: 17.95 | D78: 19 | E78: 17.5 | F78: 18.8 | G78: 18.8 | H78: 17.45 | I78: 10362 | J78: 192727.15 | K78: 2019-09-11 | L78: 72 | M78: INE606A01024
A79: AMRUTANJAN | B79: EQ | C79: 300.05 | D79: 312 | E79: 300.05 | F79: 303.35 | G79: 303 | H79: 302 | I79: 16105 | J79: 4929035.95 | K79: 2019-09-11 | L79: 768 | M79: INE098F01031
A80: ANANTRAJ | B80: EQ | C80: 34.45 | D80: 35.5 | E80: 33.5 | F80: 35.15 | G80: 35.15 | H80: 34 | I80: 541053 | J80: 18769630.75 | K80: 2019-09-11 | L80: 1328 | M80: INE242C01024
A81: ANDHRABANK | B81: EQ | C81: 18.8 | D81: 19.75 | E81: 18.8 | F81: 19.55 | G81: 19.6 | H81: 18.9 | I81: 869810 | J81: 16875121.9 | K81: 2019-09-11 | L81: 2587 | M81: INE434A01013
A82: ANDHRACEMT | B82: EQ | C82: 3.15 | D82: 3.15 | E82: 3.15 | F82: 3.15 | G82: 3.15 | H82: 3 | I82: 7562 | J82: 23820.3 | K82: 2019-09-11 | L82: 13 | M82: INE666E01012
A83: ANDHRSUGAR | B83: EQ | C83: 294.2 | D83: 317.95 | E83: 291.7 | F83: 314.9 | G83: 314 | H83: 292.45 | I83: 120550 | J83: 37381627.6 | K83: 2019-09-11 | L83: 4008 | M83: INE715B01013
A84: ANIKINDS | B84: EQ | C84: 8.7 | D84: 8.7 | E84: 8.1 | F84: 8.35 | G84: 8.35 | H84: 7.95 | I84: 1642 | J84: 13623.65 | K84: 2019-09-11 | L84: 78 | M84: INE087B01017
A85: ANKITMETAL | B85: BE | C85: 0.4 | D85: 0.5 | E85: 0.4 | F85: 0.4 | G85: 0.5 | H85: 0.45 | I85: 19783 | J85: 8521.55 | K85: 2019-09-11 | L85: 16 | M85: INE106I01010
A86: ANSALAPI | B86: EQ | C86: 4.4 | D86: 4.7 | E86: 4.4 | F86: 4.7 | G86: 4.7 | H86: 4.5 | I86: 12121 | J86: 56619.4 | K86: 2019-09-11 | L86: 35 | M86: INE436A01026
A87: ANSALHSG | B87: EQ | C87: 5.3 | D87: 5.7 | E87: 4.95 | F87: 5.5 | G87: 5.55 | H87: 5.3 | I87: 76837 | J87: 416741.35 | K87: 2019-09-11 | L87: 300 | M87: INE880B01015
A88: ANTGRAPHIC | B88: BE | C88: 0.85 | D88: 0.85 | E88: 0.75 | F88: 0.8 | G88: 0.8 | H88: 0.8 | I88: 35129 | J88: 27445.75 | K88: 2019-09-11 | L88: 38 | M88: INE414B01021
A89: ANUP | B89: EQ | C89: 383 | D89: 393.8 | E89: 383 | F89: 385.5 | G89: 386 | H89: 382.15 | I89: 41534 | J89: 16116954.5 | K89: 2019-09-11 | L89: 674 | M89: INE294Z01018
A90: APARINDS | B90: EQ | C90: 540 | D90: 567 | E90: 532 | F90: 556.1 | G90: 555 | H90: 536.25 | I90: 4452 | J90: 2451744.3 | K90: 2019-09-11 | L90: 498 | M90: INE372A01015
A91: APCL | B91: EQ | C91: 143.3 | D91: 154.9 | E91: 142 | F91: 151 | G91: 151 | H91: 142.45 | I91: 8536 | J91: 1260336.2 | K91: 2019-09-11 | L91: 332 | M91: INE071F01012
A92: APCOTEXIND | B92: EQ | C92: 207 | D92: 209.95 | E92: 198 | F92: 203.35 | G92: 201 | H92: 206 | I92: 14833 | J92: 3017641.8 | K92: 2019-09-11 | L92: 536 | M92: INE116A01032
A93: APEX | B93: EQ | C93: 224.4 | D93: 236.45 | E93: 224.4 | F93: 233.7 | G93: 233.35 | H93: 226.6 | I93: 73492 | J93: 17020116.15 | K93: 2019-09-11 | L93: 2454 | M93: INE346W01013
A94: APLAPOLLO | B94: EQ | C94: 1295.55 | D94: 1314 | E94: 1276.85 | F94: 1300.35 | G94: 1300 | H94: 1288.3 | I94: 26044 | J94: 33664415.35 | K94: 2019-09-11 | L94: 842 | M94: INE702C01019
A95: APLLTD | B95: EQ | C95: 498 | D95: 504.85 | E95: 498 | F95: 503.7 | G95: 503 | H95: 497.7 | I95: 7361 | J95: 3696205.65 | K95: 2019-09-11 | L95: 730 | M95: INE901L01018
A96: APOLLO | B96: EQ | C96: 94.25 | D96: 95 | E96: 85.6 | F96: 91.8 | G96: 91.45 | H96: 94.1 | I96: 122956 | J96: 11303581.6 | K96: 2019-09-11 | L96: 1920 | M96: INE713T01010
A97: APOLLOHOSP | B97: EQ | C97: 1500 | D97: 1512.7 | E97: 1474.05 | F97: 1497.2 | G97: 1502 | H97: 1494.1 | I97: 626957 | J97: 936303015.3 | K97: 2019-09-11 | L97: 19504 | M97: INE437A01024
A98: APOLLOTYRE | B98: EQ | C98: 177 | D98: 180 | E98: 176.2 | F98: 179.1 | G98: 179 | H98: 176.7 | I98: 2119204 | J98: 377059153.4 | K98: 2019-09-11 | L98: 9540 | M98: INE438A01022
A99: APOLSINHOT | B99: EQ | C99: 850 | D99: 880 | E99: 841.3 | F99: 860.6 | G99: 860 | H99: 851.85 | I99: 1193 | J99: 1021597.7 | K99: 2019-09-11 | L99: 99 | M99: INE451F01024
A100: APTECHT | B100: EQ | C100: 128.4 | D100: 137.9 | E100: 126.85 | F100: 135.2 | G100: 134.75 | H100: 127.55 | I100: 381436 | J100: 50979220.75 | K100: 2019-09-11 | L100: 5186 | M100: INE266F01018
A101: ARCHIDPLY | B101: EQ | C101: 25.25 | D101: 28 | E101: 23.5 | F101: 27.15 | G101: 27 | H101: 25.4 | I101: 41190 | J101: 1080939.1 | K101: 2019-09-11 | L101: 1249 | M101: INE877I01016
A102: ARCHIES | B102: EQ | C102: 18.1 | D102: 18.3 | E102: 17.9 | F102: 18.1 | G102: 18.05 | H102: 18.25 | I102: 35282 | J102: 638791.05 | K102: 2019-09-11 | L102: 168 | M102: INE731A01020
A103: ARCOTECH | B103: BE | C103: 2.1 | D103: 2.1 | E103: 2.1 | F103: 2.1 | G103: 2.1 | H103: 2 | I103: 4466 | J103: 9378.6 | K103: 2019-09-11 | L103: 15 | M103: INE574I01035
A104: ARIES | B104: EQ | C104: 59.35 | D104: 63.45 | E104: 58.2 | F104: 62.85 | G104: 63.2 | H104: 58.15 | I104: 59795 | J104: 3720925.05 | K104: 2019-09-11 | L104: 930 | M104: INE298I01015
A105: ARIHANT | B105: EQ | C105: 17.8 | D105: 18.55 | E105: 15.05 | F105: 18.3 | G105: 18.55 | H105: 16.3 | I105: 3590 | J105: 64058.15 | K105: 2019-09-11 | L105: 50 | M105: INE413D01011
A106: ARIHANTSUP | B106: EQ | C106: 32.9 | D106: 33.1 | E106: 31.05 | F106: 31.85 | G106: 31.9 | H106: 31.55 | I106: 14930 | J106: 478541.3 | K106: 2019-09-11 | L106: 121 | M106: INE643K01018
A107: ARMANFIN | B107: EQ | C107: 369.95 | D107: 380 | E107: 366.2 | F107: 378.5 | G107: 380 | H107: 374.95 | I107: 1258 | J107: 471277.6 | K107: 2019-09-11 | L107: 72 | M107: INE109C01017
A108: AROGRANITE | B108: EQ | C108: 41.8 | D108: 42.8 | E108: 40.45 | F108: 42.5 | G108: 42.5 | H108: 41.35 | I108: 5823 | J108: 243974.4 | K108: 2019-09-11 | L108: 171 | M108: INE210C01013
A109: ARROWGREEN | B109: BE | C109: 67.4 | D109: 67.4 | E109: 67.4 | F109: 67.4 | G109: 67.4 | H109: 64.2 | I109: 2139 | J109: 144168.6 | K109: 2019-09-11 | L109: 22 | M109: INE570D01018
A110: ARROWTEX | B110: EQ | C110: 10 | D110: 10.6 | E110: 9.9 | F110: 10.5 | G110: 10.6 | H110: 10.35 | I110: 3621 | J110: 37534.15 | K110: 2019-09-11 | L110: 27 | M110: INE933J01015
A111: ARSHIYA | B111: EQ | C111: 21.15 | D111: 24 | E111: 20.6 | F111: 22.65 | G111: 22.5 | H111: 21.15 | I111: 84472 | J111: 1921153.55 | K111: 2019-09-11 | L111: 336 | M111: INE968D01022
A112: ARSSINFRA | B112: EQ | C112: 26.5 | D112: 26.75 | E112: 24.55 | F112: 26.35 | G112: 26.55 | H112: 25.5 | I112: 20047 | J112: 531082.8 | K112: 2019-09-11 | L112: 267 | M112: INE267I01010
A113: ARVIND | B113: EQ | C113: 51 | D113: 53.6 | E113: 50.75 | F113: 51.9 | G113: 51.5 | H113: 50.8 | I113: 3130697 | J113: 163467884.2 | K113: 2019-09-11 | L113: 10811 | M113: INE034A01011
A114: ARVINDFASN | B114: EQ | C114: 449.25 | D114: 469.8 | E114: 443.05 | F114: 453.45 | G114: 452.7 | H114: 449.25 | I114: 23549 | J114: 10789197.35 | K114: 2019-09-11 | L114: 1402 | M114: INE955V01021
A115: ARVSMART | B115: EQ | C115: 88.1 | D115: 93.5 | E115: 88.1 | F115: 92.2 | G115: 92 | H115: 90.5 | I115: 27532 | J115: 2523156.25 | K115: 2019-09-11 | L115: 590 | M115: INE034S01021
A116: ASAHIINDIA | B116: EQ | C116: 183.95 | D116: 184 | E116: 178.4 | F116: 183.75 | G116: 183.55 | H116: 179.9 | I116: 7115 | J116: 1292937.35 | K116: 2019-09-11 | L116: 321 | M116: INE439A01020
A117: ASAHISONG | B117: EQ | C117: 123.3 | D117: 126 | E117: 121.1 | F117: 124.95 | G117: 123.6 | H117: 120.3 | I117: 19972 | J117: 2492460.15 | K117: 2019-09-11 | L117: 220 | M117: INE228I01012
A118: ASAL | B118: EQ | C118: 32.9 | D118: 37.1 | E118: 32.8 | F118: 36.55 | G118: 36.9 | H118: 31.2 | I118: 10956 | J118: 388095.4 | K118: 2019-09-11 | L118: 640 | M118: INE900C01027
A119: ASHAPURMIN | B119: BE | C119: 25.75 | D119: 27.45 | E119: 25.75 | F119: 27.2 | G119: 27.35 | H119: 26.45 | I119: 26978 | J119: 713866.35 | K119: 2019-09-11 | L119: 82 | M119: INE348A01023
A120: ASHIANA | B120: EQ | C120: 108.75 | D120: 112 | E120: 107 | F120: 108.95 | G120: 111 | H120: 107.45 | I120: 55511 | J120: 6005039.65 | K120: 2019-09-11 | L120: 469 | M120: INE365D01021
A121: ASHIMASYN | B121: EQ | C121: 9 | D121: 9.35 | E121: 8.5 | F121: 8.8 | G121: 8.85 | H121: 8.6 | I121: 131618 | J121: 1172031.95 | K121: 2019-09-11 | L121: 372 | M121: INE440A01010
A122: ASHOKA | B122: EQ | C122: 96.4 | D122: 103.9 | E122: 96 | F122: 98.95 | G122: 98.45 | H122: 95.5 | I122: 1309044 | J122: 130426126 | K122: 2019-09-11 | L122: 8745 | M122: INE442H01029
A123: ASHOKLEY | B123: EQ | C123: 62 | D123: 64.7 | E123: 60.2 | F123: 63.7 | G123: 63.65 | H123: 62.9 | I123: 62192949 | J123: 3936313414 | K123: 2019-09-11 | L123: 126436 | M123: INE208A01029
A124: ASIANHOTNR | B124: EQ | C124: 114.9 | D124: 115 | E124: 105.3 | F124: 114.35 | G124: 114.85 | H124: 106.95 | I124: 2752 | J124: 309295.95 | K124: 2019-09-11 | L124: 57 | M124: INE363A01022
A125: ASIANPAINT | B125: EQ | C125: 1545 | D125: 1565 | E125: 1542.65 | F125: 1561.45 | G125: 1557.6 | H125: 1540.6 | I125: 1541300 | J125: 2402023811 | K125: 2019-09-11 | L125: 83730 | M125: INE021A01026
A126: ASIANTILES | B126: EQ | C126: 237.1 | D126: 240.9 | E126: 231.5 | F126: 238.1 | G126: 236.5 | H126: 235.7 | I126: 92891 | J126: 22060452.8 | K126: 2019-09-11 | L126: 1625 | M126: INE022I01019
A127: ASPINWALL | B127: EQ | C127: 143 | D127: 143 | E127: 135.5 | F127: 141 | G127: 141 | H127: 135.6 | I127: 3215 | J127: 446964 | K127: 2019-09-11 | L127: 54 | M127: INE991I01015
A128: ASSAMCO | B128: BE | C128: 0.7 | D128: 0.8 | E128: 0.7 | F128: 0.8 | G128: 0.8 | H128: 0.75 | I128: 889819 | J128: 632614.85 | K128: 2019-09-11 | L128: 186 | M128: INE442A01024
A129: ASTEC | B129: EQ | C129: 373 | D129: 381 | E129: 371.25 | F129: 378.05 | G129: 380.7 | H129: 372.5 | I129: 6619 | J129: 2477324.35 | K129: 2019-09-11 | L129: 290 | M129: INE563J01010
A130: ASTERDM | B130: EQ | C130: 117.9 | D130: 121 | E130: 117.9 | F130: 119.75 | G130: 119.9 | H130: 117.9 | I130: 33061 | J130: 3965321.65 | K130: 2019-09-11 | L130: 1204 | M130: INE914M01019
A131: ASTRAL | B131: EQ | C131: 1301.5 | D131: 1307.95 | E131: 1284.5 | F131: 1290.25 | G131: 1289.8 | H131: 1291.8 | I131: 24849 | J131: 32084572.2 | K131: 2019-09-11 | L131: 2100 | M131: INE006I01046
A132: ASTRAMICRO | B132: EQ | C132: 78.15 | D132: 78.95 | E132: 76.65 | F132: 77.95 | G132: 78 | H132: 77.05 | I132: 68274 | J132: 5310565.2 | K132: 2019-09-11 | L132: 1164 | M132: INE386C01029
A133: ASTRAZEN | B133: EQ | C133: 1997.7 | D133: 2094 | E133: 1985.05 | F133: 2071.75 | G133: 2065 | H133: 1993.1 | I133: 76569 | J133: 155967469.5 | K133: 2019-09-11 | L133: 2901 | M133: INE203A01020
A134: ASTRON | B134: EQ | C134: 110 | D134: 118.45 | E134: 106.7 | F134: 109.65 | G134: 108.3 | H134: 110.1 | I134: 858174 | J134: 97002589.35 | K134: 2019-09-11 | L134: 11001 | M134: INE646X01014
A135: ATFL | B135: EQ | C135: 470.55 | D135: 483.5 | E135: 468.15 | F135: 474.5 | G135: 480 | H135: 470.55 | I135: 47438 | J135: 22449966.4 | K135: 2019-09-11 | L135: 807 | M135: INE209A01019
A136: ATLANTA | B136: EQ | C136: 6.95 | D136: 6.95 | E136: 6.9 | F136: 6.95 | G136: 6.95 | H136: 6.65 | I136: 6555 | J136: 45514.1 | K136: 2019-09-11 | L136: 35 | M136: INE285H01022
A137: ATLASCYCLE | B137: BE | C137: 43.7 | D137: 45.85 | E137: 43.7 | F137: 45.85 | G137: 45.85 | H137: 43.7 | I137: 5582 | J137: 254082.95 | K137: 2019-09-11 | L137: 80 | M137: INE446A01025
A138: ATNINTER | B138: BE | C138: 0.15 | D138: 0.2 | E138: 0.15 | F138: 0.2 | G138: 0.2 | H138: 0.2 | I138: 17019 | J138: 2562.85 | K138: 2019-09-11 | L138: 49 | M138: INE803A01027
A139: ATUL | B139: EQ | C139: 3500 | D139: 3700 | E139: 3500 | F139: 3684.6 | G139: 3685 | H139: 3515.25 | I139: 14545 | J139: 52755282.1 | K139: 2019-09-11 | L139: 3912 | M139: INE100A01010
A140: ATULAUTO | B140: EQ | C140: 224.95 | D140: 238 | E140: 216.65 | F140: 230 | G140: 230.1 | H140: 216 | I140: 28339 | J140: 6414949.15 | K140: 2019-09-11 | L140: 1657 | M140: INE951D01028
A141: AUBANK | B141: EQ | C141: 669 | D141: 669.85 | E141: 660.1 | F141: 662.6 | G141: 661.2 | H141: 667.15 | I141: 77402 | J141: 51379271.15 | K141: 2019-09-11 | L141: 12332 | M141: INE949L01017
A142: AURIONPRO | B142: EQ | C142: 86.8 | D142: 89 | E142: 85 | F142: 85.6 | G142: 86.1 | H142: 86.8 | I142: 10947 | J142: 955723.95 | K142: 2019-09-11 | L142: 327 | M142: INE132H01018
A143: AUROPHARMA | B143: EQ | C143: 624 | D143: 630.3 | E143: 622 | F143: 628.4 | G143: 626.95 | H143: 625.75 | I143: 1326159 | J143: 831059925.9 | K143: 2019-09-11 | L143: 29097 | M143: INE406A01037
A144: AUSOMENT | B144: EQ | C144: 31.8 | D144: 32 | E144: 27.3 | F144: 29.9 | G144: 30.65 | H144: 29.1 | I144: 1019 | J144: 30453.55 | K144: 2019-09-11 | L144: 49 | M144: INE218C01016
A145: AUTOAXLES | B145: EQ | C145: 865.05 | D145: 914 | E145: 858.5 | F145: 898.55 | G145: 895.25 | H145: 872.65 | I145: 11476 | J145: 10304750.4 | K145: 2019-09-11 | L145: 1118 | M145: INE449A01011
A146: AUTOIND | B146: EQ | C146: 35.2 | D146: 36 | E146: 33.5 | F146: 35.65 | G146: 36 | H146: 34.9 | I146: 13982 | J146: 496551.65 | K146: 2019-09-11 | L146: 177 | M146: INE718H01014
A147: AUTOLITIND | B147: EQ | C147: 22.85 | D147: 22.85 | E147: 20.35 | F147: 21.8 | G147: 21.8 | H147: 20.9 | I147: 2075 | J147: 43863.55 | K147: 2019-09-11 | L147: 35 | M147: INE448A01013
A148: AVADHSUGAR | B148: EQ | C148: 226.5 | D148: 246.55 | E148: 225.55 | F148: 246.55 | G148: 246.55 | H148: 224.15 | I148: 93571 | J148: 22531818.7 | K148: 2019-09-11 | L148: 2582 | M148: INE349W01017
A149: AVANTIFEED | B149: EQ | C149: 356 | D149: 356.4 | E149: 345.25 | F149: 347.3 | G149: 346 | H149: 353.4 | I149: 246387 | J149: 86140347.75 | K149: 2019-09-11 | L149: 6203 | M149: INE871C01038
A150: AVTNPL | B150: EQ | C150: 22.5 | D150: 23.4 | E150: 21.8 | F150: 23.1 | G150: 23.4 | H150: 22.3 | I150: 22134 | J150: 504255.05 | K150: 2019-09-11 | L150: 172 | M150: INE488D01021
A151: AXISBANK | B151: EQ | C151: 674.55 | D151: 683.5 | E151: 671 | F151: 681.7 | G151: 677.3 | H151: 671.55 | I151: 5966906 | J151: 4047535430 | K151: 2019-09-11 | L151: 166605 | M151: INE238A01034
A152: AXISCADES | B152: EQ | C152: 69.25 | D152: 72.75 | E152: 69.1 | F152: 70.25 | G152: 70.2 | H152: 69.65 | I152: 220751 | J152: 15593366.1 | K152: 2019-09-11 | L152: 1585 | M152: INE555B01013
A153: AXISGOLD | B153: EQ | C153: 3342.8 | D153: 3359 | E153: 3316.25 | F153: 3317.85 | G153: 3316.25 | H153: 3342.8 | I153: 654 | J153: 2179227.15 | K153: 2019-09-11 | L153: 149 | M153: INF846K01347
A154: AXISNIFTY | B154: EQ | C154: 1132.4 | D154: 1140.64 | E154: 1131.51 | F154: 1139.54 | G154: 1139.54 | H154: 1136.4 | I154: 308 | J154: 348832.08 | K154: 2019-09-11 | L154: 13 | M154: INF846K01ZL0
A155: AYMSYNTEX | B155: EQ | C155: 34.45 | D155: 34.5 | E155: 32.1 | F155: 33 | G155: 33 | H155: 32.25 | I155: 3278 | J155: 108796.5 | K155: 2019-09-11 | L155: 168 | M155: INE193B01039
A156: BAGFILMS | B156: EQ | C156: 2.1 | D156: 2.1 | E156: 1.9 | F156: 2 | G156: 2.05 | H156: 2.1 | I156: 898181 | J156: 1820630.45 | K156: 2019-09-11 | L156: 566 | M156: INE116D01028
A157: BAJAJ-AUTO | B157: EQ | C157: 2838.9 | D157: 2920.45 | E157: 2812 | F157: 2908.4 | G157: 2899 | H157: 2817.8 | I157: 1253636 | J157: 3624644989 | K157: 2019-09-11 | L157: 60207 | M157: INE917I01010
A158: BAJAJCON | B158: EQ | C158: 252.9 | D158: 260.65 | E158: 250.85 | F158: 254.5 | G158: 254.5 | H158: 250 | I158: 87504 | J158: 22447961.1 | K158: 2019-09-11 | L158: 6875 | M158: INE933K01021
A159: BAJAJELEC | B159: EQ | C159: 381 | D159: 388.5 | E159: 378.15 | F159: 385.15 | G159: 385.15 | H159: 375.3 | I159: 115267 | J159: 44217370.9 | K159: 2019-09-11 | L159: 4191 | M159: INE193E01025
A160: BAJAJFINSV | B160: EQ | C160: 7349.95 | D160: 7419 | E160: 7295 | F160: 7354.2 | G160: 7300 | H160: 7323.95 | I160: 348066 | J160: 2564957884 | K160: 2019-09-11 | L160: 46495 | M160: INE918I01018
A161: BAJAJHIND | B161: EQ | C161: 7.3 | D161: 7.75 | E161: 7.1 | F161: 7.6 | G161: 7.5 | H161: 7.3 | I161: 3028537 | J161: 22610534.35 | K161: 2019-09-11 | L161: 2689 | M161: INE306A01021
A162: BAJAJHLDNG | B162: EQ | C162: 3307.5 | D162: 3340.7 | E162: 3301.05 | F162: 3316.4 | G162: 3329.7 | H162: 3306.3 | I162: 10121 | J162: 33593342.7 | K162: 2019-09-11 | L162: 2973 | M162: INE118A01012
A163: BAJFINANCE | B163: EQ | C163: 3445.35 | D163: 3456 | E163: 3385.3 | F163: 3416.4 | G163: 3392 | H163: 3437.35 | I163: 1301112 | J163: 4466159354 | K163: 2019-09-11 | L163: 61610 | M163: INE296A01024
A164: BALAJITELE | B164: EQ | C164: 56.9 | D164: 59.8 | E164: 53.65 | F164: 57.7 | G164: 57.6 | H164: 55.95 | I164: 67997 | J164: 3921134.75 | K164: 2019-09-11 | L164: 812 | M164: INE794B01026
A165: BALAMINES | B165: EQ | C165: 261.05 | D165: 286 | E165: 261 | F165: 283.55 | G165: 283 | H165: 260.85 | I165: 52906 | J165: 14691901.8 | K165: 2019-09-11 | L165: 2077 | M165: INE050E01027
A166: BALAXI | B166: BE | C166: 88.9 | D166: 93 | E166: 88.9 | F166: 93 | G166: 93 | H166: 93.55 | I166: 313 | J166: 28071.2 | K166: 2019-09-11 | L166: 17 | M166: INE618N01014
A167: BALKRISHNA | B167: EQ | C167: 27.7 | D167: 27.7 | E167: 27.7 | F167: 27.7 | G167: 27.7 | H167: 25.2 | I167: 13226 | J167: 366360.2 | K167: 2019-09-11 | L167: 119 | M167: INE875R01011
A168: BALKRISIND | B168: EQ | C168: 736.25 | D168: 747.5 | E168: 735.25 | F168: 745.05 | G168: 745 | H168: 736.2 | I168: 272723 | J168: 202258874.2 | K168: 2019-09-11 | L168: 8543 | M168: INE787D01026
A169: BALLARPUR | B169: EQ | C169: 0.55 | D169: 0.6 | E169: 0.5 | F169: 0.6 | G169: 0.6 | H169: 0.55 | I169: 6451984 | J169: 3709329.4 | K169: 2019-09-11 | L169: 548 | M169: INE294A01037
A170: BALMLAWRIE | B170: EQ | C170: 168 | D170: 170 | E170: 168 | F170: 169.15 | G170: 169.5 | H170: 166.9 | I170: 106985 | J170: 18104329.2 | K170: 2019-09-11 | L170: 1810 | M170: INE164A01016
A171: BALPHARMA | B171: EQ | C171: 40.05 | D171: 46.8 | E171: 39.6 | F171: 44.95 | G171: 45 | H171: 40.05 | I171: 58648 | J171: 2595812.35 | K171: 2019-09-11 | L171: 1126 | M171: INE083D01012
A172: BALRAMCHIN | B172: EQ | C172: 134.4 | D172: 152.4 | E172: 133.6 | F172: 149.75 | G172: 148.6 | H172: 133.55 | I172: 6181922 | J172: 894541584.8 | K172: 2019-09-11 | L172: 76049 | M172: INE119A01028
A173: BANARBEADS | B173: EQ | C173: 39.5 | D173: 40.5 | E173: 39.5 | F173: 40.5 | G173: 40.5 | H173: 39 | I173: 551 | J173: 22204.5 | K173: 2019-09-11 | L173: 26 | M173: INE655B01011
A174: BANARISUG | B174: EQ | C174: 1075 | D174: 1145.5 | E174: 1075 | F174: 1102.45 | G174: 1093 | H174: 1078.45 | I174: 1468 | J174: 1624532.95 | K174: 2019-09-11 | L174: 221 | M174: INE459A01010
A175: BANCOINDIA | B175: EQ | C175: 100.6 | D175: 108.3 | E175: 99.75 | F175: 106.5 | G175: 107.1 | H175: 100.45 | I175: 113757 | J175: 11764820.55 | K175: 2019-09-11 | L175: 1884 | M175: INE213C01025
A176: BANDHANBNK | B176: EQ | C176: 453 | D176: 463.2 | E176: 446.65 | F176: 449.1 | G176: 450.05 | H176: 449.75 | I176: 1484769 | J176: 670295068 | K176: 2019-09-11 | L176: 44156 | M176: INE545U01014
A177: BANG | B177: EQ | C177: 31.5 | D177: 31.5 | E177: 30.25 | F177: 30.7 | G177: 30.3 | H177: 30.35 | I177: 66403 | J177: 2038542.05 | K177: 2019-09-11 | L177: 530 | M177: INE863I01016
A178: BANKBARODA | B178: EQ | C178: 95.55 | D178: 99.65 | E178: 95.55 | F178: 99.05 | G178: 98.9 | H178: 95.55 | I178: 21886257 | J178: 2146451778 | K178: 2019-09-11 | L178: 72340 | M178: INE028A01039
A179: BANKBEES | B179: EQ | C179: 2810 | D179: 2839 | E179: 2775 | F179: 2834.44 | G179: 2828 | H179: 2810.14 | I179: 1823 | J179: 5156140.84 | K179: 2019-09-11 | L179: 533 | M179: INF732E01078
A180: BANKINDIA | B180: EQ | C180: 66.15 | D180: 68.45 | E180: 65.85 | F180: 68.15 | G180: 68.2 | H180: 66.1 | I180: 6813652 | J180: 459526277.6 | K180: 2019-09-11 | L180: 16907 | M180: INE084A01016
A181: BANSWRAS | B181: EQ | C181: 67 | D181: 67 | E181: 66 | F181: 66.75 | G181: 66.95 | H181: 66.8 | I181: 12529 | J181: 833067.4 | K181: 2019-09-11 | L181: 66 | M181: INE629D01012
A182: BARTRONICS | B182: BE | C182: 2.5 | D182: 2.5 | E182: 2.3 | F182: 2.45 | G182: 2.45 | H182: 2.4 | I182: 33776 | J182: 80887 | K182: 2019-09-11 | L182: 42 | M182: INE855F01034
A183: BASF | B183: EQ | C183: 1027.35 | D183: 1035.05 | E183: 1008.5 | F183: 1020.1 | G183: 1016 | H183: 1021.45 | I183: 13258 | J183: 13589736.1 | K183: 2019-09-11 | L183: 1481 | M183: INE373A01013
A184: BASML | B184: EQ | C184: 116.05 | D184: 126 | E184: 115.8 | F184: 124.55 | G184: 124.7 | H184: 115.75 | I184: 4559 | J184: 550330.75 | K184: 2019-09-11 | L184: 160 | M184: INE186H01014
A185: BATAINDIA | B185: EQ | C185: 1558 | D185: 1574.5 | E185: 1555.1 | F185: 1572.2 | G185: 1571.8 | H185: 1559.85 | I185: 523795 | J185: 821713961.5 | K185: 2019-09-11 | L185: 29850 | M185: INE176A01028
A186: BAYERCROP | B186: EQ | C186: 3133.45 | D186: 3215 | E186: 3075 | F186: 3182.4 | G186: 3195 | H186: 3133.6 | I186: 5550 | J186: 17346795.65 | K186: 2019-09-11 | L186: 1643 | M186: INE462A01022
A187: BBL | B187: EQ | C187: 899 | D187: 929 | E187: 889.2 | F187: 912.55 | G187: 914 | H187: 887.45 | I187: 7949 | J187: 7273344.1 | K187: 2019-09-11 | L187: 633 | M187: INE464A01028
A188: BBTC | B188: EQ | C188: 1008.25 | D188: 1045 | E188: 1004.05 | F188: 1023.85 | G188: 1018 | H188: 1002 | I188: 326270 | J188: 335105919.1 | K188: 2019-09-11 | L188: 12964 | M188: INE050A01025
A189: BCG | B189: EQ | C189: 3.2 | D189: 3.3 | E189: 3.1 | F189: 3.15 | G189: 3.2 | H189: 3.2 | I189: 310300 | J189: 992479.7 | K189: 2019-09-11 | L189: 254 | M189: INE425B01027
A190: BCP | B190: EQ | C190: 9.8 | D190: 9.85 | E190: 9.55 | F190: 9.85 | G190: 9.85 | H190: 9.7 | I190: 306797 | J190: 2978534.7 | K190: 2019-09-11 | L190: 125 | M190: INE905P01028
A191: BDL | B191: EQ | C191: 283.75 | D191: 285.1 | E191: 279 | F191: 280.5 | G191: 280 | H191: 282.15 | I191: 27379 | J191: 7692187.95 | K191: 2019-09-11 | L191: 1957 | M191: INE171Z01018
A192: BEARDSELL | B192: EQ | C192: 11.7 | D192: 12.95 | E192: 11.7 | F192: 11.9 | G192: 12 | H192: 12.1 | I192: 3409 | J192: 40967.65 | K192: 2019-09-11 | L192: 72 | M192: INE520H01022
A193: BEDMUTHA | B193: EQ | C193: 12.1 | D193: 13 | E193: 11.6 | F193: 12.05 | G193: 12.05 | H193: 12.55 | I193: 37275 | J193: 453924.5 | K193: 2019-09-11 | L193: 189 | M193: INE844K01012
A194: BEL | B194: EQ | C194: 109.7 | D194: 111.35 | E194: 107.2 | F194: 107.95 | G194: 107.85 | H194: 109.7 | I194: 9453974 | J194: 1028192207 | K194: 2019-09-11 | L194: 42167 | M194: INE263A01024
A195: BEML | B195: EQ | C195: 816 | D195: 825 | E195: 811.05 | F195: 815.35 | G195: 812.1 | H195: 813.4 | I195: 270995 | J195: 221779204.4 | K195: 2019-09-11 | L195: 8672 | M195: INE258A01016
A196: BEPL | B196: EQ | C196: 59.7 | D196: 64.3 | E196: 58.85 | F196: 63.45 | G196: 63.5 | H196: 59.3 | I196: 841853 | J196: 52214589.05 | K196: 2019-09-11 | L196: 4768 | M196: INE922A01025
A197: BERGEPAINT | B197: EQ | C197: 368 | D197: 370.85 | E197: 363.45 | F197: 369.9 | G197: 368 | H197: 367.95 | I197: 693831 | J197: 255100697.3 | K197: 2019-09-11 | L197: 12297 | M197: INE463A01038
A198: BFINVEST | B198: EQ | C198: 271.05 | D198: 296 | E198: 268 | F198: 286.95 | G198: 285 | H198: 269.05 | I198: 197662 | J198: 56212954.6 | K198: 2019-09-11 | L198: 4330 | M198: INE878K01010
A199: BFUTILITIE | B199: EQ | C199: 166.45 | D199: 178.95 | E199: 166.1 | F199: 175.15 | G199: 174 | H199: 166.1 | I199: 1113015 | J199: 193008619.9 | K199: 2019-09-11 | L199: 16416 | M199: INE243D01012
A200: BGLOBAL | B200: BE | C200: 1.25 | D200: 1.25 | E200: 1.25 | F200: 1.25 | G200: 1.25 | H200: 1.2 | I200: 8412 | J200: 10515 | K200: 2019-09-11 | L200: 10 | M200: INE224M01013
... 1485 more rows

Sheet Sheet1 (hidden)

Sheet Sheet3 (hidden)

Sheet Sheet4 (hidden)

Sheet Sheet5 (hidden)
